Workbook

Sheet Inicio IS-LM
A25: Descargue la versión Kindle
K33: Miguel Cervantes Jiménez

Sheet IS_LM_CERRADA_G_PR (hidden)
A1: SISTEMA IS-LM
A2: Economía cerrada, con gobierno y precios rígidos
B3: DEMANDA AGREGADA
B4: Y | C4: C | D4: I | E4: G | I4: VARIABLES | J4: ORIGINAL | K4: CHOQUE | L4: VAR ABS | M4: VAR REL
B5: ='Oculto IS-LM'!A27 -> 5,000 | C5: ='Oculto IS-LM'!B27 -> 3,800 | D5: ='Oculto IS-LM'!C27 -> 700 | E5: ='Oculto IS-LM'!D27 -> 500 | I5: Y | J5: ='Oculto IS-LM'!N58 -> 5,000.3 | K5: ='Oculto IS-LM'!O58 -> 5,000.3 | L5: =K5-J5 -> 0 | M5: ='Oculto IS-LM'!Q58 -> 0%
C6: =C5/$B$5 -> 76% | D6: =D5/$B$5 -> 14% | E6: =E5/$B$5 -> 10% | I6: r | J6: ='Oculto IS-LM'!N59 -> 10.3 | K6: ='Oculto IS-LM'!O59 -> 10.3 | L6: ='Oculto IS-LM'!P59 -> 0 | M6: ='Oculto IS-LM'!Q59 -> 0%
I7: C | J7: ='Oculto IS-LM'!N60 -> 3,800.3 | K7: ='Oculto IS-LM'!O60 -> 3,800.3 | L7: ='Oculto IS-LM'!P60 -> 0 | M7: ='Oculto IS-LM'!Q60 -> 0%
B8: FUNCIÓN CONSUMO | I8: S | J8: ='Oculto IS-LM'!N61 -> 700.1 | K8: ='Oculto IS-LM'!O61 -> 700.1 | L8: ='Oculto IS-LM'!P61 -> 0 | M8: ='Oculto IS-LM'!Q61 -> 0%
B9: C | C9: b0 | D9: b1 | E9: T0 | I9: I | J9: ='Oculto IS-LM'!N62 -> 700.1 | K9: ='Oculto IS-LM'!O62 -> 700.1 | L9: ='Oculto IS-LM'!P62 -> 0 | M9: ='Oculto IS-LM'!Q62 -> 0%
B10: ='Oculto IS-LM'!A30 -> 3,800 | C10: 200 | D10: 0.80 | E10: 500 | I10: G | J10: ='Oculto IS-LM'!N63 -> 500.0 | K10: ='Oculto IS-LM'!O63 -> 500.0 | L10: ='Oculto IS-LM'!P63 -> 0 | M10: ='Oculto IS-LM'!Q63 -> 0%
C11: Inserte los datos correspondientes | I11: T | J11: ='Oculto IS-LM'!N64 -> 500.0 | K11: ='Oculto IS-LM'!O64 -> 500.0 | L11: ='Oculto IS-LM'!P64 -> 0 | M11: ='Oculto IS-LM'!Q64 -> 0%
B12: FUNCIÓN AHORRO | I12: DP | J12: ='Oculto IS-LM'!N65 -> 0 | K12: ='Oculto IS-LM'!O65 -> 0 | L12: ='Oculto IS-LM'!P65 -> 0 | M12: ='Oculto IS-LM'!Q65 -> 0.0%
B13: S | C13: -b0 | D13: 1-b1 | E13: T0 | I13: Ms | J13: ='Oculto IS-LM'!N66 -> 1,200.0 | K13: ='Oculto IS-LM'!O66 -> 1,200.0 | L13: ='Oculto IS-LM'!P66 -> 0 | M13: ='Oculto IS-LM'!Q66 -> 0%
B14: ='Oculto IS-LM'!A33 -> 700 | C14: ='Oculto IS-LM'!B33 -> (200) | D14: ='Oculto IS-LM'!C33 -> 0.20 | E14: ='Oculto IS-LM'!D33 -> 500 | I14: Md | J14: ='Oculto IS-LM'!N67 -> 1,200.0 | K14: ='Oculto IS-LM'!O67 -> 1,200.0 | L14: ='Oculto IS-LM'!P67 -> 0 | M14: ='Oculto IS-LM'!Q67 -> 0%
I15: Pendiente IS | J15: ='Oculto IS-LM'!N69 -> -0.00400 | K15: ='Oculto IS-LM'!O69 -> -0.00400 | L15: ='Oculto IS-LM'!P69 -> 0 | M15: ='Oculto IS-LM'!Q69 -> 0%
B16: FUNCIÓN INVERSIÓN | I16: Pendiente LM | J16: ='Oculto IS-LM'!N71 -> 0.00397 | K16: ='Oculto IS-LM'!O71 -> 0.00397 | L16: ='Oculto IS-LM'!P71 -> 0 | M16: ='Oculto IS-LM'!Q71 -> 0%
B17: I | C17: i0 | D17: i1 | J17: Esta seccion muestra los efectos de la Política Económica
B18: ='Oculto IS-LM'!A36 -> 700 | C18: 1,216 | D18: (50)
B20: GASTO DE GOBIERNO | E20: Déficit Público
B21: G | C21: G0 | E21: T0-G0
B22: ='Oculto IS-LM'!A39 -> 500 | C22: 500 | E22: ='Oculto IS-LM'!D39 -> 0
B24: FUNCIÓN DEMANDA DE DINERO
B25: Md | C25: m0 | D25: m1 | E25: m2
B26: ='Oculto IS-LM'!A42 -> 1,200 | C26: 600 | D26: 0.25 | E26: (63)
B28: OFERTA DE DINERO
B29: Ms | C29: Ms
B30: ='Oculto IS-LM'!A45 -> 1200.0 | C30: 1200.0
B32: VALORES DE EQUILIBRIO INICIAL
B33: Y | C33: rn | D33: Pend. IS | E33: Pend. LM
B34: ='Oculto IS-LM'!A48 -> 5,000 | C34: ='Oculto IS-LM'!B48 -> 10.3 | D34: ='Oculto IS-LM'!D48 -> -0.004 | E34: ='Oculto IS-LM'!E48 -> 0.004
B36: POLÍTICA ECONÓMICA
B37: MONETARIA | C37: FISCAL | E37: EXOGENO
B38: Ms | C38: T1 | D38: G1 | E38: b0 | F38: i0
B39: ='Oculto IS-LM'!A53 -> 1,200 | C39: ='Oculto IS-LM'!B53 -> 500 | D39: ='Oculto IS-LM'!D53 -> 500 | E39: ='Oculto IS-LM'!E53 -> 200 | F39: ='Oculto IS-LM'!F53 -> 1,216
B40: 0% | C40: 0% | D40: 0% | E40: 0% | F40: 0%
B42: NUEVOS VALORES DE EQUILIBRIO
B43: Y | C43: rn | D43: Pend. IS | E43: Pend. LM
B44: ='Oculto IS-LM'!L48 -> 5,000 | C44: ='Oculto IS-LM'!M48 -> 10.3 | D44: ='Oculto IS-LM'!O48 -> -0.004 | E44: ='Oculto IS-LM'!P48 -> 0.004
B48: Títulos
B49: Resultados
B50: Insertar datos
B51: Valored de equilibrio
B52: Política económica

Sheet curva BP (hidden)
A1: CURVA BP
A2: Economía abierta con gobierno, precios rígidos y tipo de cambio
B3: Caso 1
B4: FUNCION EXPORTACIONES
B5: X | C5: x0 | D5: x1 | E5: YRM | F5: x2 | G5: TC
B6: ='Oculto IS-LM'!AV235 -> 1,354.80 | C6: 150 | D6: 0.015 | E6: 80000 | F6: 0.40 | G6: 12
B8: FUNCION IMPORTACIONES
B9: Q | C9: q0 | D9: q1 | E9: Y | F9: q2 | G9: TC
B10: ='Oculto IS-LM'!AV238 -> 1,255.20 | C10: 200 | D10: 0.40 | E10: 2650.00 | F10: -0.40 | G10: =G6 -> 12
B12: FUNCION INVERSIÓN EXTERIOR NETA
B13: IEN | C13: r0 | D13: r | E13: rRM
B14: ='Oculto IS-LM'!AV241 -> -99.60 | C14: 20000 | D14: ='Oculto IS-LM'!AX241 -> 1.50% | E14: 2.00%
B16: Caso 2
B17: FUNCION EXPORTACIONES
B18: X | C18: x0 | D18: x1 | E18: YRM | F18: x2 | G18: TC
B19: ='Oculto IS-LM'!BI235 -> 1,354.80 | C19: =C6 -> 150 | D19: =D6 -> 0.015 | E19: =E6 -> 80000 | F19: =F6 -> 0.40 | G19: =G6 -> 12
B21: FUNCION IMPORTACIONES
B22: Q | C22: q0 | D22: q1 | E22: Y | F22: q2 | G22: TC
B23: ='Oculto IS-LM'!BI238 -> 1,255.20 | C23: =C10 -> 200 | D23: =D10 -> 0.40 | E23: =E10 -> 2650.00 | F23: =F10 -> -0.40 | G23: =G19 -> 12
B25: FUNCION INVERSIÓN EXTERIOR NETA
B26: IEN | C26: r0 | D26: r | E26: rRM
B27: ='Oculto IS-LM'!BI241 -> -99.60 | C27: =C14 -> 20000 | D27: ='Oculto IS-LM'!BK241 -> 1.50% | E27: =E14 -> 2.00%
B29: VARIACIÓN DE LAS CUENTAS DE LA BALANZA DE PAGOS
C30: X | D30: Q | E30: SBC | F30: IEN | G30: PENDIENTE
B31: Caso 1 | C31: =B6 -> 1,354.80 | D31: =B10 -> 1,255.20 | E31: =C31-D31 -> 99.60 | F31: =B14 -> -99.60 | G31: =D10/C14 -> 0.000020
B32: Caso 2 | C32: =B19 -> 1,354.80 | D32: =B23 -> 1,255.20 | E32: =C32-D32 -> 99.60 | F32: =B27 -> -99.60 | G32: =D23/C27 -> 0.000020
B33: Variación abs. | C33: =C32-C31 -> 0.00 | D33: =D32-D31 -> 0.00 | E33: =E32-E31 -> 0.00 | F33: =F32-F31 -> 0.00 | G33: 0.000000
B34: Variación relat. | C34: =C33/C31 -> 0.0% | D34: =D33/D31 -> 0.0% | E34: =E33/E31 -> 0.0% | F34: 0.0% | G34: 0.0%
B36: Títulos
B37: Resultados
B38: Insertar datos

Sheet Oculto IS-LM (hidden)
A1: IS-LM ECONOMÍA CERRADA CON GOBIERNO Y PRECIOS RÍGIDOS | L1: IS-LM (MOV) ECONOMÍA CERRADA CON GOBIERNO Y PRECIOS RÍGIDOS | U1: IS-LM ECONOMÍA ABIERTA CON GOBIERNO Y PRECIOS FLEXIBLES | AH1: IS-LM (MOV) ECONOMÍA ABIERTA CON GOBIERNO Y PRECIOS FLEXIBLES | AV1: ECONOMÍA ABIERTA, PRECIOS RÍGIDOS, TIPO DE CAMBIO FIJO | BU1: ECONOMÍA ABIERTA, PRECIOS RÍGIDOS, TIPO DE CAMBIO FLEXIBLE | CW1: ORIGINAL | DB1: BP por tasa de interés | DE1: graficar | DG1: E1 | DK1: E2 | DR1: CHOQUES | DW1: GRAFICA BP | DZ1: graficar | EH1: Original | EM1: BP por tasa de interés | EP1: Graficar | FD1: Choques | FI1: BP por tasa de interés | FL1: Graficar
A2: Unidades | B2: ponderador | C2: IS(Y) | D2: IS(rn) | E2: LM(rn) | F2: LM(Y) | G2: ISLine | I2: LMLine | L2: IS(Y) | M2: IS(rn) | N2: LM(rn) | O2: LM(Y) | P2: ISMovLine | R2: LMMovLine | U2: Unidades | V2: ponderador | W2: IS(Y) | X2: IS(rn) | Y2: LM(rn) con P | Z2: LM (Y) sinP | AA2: LM (r) sinP | AB2: ISLine | AD2: LMLine | AH2: IS(Y) | AI2: IS(rn) | AJ2: LM(rn) con P | AK2: LM (Y) sinP | AL2: LM (r) sinP | AM2: ISMovLine | AO2: LMMovLine | AV2: ponderador 1 | AW2: ponderador 2 | AX2: r | AY2: IS(Y) | AZ2: LM | BA2: BP | BB2: X line | BD2: Y line | BI2: ponderador 1 | BJ2: ponderador 2 | BK2: r | BL2: IS(Y) | BM2: LM | BN2: BP | BO2: X line | BQ2: Y line | BU2: ponderador 1 | BV2: ponderador 2 | BW2: r | BX2: IS(Y) | BY2: LM | BZ2: BP | CA2: X line | CC2: Y line | CH2: ponderador 1 | CI2: ponderador 2 | CJ2: r | CK2: IS(Y) | CL2: LM | CM2: BP | CN2: X line | CP2: Y line | CV2: Ponderador | CW2: Ponderador | CX2: Y | CY2: IS | CZ2: LM | DA2: BP | DB2: Y | DC2: BP | DE2: Y | DF2: BP | DG2: y | DH2: r | DI2: y | DJ2: r | DK2: y | DL2: r | DM2: y | DN2: r | DR2: Ponderador | DS2: Y | DT2: IS | DU2: LM | DV2: BP | DW2: Y | DX2: BP | DZ2: Y | EA2: BP | EG2: Ponderador | EH2: Ponderador | EI2: Y | EJ2: IS | EK2: LM | EL2: BP | EM2: y | EN2: bp | EP2: y | EQ2: bop | ER2: y | ES2: r | ET2: y | EU2: r | EV2: y | EW2: r | EX2: y | EY2: r | FD2: Ponderador | FE2: Y | FF2: IS | FG2: LM | FH2: BP | FI2: y | FJ2: bp | FL2: y | FM2: bop
A3: 0 | B3: 0.50 | C3: =((1/F$48)*(G$48))-((1/F$48)*(C$36*D3)) -> 6,290.16 | D3: =B$48*B3 -> 5.16 | E3: =H$48+((C$42/D$42)*F3) -> 15.44 | F3: =C3 -> 6,290.16 | G3: =C$13 -> 5,000.32 | H3: =I3*($A3/$A$23) -> 0 | I3: =D$13 -> 10.32 | J3: =G3*$A3/$A$23 -> 0 | L3: =((1/Q$48)*(R$48))-((1/Q$48)*(N$36*M3)) -> 6,290.16 | M3: =M$48*B3 -> 5.16 | N3: =S$48+((N$42/O$42)*O3) -> 15.44 | O3: =L3 -> 6,290.16 | P3: =L$13 -> 5,000.32 | Q3: =R3*($A3/$A$23) -> 0 | R3: =M$13 -> 10.32 | S3: =P3*$A3/$A$23 -> 0 | U3: 0 | V3: 0.50 | W3: =((1/Z$56)*(AA$56))-((1/Z$56)*(W$40*-1*X3)) -> 6,290.16 | X3: =$V$56*V3 -> 5.16 | Y3: =((($V$47-($U$50/$U$53))/$X$47*-1))+((W$47/X$47*-1)*W3) -> 15.44 | Z3: =V3*$U$57 -> 2500.159363 | AA3: =(($V$47-($U$50))/$X$47*-1)+(($W$47/$X$47*-1)*Z3) -> 0.40 | AB3: =W$13 -> 5,000.32 | AC3: =AD3*($A3/$A$23) -> 0 | AD3: =X$13 -> 10.32 | AE3: =AB3*$A3/$A$23 -> 0 | AH3: =((1/AM$56)*(AN$56))-((1/AM$56)*(AJ$40*-1*AI3)) -> 6,290.16 | AI3: =$AI$56*V3 -> 5.16 | AJ3: =((($AI$47-($AH$50/$AH$53))/$AK$47*-1))+((AJ$47/AK$47*-1)*AH3) -> 15.44 | AK3: =V3*$AH$57 -> 2500.159363 | AL3: =(($AI$47-($AH$50))/$AK$47*-1)+(($AJ$47/$AK$47*-1)*AK3) -> 0.40 | AM3: =AH$13 -> 5,000.32 | AN3: =AO3*($A3/$A$23) -> 0 | AO3: =AI$13 -> 10.32 | AP3: =AM3*$A3/$A$23 -> 0 | AV3: 0.50 | AW3: 0 | AX3: =AV3*$AW$48 ->  | AY3: =($AV$51-($AX$33*AX3))/$AW$51 ->  | AZ3: =(($AX$45-$AW$45)/$AZ$45)+(($AY$45/$AZ$45)*AY3) ->  | BA3: =$BA$36+((-$AW$39+$AW$42-($AX$39*$AZ$39)-(($AY$39+$AY$42)*$BA$39))/$AZ$36)+(($AX$42/$AZ$36)*AY3) ->  | BB3: =BD25 ->  | BC3: =$AW$48 ->  | BD3: =$AV$48 ->  | BE3: =AW3*$AW$48 ->  | BI3: 0.50 | BJ3: 0 | BK3: =BI3*$BJ$48 ->  | BL3: =($BI$51-($BK$33*BK3))/$BJ$51 ->  | BM3: =(($BK$45-$BJ$45)/$BM$45)+(($BL$45/$BM$45)*BL3) ->  | BN3: =$BN$36+((-$BJ$39+$BJ$42-($BK$39*$BM$39)-(($BL$39+$BL$42)*$BN$39))/$BM$36)+(($BK$42/$BM$36)*BL3) ->  | BO3: =BQ25 ->  | BP3: =$BJ$48 ->  | BQ3: =$BI$48 ->  | BR3: =BJ3*$BJ$48 ->  | BU3: 0.50 | BV3: 0 | BW3: =BU3*$BV$48 ->  | BX3: =($BU$51-($BW$33*BW3))/$BV$51 ->  | BY3: =(($BW$45-$BV$45)/$BY$45)+(($BX$45/$BY$45)*BX3) ->  | BZ3: =$BZ$33+((-$BV$39+$BV$42-($BW$39*$BY$39)-(($BX$39+$BX$42)*$BZ$39))/$BY$33)+(($BW$42/$BY$33)*BX3) ->  | CA3: =CC25 ->  | CB3: =$BV$48 ->  | CC3: =$BU$48 ->  | CD3: =BV3*$BV$48 ->  | CH3: 0.50 | CI3: 0 | CJ3: =CH3*$CI$48 ->  | CK3: =($CH$51-($CJ$33*CJ3))/$CI$51 ->  | CL3: =(($CJ$45-$CI$45)/$CL$45)+(($CK$45/$CL$45)*CK3) ->  | CM3: =$CM$33+((-$CI$39+$CI$42-($CJ$39*$CL$39)-(($CK$39+$CK$42)*$CM$39))/$CL$33)+(($CJ$42/$CL$33)*CK3) ->  | CN3: =CP25 ->  | CO3: =$CI$48 ->  | CP3: =$CH$48 ->  | CQ3: =CI3*$CI$48 ->  | CV3: 0 | CW3: 0.99 | CX3: =CW3*$CW$62 -> 2623.5 | CY3: =($CX$70/$CY$36)-(($CW$70/$CY$36)*CX3) -> 2.53 | CZ3: =(($CY$70-$CY$62)+($CZ$70*CX3))/$DA$51 -> -3.3 | DA3: =($DA$70+$CY$45*CX3)/$CX$58 -> -0.12 | DB3: MAX | DC3: =MAX(CY8:CZ18) -> 4.65 | DE3: MAX | DF3: =MAX(DB8:DC18) -> 2683.125 | DG3: =IF($CZ$30>$DU$30,CX3,DS3) -> 2623.5 | DH3: =$CZ$36 -> 2 | DI3: =$CZ$30 -> 2650 | DJ3: =$CZ$36*CV3 -> 0 | DK3: =IF($CZ$30>$DU$30,CX3,DS3) -> 2623.5 | DL3: =$DU$36 -> 2 | DM3: =$DU$30 -> 2650 | DN3: =$DU$36*CV3 -> 0 | DR3: =+CW3 -> 0.99 | DS3: =DR3*$DR$62 -> 2623.5 | DT3: =($DS$70/$DT$36)-(($DR$70/$DT$36)*DS3) -> 2.53 | DU3: =(($DT$70-$DT$62)+($DU$70*DS3))/$DV$51 -> -3.3 | DV3: =($DV$70+$DT$45*DS3)/$DS$58 -> -0.12 | DW3: MAX | DX3: =MAX(DT8:DU18) -> 4.65 | DZ3: MAX | EA3: =MAX(DW8:DX18) -> 2683.125 | EG3: 0 | EH3: 0.9 | EI3: =+EF$61*EH3 -> 2341.23 | EJ3: =+((-$EH$72*EI3)+($EI$72*$EH$61)+$EG$72)/$EH$37 -> 9.48 | EK3: =+($EJ$72+($EK$72*EI3))/$EJ$52 -> -21.88 | EL3: =+(-$EL$72+($EH$46*EI3)-($EI$72*$EH$61))/$EG$58 -> 4.13 | EM3: MAX | EN3: =MAX(EJ8:EK18) -> 17.14 | EP3: MAX | EQ3: =MAX(EM8:EN18) -> 344885.8726 | ER3: =IF($EI$3>$FE$3,EI3,FE3) -> 2341.226051 | ES3: =$EI$37 -> 4.14 | ET3: =$EI$31 -> 2601.36 | EU3: =$EI$37*EG3 -> 0 | EV3: =IF($CZ$30>$DU$30,EI3,FE3) -> 2341.226051 | EW3: =$FE$34 -> 4.136227843 | EX3: =$FE$31 -> 2601.36 | EY3: =$FE$34*EG3 -> 0 | FD3: =+EH3 -> 0.9 | FE3: =+$FB$58*FD3 -> 2341.23 | FF3: =+((-$FD$69*FE3)+($FE$69*$FD$58)+$FC$69)/$FD$34 -> 9.48 | FG3: =+($FF$69+($FG$69*FE3))/$FF$49 -> -21.88 | FH3: =+(-$FH$69+($FD$43*FE3)-($FE$69*$FD$58))/$FC$55 -> 4.13 | FI3: MAX | FJ3: =MAX(FF8:FG18) -> 17.14 | FL3: MAX | FM3: =MAX(FI8:FJ18) -> 344885.8726
A4: 1 | B4: 0.55 | C4: =((1/F$48)*(G$48))-((1/F$48)*(C$36*D4)) -> 6,161.18 | D4: 5.68 | E4: 14.93 | F4: 6,161.18 | G4: =C$13 -> 5,000.32 | H4: 0.52 | I4: =D$13 -> 10.32 | J4: 250.02 | L4: 6,161.18 | M4: 5.68 | N4: 14.93 | O4: 6,161.18 | P4: =L$13 -> 5,000.32 | Q4: 0.52 | R4: =M$13 -> 10.32 | S4: 250.02 | U4: 1 | V4: 0.55 | W4: 6,161.18 | X4: 5.68 | Y4: 14.93 | Z4: 2750.175299 | AA4: 1.39 | AB4: 5,000.32 | AC4: 0.52 | AD4: 10.32 | AE4: 250.02 | AH4: 6,161.18 | AI4: 5.68 | AJ4: 14.93 | AK4: 2750.175299 | AL4: 1.39 | AM4: 5,000.32 | AN4: 0.52 | AO4: 10.32 | AP4: 250.02 | AV4: 0.55 | AW4: 0.05 | BB4: =BB3+$BD$28 ->  | BI4: 0.55 | BJ4: 0.05 | BO4: =BO3+$BQ$28 ->  | BU4: 0.55 | BV4: 0.05 | CA4: =CA3+$CC$28 ->  | CH4: 0.55 | CI4: 0.05 | CN4: =CN3+$CP$28 ->  | CV4: =CV19 -> 0.0667 | CW4: 0.991 | CX4: 2626.15 | CY4: 2.477 | CZ4: -2.77 | DA4: 0.092 | DB4: MIN | DC4: =MIN(CY8:CZ18) -> -0.65 | DE4: MIN | DF4: =MIN(DB8:DC18) -> -0.65 | DG4: =DG3+DG21 -> 2626.15 | DH4: =$CZ$36 -> 2 | DI4: =$CZ$30 -> 2650 | DJ4: =$CZ$36*CV4 -> 0.1333333333 | DK4: =DK3+DK21 -> 2626.15 | DL4: =$DU$36 -> 2 | DM4: =$DU$30 -> 2650 | DN4: =$DU$36*CV4 -> 0.1333333333 | DR4: =+CW4 -> 0.991 | DS4: 2626.15 | DT4: 2.477 | DU4: -2.77 | DV4: 0.092 | DW4: MIN | DX4: =MIN(DT8:DU18) -> -0.65 | DZ4: MIN | EA4: =MIN(DW8:DX18) -> -0.65 | EG4: =EG19 -> 0.0667 | EH4: 0.91 | EI4: 2367.24 | EJ4: 8.94 | EK4: -19.28 | EL4: 4.13 | EM4: MIN | EN4: =MIN(EJ8:EK18) -> -8.87 | EP4: MIN | EQ4: =MIN(EM8:EN18) -> -339683.148 | ER4: =ER3+ER21 -> 2367.239673 | ES4: =$EI$37 -> 4.14 | ET4: =$EI$31 -> 2601.36 | EU4: =$EI$37*EG4 -> 0.2757485229 | EV4: =EV3+EV21 -> 2367.239673 | EW4: =$FE$34 -> 4.136227843 | EX4: =$FE$31 -> 2601.36 | EY4: =$FE$34*EG4 -> 0.2757485229 | FD4: =+EH4 -> 0.91 | FE4: 2367.24 | FF4: 8.94 | FG4: -19.28 | FH4: 4.13 | FI4: MIN | FJ4: =MIN(FF8:FG18) -> -8.87 | FL4: MIN | FM4: =MIN(FI8:FJ18) -> -339683.148
A5: 2 | B5: 0.60 | C5: =((1/F$48)*(G$48))-((1/F$48)*(C$36*D5)) -> 6,032.19 | D5: 6.19 | E5: 14.41 | F5: 6,032.19 | G5: 5,000.32 | H5: 1.03 | I5: 10.32 | J5: 500.03 | L5: 6,032.19 | M5: 6.19 | N5: 14.41 | O5: 6,032.19 | P5: 5,000.32 | Q5: 1.03 | R5: 10.32 | S5: 500.03 | U5: 2 | V5: 0.60 | W5: 6,032.19 | X5: 6.19 | Y5: 14.41 | Z5: 3000.191235 | AA5: 2.38 | AB5: 5,000.32 | AC5: 1.03 | AD5: 10.32 | AE5: 500.03 | AH5: 6,032.19 | AI5: 6.19 | AJ5: 14.41 | AK5: 3000.191235 | AL5: 2.38 | AM5: 5,000.32 | AN5: 1.03 | AO5: 10.32 | AP5: 500.03 | AV5: 0.60 | AW5: 0.10 | BI5: 0.60 | BJ5: 0.10 | BU5: 0.60 | BV5: 0.10 | CH5: 0.60 | CI5: 0.10 | CV5: =CV4+$CV$19 -> 0.1333 | CW5: 0.992 | CX5: 2628.8 | CY5: 2.424 | CZ5: -2.24 | DA5: 0.304 | DB5: DIF | DC5: =DC3-DC4 -> 5.3 | DE5: DIF | DF5: =DF3-DF4 -> 2683.775 | DG5: =DG4+$DG$21 -> 2628.8 | DH5: 2 | DI5: 2650 | DJ5: 0.2666666667 | DK5: =DK4+$DK$21 -> 2628.8 | DL5: 2 | DM5: 2650 | DN5: 0.2666666667 | DR5: 0.992 | DS5: 2628.8 | DT5: 2.424 | DU5: -2.24 | DV5: 0.304 | DW5: DIF | DX5: =DX3-DX4 -> 5.3 | DZ5: DIF | EA5: =EA3-EA4 -> 2683.775 | EG5: =EG4+$CV$19 -> 0.1333 | EH5: 0.92 | EI5: 2393.25 | EJ5: 8.41 | EK5: -16.67 | EL5: 4.13 | EM5: DIF | EN5: =EN3-EN4 -> 26.01362278 | EP5: DIF | EQ5: =EQ3-EQ4 -> 684569.0206 | ER5: =ER4+$ER$21 -> 2393.253296 | ES5: 4.14 | ET5: 2601.36 | EU5: 0.5514970457 | EV5: =EV4+$EV$21 -> 2393.253296 | EW5: 4.136227843 | EX5: 2601.36 | EY5: 0.5514970457 | FD5: 0.92 | FE5: 2393.25 | FF5: 8.41 | FG5: -16.67 | FH5: 4.13 | FI5: DIF | FJ5: =FJ3-FJ4 -> 26.01 | FL5: DIF | FM5: =FM3-FM4 -> 684569.0206
A6: 3 | B6: 0.65 | C6: 5,903.21 | D6: 6.71 | E6: 13.90 | F6: 5,903.21 | G6: 5,000.32 | H6: 1.55 | I6: 10.32 | J6: 750.05 | L6: 5,903.21 | M6: 6.71 | N6: 13.90 | O6: 5,903.21 | P6: 5,000.32 | Q6: 1.55 | R6: 10.32 | S6: 750.05 | U6: 3 | V6: 0.65 | W6: 5,903.21 | X6: 6.71 | Y6: 13.90 | Z6: 3250.207171 | AA6: 3.37 | AB6: 5,000.32 | AC6: 1.55 | AD6: 10.32 | AE6: 750.05 | AH6: 5,903.21 | AI6: 6.71 | AJ6: 13.90 | AK6: 3250.207171 | AL6: 3.37 | AM6: 5,000.32 | AN6: 1.55 | AO6: 10.32 | AP6: 750.05 | AV6: 0.65 | AW6: 0.15 | BI6: 0.65 | BJ6: 0.15 | BU6: 0.65 | BV6: 0.15 | CH6: 0.65 | CI6: 0.15 | CV6: =CV5+$CV$19 -> 0.2000 | CW6: 0.993 | CX6: 2631.45 | CY6: 2.371 | CZ6: -1.71 | DA6: 0.516 | DB6: SUMAR | DC6: =DC5/2 -> 2.65 | DE6: SUMAR | DF6: =DF5/2 -> 1341.8875 | DG6: 2631.45 | DH6: 2 | DI6: 2650 | DJ6: 0.4 | DK6: =DK5+$DK$21 -> 2631.45 | DL6: 2 | DM6: 2650 | DN6: 0.4 | DR6: 0.993 | DS6: 2631.45 | DT6: 2.371 | DU6: -1.71 | DV6: 0.516 | DW6: SUMAR | DX6: =DX5/2 -> 2.65 | DZ6: SUMAR | EA6: =EA5/2 -> 1341.8875 | EG6: =EG5+$CV$19 -> 0.2000 | EH6: 0.93 | EI6: 2419.27 | EJ6: 7.87 | EK6: -14.07 | EL6: 4.13 | EM6: SUMAR | EN6: =EN5/2 -> 13.00681139 | EP6: SUMAR | EQ6: =EQ5/2 -> 342284.5103 | ER6: =ER5+$ER$21 -> 2419.266919 | ES6: 4.14 | ET6: 2601.36 | EU6: 0.8272455686 | EV6: =EV5+$EV$21 -> 2419.266919 | EW6: 4.136227843 | EX6: 2601.36 | EY6: 0.8272455686 | FD6: 0.93 | FE6: 2419.27 | FF6: 7.87 | FG6: -14.07 | FH6: 4.13 | FI6: SUMAR | FJ6: =FJ5/2 -> 13.00681139 | FL6: SUMAR | FM6: =FM5/2 -> 342284.5103
A7: 4 | B7: 0.70 | C7: 5,774.22 | D7: 7.22 | E7: 13.39 | F7: 5,774.22 | G7: 5,000.32 | H7: 2.06 | I7: 10.32 | J7: 1,000.06 | L7: 5,774.22 | M7: 7.22 | N7: 13.39 | O7: 5,774.22 | P7: 5,000.32 | Q7: 2.06 | R7: 10.32 | S7: 1,000.06 | U7: 4 | V7: 0.70 | W7: 5,774.22 | X7: 7.22 | Y7: 13.39 | Z7: 3500.223108 | AA7: 4.37 | AB7: 5,000.32 | AC7: 2.06 | AD7: 10.32 | AE7: 1,000.06 | AH7: 5,774.22 | AI7: 7.22 | AJ7: 13.39 | AK7: 3500.223108 | AL7: 4.37 | AM7: 5,000.32 | AN7: 2.06 | AO7: 10.32 | AP7: 1,000.06 | AV7: 0.70 | AW7: 0.20 | BI7: 0.70 | BJ7: 0.20 | BU7: 0.70 | BV7: 0.20 | CH7: 0.70 | CI7: 0.20 | CV7: 0.2667 | CW7: 0.994 | CX7: 2634.1 | CY7: 2.318 | CZ7: -1.18 | DA7: 0.728 | DG7: 2634.1 | DH7: 2 | DI7: 2650 | DJ7: 0.5333333333 | DK7: 2634.1 | DL7: 2 | DM7: 2650 | DN7: 0.5333333333 | DR7: 0.994 | DS7: 2634.1 | DT7: 2.318 | DU7: -1.18 | DV7: 0.728 | EG7: 0.2667 | EH7: 0.94 | EI7: 2445.28 | EJ7: 7.34 | EK7: -11.47 | EL7: 4.13 | ER7: 2445.280542 | ES7: 4.14 | ET7: 2601.36 | EU7: 1.102994091 | EV7: 2445.280542 | EW7: 4.136227843 | EX7: 2601.36 | EY7: 1.102994091 | FD7: 0.94 | FE7: 2445.28 | FF7: 7.34 | FG7: -11.47 | FH7: 4.13
A8: 5 | B8: 0.75 | C8: 5,645.24 | D8: 7.74 | E8: 12.88 | F8: 5,645.24 | G8: 5,000.32 | H8: 2.58 | I8: 10.32 | J8: 1,250.08 | L8: 5,645.24 | M8: 7.74 | N8: 12.88 | O8: 5,645.24 | P8: 5,000.32 | Q8: 2.58 | R8: 10.32 | S8: 1,250.08 | U8: 5 | V8: 0.75 | W8: 5,645.24 | X8: 7.74 | Y8: 12.88 | Z8: 3750.239044 | AA8: 5.36 | AB8: 5,000.32 | AC8: 2.58 | AD8: 10.32 | AE8: 1,250.08 | AH8: 5,645.24 | AI8: 7.74 | AJ8: 12.88 | AK8: 3750.239044 | AL8: 5.36 | AM8: 5,000.32 | AN8: 2.58 | AO8: 10.32 | AP8: 1,250.08 | AV8: 0.75 | AW8: 0.25 | BI8: 0.75 | BJ8: 0.25 | BU8: 0.75 | BV8: 0.25 | CH8: 0.75 | CI8: 0.25 | CV8: 0.3333 | CW8: 0.995 | CX8: 2636.75 | CY8: 2.265 | CZ8: -0.65 | DA8: 0.94 | DB8: =(CX58/CY45)*(DC8-CZ58-((-CX55+DC55-CY55*CZ55-((DA55+DF55)*DG55))/CX58)) -> 2616.875 | DC8: =$DC$13-($DC$6*DD8) -> -0.65 | DD8: 1 | DE8: =IF($DE$21>=$DF$21,CX8,DB8) -> 2636.75 | DF8: =IF($DE$21>=$DF$21,DA8,DC8) -> 0.94 | DG8: 2636.75 | DH8: 2 | DI8: 2650 | DJ8: 0.6666666667 | DK8: 2636.75 | DL8: 2 | DM8: 2650 | DN8: 0.6666666667 | DR8: 0.995 | DS8: 2636.75 | DT8: =($DS$70/$DT$36)-(($DR$70/$DT$36)*DS8) -> 2.265 | DU8: =(($DT$70-$DT$62)+($DU$70*DS8))/$DV$51 -> -0.65 | DV8: 0.94 | DW8: =($DS$58/$DT$45)*(DX8-$DU$58-((-$DS$55+$DX$55-$DT$55*$DU$55-(($DV$55+$EA$55)*$EB$55))/$DS$58)) -> 2616.875 | DX8: =$DX$13-($DX$6*DY8) -> -0.65 | DY8: 1 | DZ8: =IF($DZ$21>=$EA$21,DS8,DW8) -> 2636.75 | EA8: =IF($DZ$21>=$EA$21,DV8,DX8) -> 0.94 | EG8: 0.3333 | EH8: 0.95 | EI8: 2471.29 | EJ8: 6.81 | EK8: -8.87 | EL8: 4.13 | EM8: =+(($EP$55*($EJ$55+$EO$55))-(($EG$58*($EI$58-EN8)))-(-$EG$55+$EL$55-($EH$55*$EI$55)))/$EM$55 -> -339683.148 | EN8: =+$EN$13-($EN$6*EO8) -> -8.870583549 | EO8: 1 | EP8: =+IF($EP$21>=$EQ$21,EI8,EM8) -> 2471.294165 | EQ8: =+IF($EP$21>=$EQ$21,EL8,EN8) -> 4.131285255 | ER8: 2471.294165 | ES8: 4.14 | ET8: 2601.36 | EU8: 1.378742614 | EV8: 2471.294165 | EW8: 4.136227843 | EX8: 2601.36 | EY8: 1.378742614 | FD8: 0.95 | FE8: 2471.29 | FF8: 6.81 | FG8: -8.87 | FH8: 4.13 | FI8: =+(($FL$52*($FF$52+$FK$52))-(($FC$55*($FE$55-FJ8)))-(-$FC$52+$FH$52-($FD$52*$FE$52)))/$FI$52 -> -339683.148 | FJ8: =+$FJ$13-($FJ$6*FK8) -> -8.870583549 | FK8: 1 | FL8: =+IF($FL$21>=$FM$21,FE8,FI8) -> 2471.294165 | FM8: =+IF($FL$21>=$FM$21,FH8,FJ8) -> 4.131285255
A9: 6 | B9: 0.80 | C9: 5,516.25 | D9: 8.25 | E9: 12.37 | F9: 5,516.25 | G9: 5,000.32 | H9: 3.10 | I9: 10.32 | J9: 1,500.10 | L9: 5,516.25 | M9: 8.25 | N9: 12.37 | O9: 5,516.25 | P9: 5,000.32 | Q9: 3.10 | R9: 10.32 | S9: 1,500.10 | U9: 6 | V9: 0.80 | W9: 5,516.25 | X9: 8.25 | Y9: 12.37 | Z9: 4000.25498 | AA9: 6.35 | AB9: 5,000.32 | AC9: 3.10 | AD9: 10.32 | AE9: 1,500.10 | AH9: 5,516.25 | AI9: 8.25 | AJ9: 12.37 | AK9: 4000.25498 | AL9: 6.35 | AM9: 5,000.32 | AN9: 3.10 | AO9: 10.32 | AP9: 1,500.10 | AV9: 0.80 | AW9: 0.30 | BI9: 0.80 | BJ9: 0.30 | BU9: 0.80 | BV9: 0.30 | CH9: 0.80 | CI9: 0.30 | CV9: 0.4000 | CW9: 0.996 | CX9: 2639.4 | CY9: 2.212 | CZ9: -0.12 | DA9: 1.152 | DB9: =($CX$58/$CY$45)*(DC9-$CZ$58-((-$CX$55+$DC$55-$CY$55*$CZ$55-(($DA$55+$DF$55)*$DG$55))/$CX$58)) -> 2623.5 | DC9: =$DC$13-($DC$6*DD9) -> -0.12 | DD9: 0.8 | DE9: =IF($DE$21>=$DF$21,CX9,DB9) -> 2639.4 | DF9: =IF($DE$21>=$DF$21,DA9,DC9) -> 1.152 | DG9: 2639.4 | DH9: 2 | DI9: 2650 | DJ9: 0.8 | DK9: 2639.4 | DL9: 2 | DM9: 2650 | DN9: 0.8 | DR9: 0.996 | DS9: 2639.4 | DT9: 2.212 | DU9: -0.12 | DV9: 1.152 | DW9: 2623.5 | DX9: =$DX$13-($DX$6*DY9) -> -0.12 | DY9: 0.8 | DZ9: =IF($DZ$21>=$EA$21,DS9,DW9) -> 2639.4 | EA9: =IF($DZ$21>=$EA$21,DV9,DX9) -> 1.152 | EG9: 0.4000 | EH9: 0.96 | EI9: 2497.31 | EJ9: 6.27 | EK9: -6.27 | EL9: 4.13 | EM9: -271226.246 | EN9: =+$EN$13-($EN$6*EO9) -> -6.269221271 | EO9: 0.8 | EP9: 2497.307787 | EQ9: 4.132273772 | ER9: 2497.307787 | ES9: 4.14 | ET9: 2601.36 | EU9: 1.654491137 | EV9: 2497.307787 | EW9: 4.136227843 | EX9: 2601.36 | EY9: 1.654491137 | FD9: 0.96 | FE9: 2497.31 | FF9: 6.27 | FG9: -6.27 | FH9: 4.13 | FI9: -271226.246 | FJ9: =+$FJ$13-($FJ$6*FK9) -> -6.269221271 | FK9: 0.8 | FL9: =+IF($FL$21>=$FM$21,FE9,FI9) -> 2497.307787 | FM9: =+IF($FL$21>=$FM$21,FH9,FJ9) -> 4.132273772
A10: 7 | B10: 0.85 | C10: 5,387.27 | D10: 8.77 | E10: 11.85 | F10: 5,387.27 | G10: 5,000.32 | H10: 3.61 | I10: 10.32 | J10: 1,750.11 | L10: 5,387.27 | M10: 8.77 | N10: 11.85 | O10: 5,387.27 | P10: 5,000.32 | Q10: 3.61 | R10: 10.32 | S10: 1,750.11 | U10: 7 | V10: 0.85 | W10: 5,387.27 | X10: 8.77 | Y10: 11.85 | Z10: 4250.270916 | AA10: 7.34 | AB10: 5,000.32 | AC10: 3.61 | AD10: 10.32 | AE10: 1,750.11 | AH10: 5,387.27 | AI10: 8.77 | AJ10: 11.85 | AK10: 4250.270916 | AL10: 7.34 | AM10: 5,000.32 | AN10: 3.61 | AO10: 10.32 | AP10: 1,750.11 | AV10: 0.85 | AW10: 0.35 | BI10: 0.85 | BJ10: 0.35 | BU10: 0.85 | BV10: 0.35 | CH10: 0.85 | CI10: 0.35 | CV10: 0.4667 | CW10: 0.997 | CX10: 2642.05 | CY10: 2.159 | CZ10: 0.41 | DA10: 1.364 | DB10: 2630.125 | DC10: =$DC$13-($DC$6*DD10) -> 0.41 | DD10: 0.6 | DE10: 2642.05 | DF10: 1.364 | DG10: 2642.05 | DH10: 2 | DI10: 2650 | DJ10: 0.9333333333 | DK10: 2642.05 | DL10: 2 | DM10: 2650 | DN10: 0.9333333333 | DR10: 0.997 | DS10: 2642.05 | DT10: 2.159 | DU10: 0.41 | DV10: 1.364 | DW10: 2630.125 | DX10: =$DX$13-($DX$6*DY10) -> 0.41 | DY10: 0.6 | DZ10: 2642.05 | EA10: 1.364 | EG10: 0.4667 | EH10: 0.97 | EI10: 2523.32 | EJ10: 5.74 | EK10: -3.67 | EL10: 4.13 | EM10: -202769.3439 | EN10: =+$EN$13-($EN$6*EO10) -> -3.667858992 | EO10: 0.6 | EP10: 2523.32141 | EQ10: 4.13326229 | ER10: 2523.32141 | ES10: 4.14 | ET10: 2601.36 | EU10: 1.93023966 | EV10: 2523.32141 | EW10: 4.136227843 | EX10: 2601.36 | EY10: 1.93023966 | FD10: 0.97 | FE10: 2523.32 | FF10: 5.74 | FG10: -3.67 | FH10: 4.13 | FI10: -202769.3439 | FJ10: =+$FJ$13-($FJ$6*FK10) -> -3.667858992 | FK10: 0.6 | FL10: 2523.32141 | FM10: 4.13326229
A11: 8 | B11: 0.90 | C11: 5,258.29 | D11: 9.29 | E11: 11.34 | F11: 5,258.29 | G11: 5,000.32 | H11: 4.13 | I11: 10.32 | J11: 2,000.13 | L11: 5,258.29 | M11: 9.29 | N11: 11.34 | O11: 5,258.29 | P11: 5,000.32 | Q11: 4.13 | R11: 10.32 | S11: 2,000.13 | U11: 8 | V11: 0.90 | W11: 5,258.29 | X11: 9.29 | Y11: 11.34 | Z11: 4500.286853 | AA11: 8.33 | AB11: 5,000.32 | AC11: 4.13 | AD11: 10.32 | AE11: 2,000.13 | AH11: 5,258.29 | AI11: 9.29 | AJ11: 11.34 | AK11: 4500.286853 | AL11: 8.33 | AM11: 5,000.32 | AN11: 4.13 | AO11: 10.32 | AP11: 2,000.13 | AV11: 0.90 | AW11: 0.40 | BI11: 0.90 | BJ11: 0.40 | BU11: 0.90 | BV11: 0.40 | CH11: 0.90 | CI11: 0.40 | CV11: 0.5333 | CW11: 0.998 | CX11: 2644.7 | CY11: 2.106 | CZ11: 0.94 | DA11: 1.576 | DB11: 2636.75 | DC11: =$DC$13-($DC$6*DD11) -> 0.94 | DD11: 0.4 | DE11: 2644.7 | DF11: 1.576 | DG11: 2644.7 | DH11: 2 | DI11: 2650 | DJ11: 1.066666667 | DK11: 2644.7 | DL11: 2 | DM11: 2650 | DN11: 1.066666667 | DR11: 0.998 | DS11: 2644.7 | DT11: 2.106 | DU11: 0.94 | DV11: 1.576 | DW11: 2636.75 | DX11: =$DX$13-($DX$6*DY11) -> 0.94 | DY11: 0.4 | DZ11: 2644.7 | EA11: 1.576 | EG11: 0.5333 | EH11: 0.98 | EI11: 2549.34 | EJ11: 5.20 | EK11: -1.07 | EL11: 4.13 | EM11: -134312.4418 | EN11: =+$EN$13-($EN$6*EO11) -> -1.066496714 | EO11: 0.4 | EP11: 2549.335033 | EQ11: 4.134250808 | ER11: 2549.335033 | ES11: 4.14 | ET11: 2601.36 | EU11: 2.205988183 | EV11: 2549.335033 | EW11: 4.136227843 | EX11: 2601.36 | EY11: 2.205988183 | FD11: 0.98 | FE11: 2549.34 | FF11: 5.20 | FG11: -1.07 | FH11: 4.13 | FI11: -134312.4418 | FJ11: =+$FJ$13-($FJ$6*FK11) -> -1.066496714 | FK11: 0.4 | FL11: 2549.335033 | FM11: 4.134250808
A12: 9 | B12: 0.95 | C12: 5,129.30 | D12: 9.80 | E12: 10.83 | F12: 5,129.30 | G12: 5,000.32 | H12: 4.64 | I12: 10.32 | J12: 2,250.14 | L12: 5,129.30 | M12: 9.80 | N12: 10.83 | O12: 5,129.30 | P12: 5,000.32 | Q12: 4.64 | R12: 10.32 | S12: 2,250.14 | U12: 9 | V12: 0.95 | W12: 5,129.30 | X12: 9.80 | Y12: 10.83 | Z12: 4750.302789 | AA12: 9.33 | AB12: 5,000.32 | AC12: 4.64 | AD12: 10.32 | AE12: 2,250.14 | AH12: 5,129.30 | AI12: 9.80 | AJ12: 10.83 | AK12: 4750.302789 | AL12: 9.33 | AM12: 5,000.32 | AN12: 4.64 | AO12: 10.32 | AP12: 2,250.14 | AV12: 0.95 | AW12: 0.45 | BI12: 0.95 | BJ12: 0.45 | BU12: 0.95 | BV12: 0.45 | CH12: 0.95 | CI12: 0.45 | CV12: 0.6000 | CW12: 0.999 | CX12: 2647.35 | CY12: 2.053 | CZ12: 1.47 | DA12: 1.788 | DB12: 2643.375 | DC12: =$DC$13-($DC$6*DD12) -> 1.47 | DD12: 0.2 | DE12: 2647.35 | DF12: 1.788 | DG12: 2647.35 | DH12: 2 | DI12: 2650 | DJ12: 1.2 | DK12: 2647.35 | DL12: 2 | DM12: 2650 | DN12: 1.2 | DR12: 0.999 | DS12: 2647.35 | DT12: 2.053 | DU12: 1.47 | DV12: 1.788 | DW12: 2643.375 | DX12: =$DX$13-($DX$6*DY12) -> 1.47 | DY12: 0.2 | DZ12: 2647.35 | EA12: 1.788 | EG12: 0.6000 | EH12: 0.99 | EI12: 2575.35 | EJ12: 4.67 | EK12: 1.53 | EL12: 4.14 | EM12: -65855.53979 | EN12: =+$EN$13-($EN$6*EO12) -> 1.534865565 | EO12: 0.2 | EP12: 2575.348656 | EQ12: 4.135239325 | ER12: 2575.348656 | ES12: 4.14 | ET12: 2601.36 | EU12: 2.481736706 | EV12: 2575.348656 | EW12: 4.136227843 | EX12: 2601.36 | EY12: 2.481736706 | FD12: 0.99 | FE12: 2575.35 | FF12: 4.67 | FG12: 1.53 | FH12: 4.14 | FI12: -65855.53979 | FJ12: =+$FJ$13-($FJ$6*FK12) -> 1.534865565 | FK12: 0.2 | FL12: 2575.348656 | FM12: 4.135239325
A13: 10 | B13: 1.00 | C13: 5,000.32 | D13: =B$48*B13 -> 10.32 | E13: 10.32 | F13: =C13 -> 5,000.32 | G13: 5,000.32 | H13: 5.16 | I13: 10.32 | J13: 2,500.16 | L13: 5,000.32 | M13: =M$48*B13 -> 10.32 | N13: 10.32 | O13: =L13 -> 5,000.32 | P13: 5,000.32 | Q13: 5.16 | R13: 10.32 | S13: 2,500.16 | U13: 10 | V13: 1.00 | W13: 5,000.32 | X13: 10.32 | Y13: 10.32 | Z13: 5000.318725 | AA13: 10.32 | AB13: 5,000.32 | AC13: 5.16 | AD13: 10.32 | AE13: 2,500.16 | AF13: =((1/Z56)*(AA56))-((1/Z56)*(W40*-1*X13)) -> 5,000.32 | AH13: 5,000.32 | AI13: 10.32 | AJ13: 10.32 | AK13: 5,000.32 | AL13: 10.32 | AM13: 5,000.32 | AN13: 5.16 | AO13: 10.32 | AP13: 2,500.16 | AV13: 1.00 | AW13: 0.50 | AX13: =AV13*$AW$48 ->  | BI13: 1.00 | BJ13: 0.50 | BU13: 1.00 | BV13: 0.50 | CH13: 1.00 | CI13: 0.50 | CV13: 0.6667 | CW13: 1 | CX13: 2650 | CY13: 2 | CZ13: 2 | DA13: 2 | DB13: 2650 | DC13: =DA13 -> 2 | DD13: 0 | DE13: 2650 | DF13: 2 | DG13: =CX13 -> 2650 | DH13: 2 | DI13: 2650 | DJ13: 1.333333333 | DK13: =DS13 -> 2650 | DL13: 2 | DM13: 2650 | DN13: 1.333333333 | DR13: 1 | DS13: 2650 | DT13: 2 | DU13: 2 | DV13: 2 | DW13: 2650 | DX13: =DV13 -> 2 | DY13: 0 | DZ13: 2650 | EA13: 2 | EG13: 0.6667 | EH13: 1 | EI13: 2601.36 | EJ13: 4.14 | EK13: 4.14 | EL13: 4.14 | EM13: 2601.36 | EN13: =+EL13 -> 4.14 | EO13: 0 | EP13: 2601.362278 | EQ13: 4.136227843 | ER13: =EI13 -> 2601.36 | ES13: 4.14 | ET13: 2601.36 | EU13: 2.757485229 | EV13: =FE13 -> 2601.36 | EW13: 4.136227843 | EX13: 2601.36 | EY13: 2.757485229 | FD13: 1 | FE13: 2601.36 | FF13: 4.14 | FG13: 4.14 | FH13: 4.14 | FI13: 2601.36 | FJ13: =+FH13 -> 4.14 | FK13: 0 | FL13: 2601.362278 | FM13: 4.136227843
A14: 11 | B14: 1.05 | C14: 4,871.33 | D14: =B$48*B14 -> 10.83 | E14: 9.81 | F14: =C14 -> 4,871.33 | G14: 5,000.32 | H14: 5.68 | I14: 10.32 | J14: 2,750.18 | L14: 4,871.33 | M14: =M$48*B14 -> 10.83 | N14: 9.81 | O14: =L14 -> 4,871.33 | P14: 5,000.32 | Q14: 5.68 | R14: 10.32 | S14: 2,750.18 | U14: 11 | V14: 1.05 | W14: 4,871.33 | X14: 10.83 | Y14: 9.81 | Z14: 5250.334661 | AA14: 11.31 | AB14: 5,000.32 | AC14: 5.68 | AD14: 10.32 | AE14: 2,750.18 | AH14: 4,871.33 | AI14: 10.83 | AJ14: 9.81 | AK14: 5250.334661 | AL14: 11.31 | AM14: 5,000.32 | AN14: 5.68 | AO14: 10.32 | AP14: 2,750.18 | AV14: 1.05 | AW14: 0.55 | BI14: 1.05 | BJ14: 0.55 | BU14: 1.05 | BV14: 0.55 | CH14: 1.05 | CI14: 0.55 | CV14: 0.7333 | CW14: 1.001 | CX14: 2652.65 | CY14: 1.947 | CZ14: 2.53 | DA14: 2.212 | DB14: 2656.625 | DC14: =$DC$13+($DC$6*DD14) -> 2.53 | DD14: 0.2 | DE14: 2652.65 | DF14: 2.212 | DI14: 2650 | DJ14: 1.466666667 | DM14: 2650 | DN14: 1.466666667 | DR14: 1.001 | DS14: 2652.65 | DT14: 1.947 | DU14: 2.53 | DV14: 2.212 | DW14: 2656.625 | DX14: =$DX$13+($DX$6*DY14) -> 2.53 | DY14: 0.2 | DZ14: 2652.65 | EA14: 2.212 | EG14: 0.7333 | EH14: 1.01 | EI14: 2627.38 | EJ14: 3.60 | EK14: 6.74 | EL14: 4.14 | EM14: 71058.26434 | EN14: =+$EN$13+($EN$6*EO14) -> 6.737590121 | EO14: 0.2 | EP14: 2627.375901 | EQ14: 4.137216361 | ET14: 2601.36 | EU14: 3.033233752 | EX14: 2601.36 | EY14: 3.033233752 | FD14: 1.01 | FE14: 2627.38 | FF14: 3.60 | FG14: 6.74 | FH14: 4.14 | FI14: 71058.26434 | FJ14: =+$FJ$13+($FJ$6*FK14) -> 6.737590121 | FK14: 0.2 | FL14: 2627.375901 | FM14: 4.137216361
A15: 12 | B15: 1.10 | C15: 4,742.35 | D15: 11.35 | E15: 9.30 | F15: 4,742.35 | G15: 5,000.32 | H15: 6.19 | I15: 10.32 | J15: 3,000.19 | L15: 4,742.35 | M15: 11.35 | N15: 9.30 | O15: 4,742.35 | P15: 5,000.32 | Q15: 6.19 | R15: 10.32 | S15: 3,000.19 | U15: 12 | V15: 1.10 | W15: 4,742.35 | X15: 11.35 | Y15: 9.30 | Z15: 5500.350598 | AA15: 12.30 | AB15: 5,000.32 | AC15: 6.19 | AD15: 10.32 | AE15: 3,000.19 | AH15: 4,742.35 | AI15: 11.35 | AJ15: 9.30 | AK15: 5500.350598 | AL15: 12.30 | AM15: 5,000.32 | AN15: 6.19 | AO15: 10.32 | AP15: 3,000.19 | AV15: 1.10 | AW15: 0.60 | BI15: 1.10 | BJ15: 0.60 | BU15: 1.10 | BV15: 0.60 | CH15: 1.10 | CI15: 0.60 | CV15: 0.8000 | CW15: 1.002 | CX15: 2655.3 | CY15: 1.894 | CZ15: 3.06 | DA15: 2.424 | DB15: 2663.25 | DC15: =$DC$13+($DC$6*DD15) -> 3.06 | DD15: 0.4 | DE15: 2655.3 | DF15: 2.424 | DI15: 2650 | DJ15: 1.6 | DM15: 2650 | DN15: 1.6 | DR15: 1.002 | DS15: 2655.3 | DT15: 1.894 | DU15: 3.06 | DV15: 2.424 | DW15: 2663.25 | DX15: =$DX$13+($DX$6*DY15) -> 3.06 | DY15: 0.4 | DZ15: 2655.3 | EA15: 2.424 | EG15: 0.8000 | EH15: 1.02 | EI15: 2653.39 | EJ15: 3.07 | EK15: 9.34 | EL15: 4.14 | EM15: 139515.1664 | EN15: =+$EN$13+($EN$6*EO15) -> 9.3389524 | EO15: 0.4 | EP15: 2653.389524 | EQ15: 4.138204878 | ET15: 2601.36 | EU15: 3.308982274 | EX15: 2601.36 | EY15: 3.308982274 | FD15: 1.02 | FE15: 2653.39 | FF15: 3.07 | FG15: 9.34 | FH15: 4.14 | FI15: 139515.1664 | FJ15: =+$FJ$13+($FJ$6*FK15) -> 9.3389524 | FK15: 0.4 | FL15: 2653.389524 | FM15: 4.138204878
A16: 13 | B16: 1.15 | C16: 4,613.37 | D16: 11.87 | E16: 8.78 | F16: 4,613.37 | G16: 5,000.32 | H16: 6.71 | I16: 10.32 | J16: 3,250.21 | L16: 4,613.37 | M16: 11.87 | N16: 8.78 | O16: 4,613.37 | P16: 5,000.32 | Q16: 6.71 | R16: 10.32 | S16: 3,250.21 | U16: 13 | V16: 1.15 | W16: 4,613.37 | X16: 11.87 | Y16: 8.78 | Z16: 5750.366534 | AA16: 13.30 | AB16: 5,000.32 | AC16: 6.71 | AD16: 10.32 | AE16: 3,250.21 | AH16: 4,613.37 | AI16: 11.87 | AJ16: 8.78 | AK16: 5750.366534 | AL16: 13.30 | AM16: 5,000.32 | AN16: 6.71 | AO16: 10.32 | AP16: 3,250.21 | AV16: 1.15 | AW16: 0.65 | BI16: 1.15 | BJ16: 0.65 | BU16: 1.15 | BV16: 0.65 | CH16: 1.15 | CI16: 0.65 | CV16: 0.8667 | CW16: 1.003 | CX16: 2657.95 | CY16: 1.841 | CZ16: 3.59 | DA16: 2.636 | DB16: 2669.875 | DC16: =$DC$13+($DC$6*DD16) -> 3.59 | DD16: 0.6 | DE16: 2657.95 | DF16: 2.636 | DI16: 2650 | DJ16: 1.733333333 | DM16: 2650 | DN16: 1.733333333 | DR16: 1.003 | DS16: 2657.95 | DT16: 1.841 | DU16: 3.59 | DV16: 2.636 | DW16: 2669.875 | DX16: =$DX$13+($DX$6*DY16) -> 3.59 | DY16: 0.6 | DZ16: 2657.95 | EA16: 2.636 | EG16: 0.8667 | EH16: 1.03 | EI16: 2679.40 | EJ16: 2.53 | EK16: 11.94 | EL16: 4.14 | EM16: 207972.0685 | EN16: =+$EN$13+($EN$6*EO16) -> 11.94031468 | EO16: 0.6 | EP16: 2679.403147 | EQ16: 4.139193396 | ET16: 2601.36 | EU16: 3.584730797 | EX16: 2601.36 | EY16: 3.584730797 | FD16: 1.03 | FE16: 2679.40 | FF16: 2.53 | FG16: 11.94 | FH16: 4.14 | FI16: 207972.0685 | FJ16: =+$FJ$13+($FJ$6*FK16) -> 11.94031468 | FK16: 0.6 | FL16: 2679.403147 | FM16: 4.139193396
A17: 14 | B17: 1.20 | C17: 4,484.38 | D17: 12.38 | E17: 8.27 | F17: 4,484.38 | G17: 5,000.32 | H17: 7.22 | I17: 10.32 | J17: 3,500.22 | L17: 4,484.38 | M17: 12.38 | N17: 8.27 | O17: 4,484.38 | P17: 5,000.32 | Q17: 7.22 | R17: 10.32 | S17: 3,500.22 | U17: 14 | V17: 1.20 | W17: 4,484.38 | X17: 12.38 | Y17: 8.27 | Z17: 6000.38247 | AA17: 14.29 | AB17: 5,000.32 | AC17: 7.22 | AD17: 10.32 | AE17: 3,500.22 | AH17: 4,484.38 | AI17: 12.38 | AJ17: 8.27 | AK17: 6000.38247 | AL17: 14.29 | AM17: 5,000.32 | AN17: 7.22 | AO17: 10.32 | AP17: 3,500.22 | AV17: 1.20 | AW17: 0.70 | BI17: 1.20 | BJ17: 0.70 | BU17: 1.20 | BV17: 0.70 | CH17: 1.20 | CI17: 0.70 | CV17: 0.9333 | CW17: 1.004 | CX17: 2660.6 | CY17: 1.788 | CZ17: 4.12 | DA17: 2.848 | DB17: 2676.5 | DC17: =$DC$13+($DC$6*DD17) -> 4.12 | DD17: 0.8 | DE17: 2660.6 | DF17: 2.848 | DI17: 2650 | DJ17: 1.866666667 | DM17: 2650 | DN17: 1.866666667 | DR17: 1.004 | DS17: 2660.6 | DT17: 1.788 | DU17: 4.12 | DV17: 2.848 | DW17: 2676.5 | DX17: =$DX$13+($DX$6*DY17) -> 4.12 | DY17: 0.8 | DZ17: 2660.6 | EA17: 2.848 | EG17: 0.9333 | EH17: 1.04 | EI17: 2705.42 | EJ17: 2.00 | EK17: 14.54 | EL17: 4.14 | EM17: 276428.9705 | EN17: =+$EN$13+($EN$6*EO17) -> 14.54167696 | EO17: 0.8 | EP17: 2705.41677 | EQ17: 4.140181914 | ET17: 2601.36 | EU17: 3.86047932 | EX17: 2601.36 | EY17: 3.86047932 | FD17: 1.04 | FE17: 2705.42 | FF17: 2.00 | FG17: 14.54 | FH17: 4.14 | FI17: 276428.9705 | FJ17: =+$FJ$13+($FJ$6*FK17) -> 14.54167696 | FK17: 0.8 | FL17: 2705.41677 | FM17: 4.140181914
A18: 15 | B18: 1.25 | C18: 4,355.40 | D18: 12.90 | E18: 7.76 | F18: 4,355.40 | G18: 5,000.32 | H18: 7.74 | I18: 10.32 | J18: 3,750.24 | L18: 4,355.40 | M18: 12.90 | N18: 7.76 | O18: 4,355.40 | P18: 5,000.32 | Q18: 7.74 | R18: 10.32 | S18: 3,750.24 | U18: 15 | V18: 1.25 | W18: 4,355.40 | X18: 12.90 | Y18: 7.76 | Z18: 6250.398406 | AA18: 15.28 | AB18: 5,000.32 | AC18: 7.74 | AD18: 10.32 | AE18: 3,750.24 | AH18: 4,355.40 | AI18: 12.90 | AJ18: 7.76 | AK18: 6250.398406 | AL18: 15.28 | AM18: 5,000.32 | AN18: 7.74 | AO18: 10.32 | AP18: 3,750.24 | AV18: 1.25 | AW18: 0.75 | BI18: 1.25 | BJ18: 0.75 | BU18: 1.25 | BV18: 0.75 | CH18: 1.25 | CI18: 0.75 | CV18: 1.0000 | CW18: 1.005 | CX18: 2663.25 | CY18: 1.735 | CZ18: 4.65 | DA18: 3.06 | DB18: 2683.125 | DC18: =$DC$13+($DC$6*DD18) -> 4.65 | DD18: 1 | DE18: 2663.25 | DF18: 3.06 | DI18: 2650 | DJ18: 2 | DM18: 2650 | DN18: 2 | DR18: 1.005 | DS18: 2663.25 | DT18: 1.735 | DU18: 4.65 | DV18: 3.06 | DW18: 2683.125 | DX18: =$DX$13+($DX$6*DY18) -> 4.65 | DY18: 1 | DZ18: 2663.25 | EA18: 3.06 | EG18: 1.0000 | EH18: 1.05 | EI18: 2731.43 | EJ18: 1.47 | EK18: 17.14 | EL18: 4.14 | EM18: 344885.8726 | EN18: =+$EN$13+($EN$6*EO18) -> 17.14303924 | EO18: 1 | EP18: 2731.430392 | EQ18: 4.141170431 | ET18: 2601.36 | EU18: 4.136227843 | EX18: 2601.36 | EY18: 4.136227843 | FD18: 1.05 | FE18: 2731.43 | FF18: 1.47 | FG18: 17.14 | FH18: 4.14 | FI18: 344885.8726 | FJ18: =+$FJ$13+($FJ$6*FK18) -> 17.14303924 | FK18: 1 | FL18: 2731.430392 | FM18: 4.141170431
A19: 16 | B19: 1.30 | C19: 4,226.41 | D19: 13.41 | E19: 7.25 | F19: 4,226.41 | G19: 5,000.32 | H19: 8.25 | I19: 10.32 | J19: 4,000.25 | L19: 4,226.41 | M19: 13.41 | N19: 7.25 | O19: 4,226.41 | P19: 5,000.32 | Q19: 8.25 | R19: 10.32 | S19: 4,000.25 | U19: 16 | V19: 1.30 | W19: 4,226.41 | X19: 13.41 | Y19: 7.25 | Z19: 6500.414343 | AA19: 16.27 | AB19: 5,000.32 | AC19: 8.25 | AD19: 10.32 | AE19: 4,000.25 | AH19: 4,226.41 | AI19: 13.41 | AJ19: 7.25 | AK19: 6500.414343 | AL19: 16.27 | AM19: 5,000.32 | AN19: 8.25 | AO19: 10.32 | AP19: 4,000.25 | AV19: 1.30 | AW19: 0.80 | BI19: 1.30 | BJ19: 0.80 | BU19: 1.30 | BV19: 0.80 | CH19: 1.30 | CI19: 0.80 | CV19: =1/15 -> 0.06666666667 | EG19: =1/15 -> 0.06666666667
A20: 17 | B20: 1.35 | C20: 4,097.43 | D20: 13.93 | E20: 6.74 | F20: 4,097.43 | G20: 5,000.32 | H20: 8.77 | I20: 10.32 | J20: 4,250.27 | L20: 4,097.43 | M20: 13.93 | N20: 6.74 | O20: 4,097.43 | P20: 5,000.32 | Q20: 8.77 | R20: 10.32 | S20: 4,250.27 | U20: 17 | V20: 1.35 | W20: 4,097.43 | X20: 13.93 | Y20: 6.74 | Z20: 6750.430279 | AA20: 17.26 | AB20: 5,000.32 | AC20: 8.77 | AD20: 10.32 | AE20: 4,250.27 | AH20: 4,097.43 | AI20: 13.93 | AJ20: 6.74 | AK20: 6750.430279 | AL20: 17.26 | AM20: 5,000.32 | AN20: 8.77 | AO20: 10.32 | AP20: 4,250.27 | AV20: 1.35 | AW20: 0.85 | BI20: 1.35 | BJ20: 0.85 | BU20: 1.35 | BV20: 0.85 | CH20: 1.35 | CI20: 0.85 | DE20: LM | DF20: BP | DZ20: LM | EA20: BP | EP20: LM | EQ20: BP
A21: 18 | B21: 1.40 | C21: 3,968.45 | D21: 14.45 | E21: 6.22 | F21: 3,968.45 | G21: 5,000.32 | H21: 9.29 | I21: 10.32 | J21: 4,500.29 | L21: 3,968.45 | M21: 14.45 | N21: 6.22 | O21: 3,968.45 | P21: 5,000.32 | Q21: 9.29 | R21: 10.32 | S21: 4,500.29 | U21: 18 | V21: 1.40 | W21: 3,968.45 | X21: 14.45 | Y21: 6.22 | Z21: 7000.446215 | AA21: 18.26 | AB21: 5,000.32 | AC21: 9.29 | AD21: 10.32 | AE21: 4,500.29 | AH21: 3,968.45 | AI21: 14.45 | AJ21: 6.22 | AK21: 7000.446215 | AL21: 18.26 | AM21: 5,000.32 | AN21: 9.29 | AO21: 10.32 | AP21: 4,500.29 | AV21: 1.40 | AW21: 0.90 | BI21: 1.40 | BJ21: 0.90 | BU21: 1.40 | BV21: 0.90 | CH21: 1.40 | CI21: 0.90 | DE21: =CY51/DA51 -> 0.2 | DF21: =CY45/CX58 -> 0.08 | DG21: =(DG13-DG3)/10 -> 2.65 | DK21: =(DK13-DK3)/10 -> 2.65 | DZ21: =DT51/DV51 -> 0.2 | EA21: =DT45/DS58 -> 0.08 | EP21: =+EH52/EJ52 -> 0.1 | EQ21: =+EH46/EG58 -> 3.8e-05 | ER21: =(ER13-ER3)/10 -> 26.01362278 | EV21: =(EV13-EV3)/10 -> 26.01362278 | FL21: =+FD49/FF49 -> 0.1 | FM21: =+FD43/FC55 -> 3.8e-05
A22: 19 | B22: 1.45 | C22: 3,839.46 | D22: 14.96 | E22: 5.71 | F22: 3,839.46 | G22: 5,000.32 | H22: 9.80 | I22: 10.32 | J22: 4,750.30 | L22: 3,839.46 | M22: 14.96 | N22: 5.71 | O22: 3,839.46 | P22: 5,000.32 | Q22: 9.80 | R22: 10.32 | S22: 4,750.30 | U22: 19 | V22: 1.45 | W22: 3,839.46 | X22: 14.96 | Y22: 5.71 | Z22: 7250.462151 | AA22: 19.25 | AB22: 5,000.32 | AC22: 9.80 | AD22: 10.32 | AE22: 4,750.30 | AH22: 3,839.46 | AI22: 14.96 | AJ22: 5.71 | AK22: 7250.462151 | AL22: 19.25 | AM22: 5,000.32 | AN22: 9.80 | AO22: 10.32 | AP22: 4,750.30 | AV22: 1.45 | AW22: 0.95 | BI22: 1.45 | BJ22: 0.95 | BU22: 1.45 | BV22: 0.95 | CH22: 1.45 | CI22: 0.95 | CQ22: =CI22*$CI$48 -> 
A23: 20 | B23: 1.50 | C23: 3,710.48 | D23: 15.48 | E23: 5.20 | F23: 3,710.48 | G23: 5,000.32 | H23: 10.32 | I23: 10.32 | J23: 5,000.32 | L23: 3,710.48 | M23: 15.48 | N23: 5.20 | O23: 3,710.48 | P23: 5,000.32 | Q23: 10.32 | R23: 10.32 | S23: 5,000.32 | U23: 20 | V23: 1.50 | W23: 3,710.48 | X23: 15.48 | Y23: 5.20 | Z23: 7500.478088 | AA23: 20.24 | AB23: 5,000.32 | AC23: 10.32 | AD23: 10.32 | AE23: 5,000.32 | AH23: 3,710.48 | AI23: 15.48 | AJ23: 5.20 | AK23: 7500.478088 | AL23: 20.24 | AM23: 5,000.32 | AN23: 10.32 | AO23: 10.32 | AP23: 5,000.32 | AV23: 1.50 | AW23: 1.00 | BI23: 1.50 | BJ23: 1.00 | BU23: 1.50 | BV23: 1.00 | CH23: 1.50 | CI23: 1.00 | CQ23: =CI23*$CI$48 ->  | EF23: FUNCION INGRESO NACIONAL | FB23: FUNCION INGRESO NACIONAL
EF24: Y | EG24: C | EH24: I | EI24: G | EJ24: X | EK24: M | EN24: =+EP55*(EJ55+EO55) -> -4706.880382 | FB24: Y | FC24: C | FD24: I | FE24: G | FF24: X | FG24: M | FJ24: =+FL52*(FF52+FK52) -> -4706.880382
U25: DEMANDA AGREGADA NOMINAL | BC25: MIN | BD25: =MIN(AY3:AY23,BL3:BL23) ->  | BP25: MIN | BQ25: =MIN(AY3:AY23,BL3:BL23) ->  | CB25: MIN | CC25: =MIN(BX3:BX23,CK3:CK23) ->  | CO25: MIN | CP25: =MIN(BX3:BX23,CK3:CK23) ->  | CW25: FUNCION INGRESO NACIONAL | DR25: FUNCION INGRESO NACIONAL | EF25: =+EG25+EH25+EI25+(EJ25-EK25) -> 2,601.36 | EG25: =+EF31 -> 1,961.09 | EH25: =+EF37 -> 921.41 | EI25: =+EF40 -> 400.00 | EJ25: =+EF43 -> 3,001.04 | EK25: =+EF46 -> 3,682.18 | EN25: =+(EG58*(EI58-EH58)) -> -681.1392153 | FB25: =+FC25+FD25+FE25+(FF25-FG25) -> 2,601.36 | FC25: =+FB28 -> 1,961.09 | FD25: =+FB34 -> 921.41 | FE25: =+FB37 -> 400.00 | FF25: =+FB40 -> 3,001.04 | FG25: =+FB43 -> 3,682.18 | FJ25: =+(FC55*(FE55-FD55)) -> -681.1392153
A26: Y | B26: C | C26: I | D26: G | L26: Y | M26: C | N26: I | O26: G | U26: Y | V26: C | W26: I | X26: G | AH26: Y | AI26: C | AJ26: I | AK26: G | AV26: Y | AW26: C | AX26: I | AY26: G | AZ26: X | BA26: M | BC26: EQUI | BD26: =AV48 ->  | BI26: Y | BJ26: C | BK26: I | BL26: G | BM26: X | BN26: M | BP26: MAX | BQ26: =BI48 ->  | BU26: Y | BV26: C | BW26: I | BX26: G | BY26: X | BZ26: M | CB26: EQUI | CC26: =BU48 ->  | CH26: Y | CI26: C | CJ26: I | CK26: G | CL26: X | CM26: M | CO26: MAX | CP26: =CH48 ->  | CW26: Y | CX26: C | CY26: I | CZ26: G | DA26: X | DB26: M | DR26: Y | DS26: C | DT26: I | DU26: G | DV26: X | DW26: M | EF26: FUNCION INGRESO NACIONAL | EN26: =-EG55+EL55-(EH55*EI55) -> -4520 | FB26: FUNCION CONSUMO | FJ26: =-FC52+FH52-(FD52*FE52) -> -4520
A27: =SUM(B27:D27) -> 5000.3 | B27: =A30 -> 3800.3 | C27: =A36 -> 700.1 | D27: =A39 -> 500.0 | L27: =SUM(M27:O27) -> 5000.3 | M27: =L30 -> 3800.3 | N27: =L36 -> 700.1 | O27: =L39 -> 500.0 | U27: =V27+W27+X27 -> 5000.3 | V27: =V30*U53 -> 3800.3 | W27: =W30*U53 -> 700.1 | X27: =X30*U53 -> 500.0 | AH27: =AI27+AJ27+AK27 -> 5000.3 | AI27: =AI30*AH53 -> 3800.3 | AJ27: =AJ30*AH53 -> 700.1 | AK27: =AK30*AH53 -> 500.0 | AV27: =AW27+AX27+AY27+AZ27-BA27 ->  | AW27: =AV30 ->  | AX27: =AV33 ->  | AY27: =AV36 ->  | AZ27: =AV39 ->  | BA27: =AV42 ->  | BD27: =BD26-BD25 ->  | BI27: =BJ27+BK27+BL27+BM27-BN27 ->  | BJ27: =BI30 ->  | BK27: =BI33 ->  | BL27: =BI36 ->  | BM27: =BI39 ->  | BN27: =BI42 ->  | BQ27: =BQ26-BQ25 ->  | BU27: =BV27+BW27+BX27+BY27-BZ27 ->  | BV27: =BU30 ->  | BW27: =BU33 ->  | BX27: =BU36 ->  | BY27: =BU39 ->  | BZ27: =BU42 ->  | CC27: =CC26-CC25 ->  | CH27: =CI27+CJ27+CK27+CL27-CM27 ->  | CI27: =CH30 ->  | CJ27: =CH33 ->  | CK27: =CH36 ->  | CL27: =CH39 ->  | CM27: =CH42 ->  | CP27: =CP26-CP25 ->  | CW27: =+CX27+CY27+CZ27+(DA27-DB27) -> 2,650.00 | CX27: =+CW30 -> 2,160.00 | CY27: =+CW36 -> 290.00 | CZ27: =+CW39 -> 200.00 | DA27: =+CW42 -> 1,046.00 | DB27: =+CW45 -> 1,046.00 | DR27: =+DS27+DT27+DU27+(DV27-DW27) -> 2,650.00 | DS27: =+DR30 -> 2,160.00 | DT27: =+DR36 -> 290.00 | DU27: =+DR39 -> 200.00 | DV27: =+DR42 -> 1,046.00 | DW27: =+DR45 -> 1,046.00 | EF27: Y | EG27: C | EH27: I | EI27: G | EJ27: X | EK27: M | EN27: =+(EN24-EN25-EN26)/EM55 -> 2601.362278 | FB27: C | FC27: bo | FD27: b1 | FE27: y | FF27: to | FJ27: =+(FJ24-FJ25-FJ26)/FI52 -> 2601.362278
A28: FUNCIÓN CONSUMO | L28: FUNCIÓN CONSUMO | U28: DEMANDA AGREGADA REAL | AV28: FUNCIÓN CONSUMO | BD28: =BD27/20 ->  | BI28: FUNCIÓN CONSUMO | BQ28: =BQ27/20 ->  | BU28: FUNCIÓN CONSUMO | CC28: =CC27/20 ->  | CH28: FUNCIÓN CONSUMO | CP28: =CP27/20 ->  | CW28: FUNCION CONSUMO | DR28: FUNCION CONSUMO | EF28: =+EG28+EH28+EI28+(EJ28-EK28) -> 100% | EG28: =EG25/$EF$25 -> 75% | EH28: =EH25/$EF$25 -> 35% | EI28: =EI25/$EF$25 -> 15% | EJ28: =EJ25/$EF$25 -> 115% | EK28: =EK25/$EF$25 -> 142% | FB28: =FC28+(FD28*(FE28-FF28)) -> 1,961.09 | FC28: =+EG31 -> 200 | FD28: =+EH31 -> 0.8 | FE28: =+FB58 -> 2,601.4 | FF28: =+EH86 -> 400
A29: C | B29: b0 | C29: b1 | D29: T | L29: C | M29: b0 | N29: b1 | O29: T | U29: Y | V29: C | W29: I | X29: G | AA29: 0.5 | AH29: Y | AI29: C | AJ29: I | AK29: G | AN29: 0.5 | AV29: C | AW29: b0 | AX29: b1 | AY29: t | AZ29: Tr | BA29: P | BI29: C | BJ29: b0 | BK29: b1 | BL29: t | BM29: Tr | BN29: P | BU29: C | BV29: b0 | BW29: b1 | BX29: t en % | BY29: Tr | BZ29: P | CH29: C | CI29: b0 | CJ29: b1 | CK29: t | CL29: Tr | CM29: P | CW29: C | CX29: B | CY29: b1 | CZ29: y | DA29: to | DR29: C | DS29: bo | DT29: b1 | DU29: y | DV29: to | EF29: FUNCION CONSUMO | FB29: FUNCION AHORRO
A30: =B30+C30*(A48-D30) -> 3800.3 | B30: =IS_LM_CERRADA_G_PR!C10 -> 200.0 | C30: =IS_LM_CERRADA_G_PR!D10 -> 0.80 | D30: =IS_LM_CERRADA_G_PR!E10 -> 500.00 | L30: =M30+N30*(L48-O30) -> 3800.3 | M30: =E53 -> 200.0 | N30: =C30 -> 0.80 | O30: =B53 -> 500.00 | U30: =V30+W30+X30 -> 5000.3 | V30: =U34 -> 3800.3 | W30: =U40 -> 700.1 | X30: =U43 -> 500.0 | AA30: =AA29/(COUNT(U14:U23)) -> 0.05 | AH30: =AI30+AJ30+AK30 -> 5000.3 | AI30: =AH33 -> 3800.3 | AJ30: =AH40 -> 700.1 | AK30: =AH43 -> 500.0 | AN30: =AN29/(COUNT(AH14:AH23)) -> 0.05 | AV30: =AW30+(AX30*AV48)+(AX30*AZ30)-(AX30*AY30) ->  | AW30: =#REF! ->  | AX30: =#REF! ->  | AY30: =#REF! ->  | AZ30: =#REF! ->  | BA30: =#REF! ->  | BI30: =BJ30+(BK30*BI48)+(BK30*BM30)-(BK30*BL30) ->  | BJ30: =BA56 ->  | BK30: =AX30 ->  | BL30: =AX56 ->  | BM30: =AY56 ->  | BN30: =BA30 ->  | BU30: =BV30+(BW30*BU48)+(BW30*BY30)-(BW30*BX30) ->  | BV30: =#REF! ->  | BW30: =#REF! ->  | BX30: =#REF! ->  | BY30: =#REF! ->  | BZ30: 1.000 | CH30: =CI30+(CJ30*CH48)+(CJ30*CL30)-(CJ30*CK30) ->  | CI30: =BZ56 ->  | CJ30: =BW30 ->  | CK30: =BW56 ->  | CL30: =BX56 ->  | CM30: =BZ30 -> 1.000 | CW30: =CX30+(CY30*(CZ30-DA30)) -> 2,160.00 | CX30: =+IS_LM_BP_Fijo!C10 -> 200 | CY30: =+IS_LM_BP_Fijo!D10 -> 0.8 | CZ30: =CW62 -> 2650 | DA30: =+IS_LM_BP_Fijo!F10 -> 200 | DR30: =DS30+(DT30*(DU30-DV30)) -> 2,160.00 | DS30: =CX30 -> 200 | DT30: =CY30 -> 0.8 | DU30: =DR62 -> 2650 | DV30: =+CX81 -> 200 | EF30: C | EG30: bo | EH30: b1 | EI30: y | EJ30: to | FB30: S | FC30: -b0 | FD30: b1 | FE30: y | FF30: to
A31: FUNCIÓN AHORRO | L31: FUNCIÓN AHORRO | V31: =V30/$U$30 -> 76% | W31: =W30/$U$30 -> 14% | X31: =X30/$U$30 -> 10% | AH31: FUNCIÓN CONSUMO | AP31: Absorción 1 | AQ31: Absorción 2 | AV31: FUNCIÓN INVERSIÓN | BI31: FUNCIÓN INVERSIÓN | BU31: FUNCIÓN INVERSIÓN | CH31: FUNCIÓN INVERSIÓN | CW31: FUNCION AHORRO | DR31: FUNCION AHORRO | EF31: =EG31+(EH31*(EI31-EJ31)) -> 1,961.09 | EG31: =+IS_LM_BP_FLEXIBLE!C11 -> 200 | EH31: =+IS_LM_BP_FLEXIBLE!D11 -> 0.8 | EI31: =+EF61 -> 2601.36 | EJ31: =+IS_LM_BP_FLEXIBLE!F11 -> 400 | FB31: =FC31+(FD31*(FE31-FF31)) -> 240.27 | FC31: =FC28*-1 -> -200 | FD31: =1-FD28 -> 0.2 | FE31: =FE28 -> 2601.36 | FF31: =FF28 -> 400
A32: S | B32: -b0 | C32: 1-b1 | D32: T | L32: S | M32: -b0 | N32: 1-b1 | O32: T | U32: FUNCIÓN CONSUMO | AH32: C | AI32: b0 | AJ32: b1 | AK32: T | AV32: I | AW32: i0 | AX32: i1 | BI32: I | BJ32: i0 | BK32: i1 | BU32: I | BV32: i0 | BW32: i1 | BY32: r0 | BZ32: rRM | CA32: BK | CH32: I | CI32: i0 | CJ32: i1 | CL32: r0 | CM32: rRM | CN32: BK | CW32: S | CX32: -b0 | CY32: b1 | CZ32: y | DA32: to | DR32: S | DS32: -b0 | DT32: b1 | DU32: y | DV32: to | EF32: FUNCION AHORRO | FB32: FUNCION INVERSION
A33: =B33+C33*(A48-D33) -> 700.1 | B33: =B30*-1 -> -200.0 | C33: =1-C30 -> 0.20 | D33: =D30 -> 500.0 | L33: =M33+N33*(L48-O33) -> 700.1 | M33: =M30*-1 -> -200.0 | N33: =1-N30 -> 0.20 | O33: =O30 -> 500.0 | U33: C | V33: b0 | W33: b1 | X33: T | Z33: P | AH33: =(AI33+(AJ33*(AH56-AK33))) -> 3800.3 | AI33: =Y61 -> 200.0 | AJ33: =W34 -> 0.8 | AK33: =V61 -> 500.0 | AP33: Diferencia | AQ33: =W62-V62+Z62+(U62/2.1) -> 0 | AV33: =AW33-(AX33*AW48) ->  | AW33: =#REF! ->  | AX33: =#REF!*-1 ->  | BI33: =BJ33-(BK33*BJ48) ->  | BJ33: =BB56 ->  | BK33: =AX33 ->  | BU33: =BV33-BW33*BV48 ->  | BV33: =#REF! ->  | BW33: =#REF!*-1 ->  | BY33: =#REF! ->  | BZ33: =#REF! ->  | CA33: =BY33*(BV48-BZ33) ->  | CH33: =CI33-(CJ33*CI48) ->  | CI33: =CA56 ->  | CJ33: =BW33 ->  | CL33: =BY33 ->  | CM33: =BZ33 ->  | CN33: =CL33*(CI48-CM33) ->  | CW33: =CX33+(CY33*(CZ33-DA33)) -> 290.00 | CX33: =CX30*-1 -> -200 | CY33: =1-CY30 -> 0.2 | CZ33: =CZ30 -> 2650 | DA33: =DA30 -> 200 | DR33: =DS33+(DT33*(DU33-DV33)) -> 290.00 | DS33: =DS30*-1 -> -200 | DT33: =1-DT30 -> 0.2 | DU33: =DU30 -> 2650 | DV33: =DV30 -> 200 | EF33: S | EG33: -b0 | EH33: b1 | EI33: y | EJ33: to | FB33: I | FC33: i0 | FD33: i1 | FE33: r
A34: FUNCIÓN INVERSIÓN | L34: FUNCIÓN INVERSIÓN | U34: =(V34+(W34*(U56-X34))) -> 3800.3 | V34: =IS_LM_Cerrada_G_PF!C14 -> 200.0 | W34: =IS_LM_Cerrada_G_PF!D14 -> 0.80 | X34: =IS_LM_Cerrada_G_PF!E14 -> 500.0 | Z34: =IS_LM_Cerrada_G_PF!B38 -> 1.000 | AQ34: 0.9 | AV34: FUNCIÓN GASTO DE GOBIERNO | BI34: FUNCIÓN GASTO DE GOBIERNO | BU34: FUNCIÓN GASTO DE GOBIERNO | CH34: FUNCIÓN GASTO DE GOBIERNO | CW34: FUNCION INVERSION | DR34: FUNCION INVERSION | EF34: =EG34+(EH34*(EI34-EJ34)) -> 240.27 | EG34: =EG31*-1 -> -200 | EH34: =1-EH31 -> 0.2 | EI34: =EF61 -> 2601.36 | EJ34: =EJ31 -> 400 | FB34: =FC34-(FD34*(FE34)) -> 921.41 | FC34: =+EG37 -> 1000 | FD34: =+EH37 -> 19 | FE34: =+FC58 -> 4.136227843
A35: I | B35: i0 | C35: i1 | L35: I | M35: i0 | N35: i1 | U35: FUNCIÓN AHORRO | AH35: FUNCIÓN AHORRO | AQ35: 1.0 | AV35: G | AW35: g0 | AX35: g1 | AZ35: r0 | BA35: rRM | BB35: BK | BI35: G | BJ35: g0 | BK35: g1 | BM35: r0 | BN35: rRM | BO35: BK | BU35: G | BV35: g0 | BW35: g1 | CH35: G | CI35: g0 | CJ35: g1 | CW35: I | CX35: i0 | CY35: i1 | CZ35: r | DR35: I | DS35: i0 | DT35: i1 | DU35: r | EF35: FUNCION INVERSION | FB35: FUNCION GASTO DE GOBIERNO
A36: =B36-C36*B48 -> 700.1 | B36: =IS_LM_CERRADA_G_PR!C18 -> 1216.0 | C36: =IS_LM_CERRADA_G_PR!D18*-1 -> 50.0 | L36: =M36-N36*M48 -> 700.1 | M36: =F53 -> 1216.0 | N36: =C36 -> 50.0 | U36: S | V36: -b0 | W36: 1-b1 | X36: T | AH36: S | AI36: -b0 | AJ36: 1-b1 | AK36: T | AQ36: 1.1 | AV36: =AW36+AX36*AV48 ->  | AW36: =#REF! ->  | AX36: =#REF! ->  | AZ36: =#REF! ->  | BA36: =#REF! ->  | BB36: =AZ36*(AW48-BA36) ->  | BI36: =BJ36+BK36*BI48 ->  | BJ36: =AZ56 ->  | BK36: =AX36 ->  | BM36: =AZ36 ->  | BN36: =BA36 ->  | BO36: =BM36*(BJ48-BN36) ->  | BU36: =BV36+BW36*BU48 ->  | BV36: =#REF! ->  | BW36: =#REF! ->  | CH36: =CI36+CJ36*CH48 ->  | CI36: =BY56 ->  | CJ36: =BW36 ->  | CW36: =CX36-(CY36*(CZ36)) -> 290.00 | CX36: =+IS_LM_BP_Fijo!C18 -> 350 | CY36: =+IS_LM_BP_Fijo!D18*-1 -> 30 | CZ36: =CX62 -> 2 | DR36: =DS36-(DT36*(DU36)) -> 290.00 | DS36: =CX36 -> 350 | DT36: =CY36 -> 30 | DU36: =DS62 -> 2 | EF36: I | EG36: i0 | EH36: i1 | EI36: r | FB36: G | FC36: g0 | FF36: Saldo (X-M) | FG36: Saldo Pub.
A37: FUNCIÓN GASTO DE GOBIERNO | D37: Déficit Público | L37: FUNCIÓN GASTO DE GOBIERNO | O37: Déficit Público | U37: =V37+W37*(U56-X37) -> 700.1 | V37: =V34*-1 -> -200.0 | W37: =1-W34 -> 0.20 | X37: =X34 -> 500.0 | AH37: =AI37+AJ37*(AH56-AK37) -> 700.1 | AI37: =AI33*-1 -> -200.0 | AJ37: =1-AJ33 -> 0.20 | AK37: =AK33 -> 500.0 | AQ37: =IF(AQ33>0,AQ36,AQ34) -> 0.9 | AV37: FUNCIÓN EXPORTACIONES | BI37: FUNCIÓN EXPORTACIONES | BU37: FUNCIÓN EXPORTACIONES | CH37: FUNCIÓN EXPORTACIONES | CW37: FUNCION GASTO DE GOBIERNO | DR37: FUNCION GASTO DE GOBIERNO | EF37: =EG37-(EH37*(EI37)) -> 921.41 | EG37: =+IS_LM_BP_FLEXIBLE!C19 -> 1000 | EH37: =+IS_LM_BP_FLEXIBLE!D19*-1 -> 19 | EI37: =+EG61 -> 4.14 | FB37: =FC37 -> 400.00 | FC37: =+EI86 -> 400 | FF37: =+FB40-FB43 -> -681.14 | FG37: =+FF28-FC37 -> 0
A38: G | B38: g0 | D38: T-G | L38: G | M38: g0 | O38: T-G | U38: FUNCIÓN INVERSIÓN | AH38: FUNCIÓN INVERSIÓN | AQ38: =IF(AQ33=0,AQ35,AQ37) -> 1.0 | AV38: X | AW38: x0 | AX38: x1 | AY38: x2 | AZ38: YRM | BA38: Tcr | BB38: SBC | BI38: X | BJ38: x0 | BK38: x1 | BL38: x2 | BM38: YRM | BN38: Tcr | BO38: SBC | BU38: X | BV38: x0 | BW38: x1 | BX38: x2 | BY38: YRM | BZ38: Tcr | CA38: SBC | CH38: X | CI38: x0 | CJ38: x1 | CK38: x2 | CL38: YRM | CM38: Tcr | CN38: SBC | CW38: G | CX38: g0 | DR38: G | DS38: g0 | EF38: FUNCION GASTO DE GOBIERNO | FB38: FUNCION EXPORTACIONES
A39: =B39 -> 500.0 | B39: =IS_LM_CERRADA_G_PR!C22 -> 500.0 | D39: =D30-B39 -> 0 | L39: =M39 -> 500.0 | M39: =D53 -> 500.0 | O39: =O30-M39 -> 0 | U39: I | V39: i0 | W39: i1 | AH39: I | AI39: i0 | AJ39: i1 | AV39: =AW39+(AX39*AZ39)+(AY39*BA39) ->  | AW39: =#REF! ->  | AX39: =#REF! ->  | AY39: =#REF! ->  | AZ39: =#REF! ->  | BA39: =#REF! ->  | BB39: =AV39-AV42 ->  | BI39: =BJ39+(BK39*BM39)+(BL39*BN39) ->  | BJ39: =BE56 ->  | BK39: =AX39 ->  | BL39: =AY39 ->  | BM39: =BC56 ->  | BN39: =AW56 ->  | BO39: =BI39-BI42 ->  | BU39: =BV39+BW39*BY39+BX39*BZ39/BZ42 ->  | BV39: =#REF! ->  | BW39: =#REF! ->  | BX39: =#REF! ->  | BY39: =#REF! ->  | BZ39: =BW48 ->  | CA39: =BU39-BU42 ->  | CH39: =CI39+(CJ39*CL39)+(CK39*CM39) ->  | CI39: =CD56 ->  | CJ39: =BW39 ->  | CK39: =BX39 ->  | CL39: =CB56 ->  | CM39: =CL75 ->  | CN39: =CH39-CH42 ->  | CW39: =CX39 -> 200.00 | CX39: =+IS_LM_BP_Fijo!C22 -> 200 | DR39: =DS39 -> 200.00 | DS39: =+CY81 -> 200 | EF39: G | EG39: g0 | EJ39: Saldo (X-M) | EK39: Saldo Pub. | FB39: X | FC39: Eo | FD39: E1 | FE39: Yrm | FF39: E2 | FG39: TC
A40: FUNCIÓN DEMANDA DE DINERO | L40: FUNCIÓN DEMANDA (OFERTA) DE DINERO | U40: =V40+(W40*V56) -> 700.1 | V40: =IS_LM_Cerrada_G_PF!C22 -> 1216.0 | W40: =IS_LM_Cerrada_G_PF!D22 -> -50.0 | AH40: =AI40+(AJ40*AI56) -> 700.1 | AI40: =Z61 -> 1216.0 | AJ40: =W40 -> -50.0 | AP40: Ddin aut1 | AQ40: Ddin auto 2 | AV40: FUNCIÓN IMPORTACIONES | BI40: FUNCIÓN IMPORTACIONES | BU40: FUNCIÓN IMPORTACIONES | CH40: FUNCIÓN IMPORTACIONES | CW40: FUNCION EXPORTACIONES | DR40: FUNCION EXPORTACIONES | EF40: =EG40 -> 400.00 | EG40: =+IS_LM_BP_FLEXIBLE!C23 -> 400 | EJ40: =+EF43-EF46 -> -681.14 | EK40: =+EJ31-EG40 -> 0 | FB40: =FC40+(FD40*FE40)+(FF40*FG40) -> 3,001.04 | FC40: =+EG43 -> 70 | FD40: =+EH43 -> 0.3 | FE40: =+EI43 -> 15000 | FF40: =+EJ43 -> 1 | FG40: =+FD58 -> -1568.960127
A41: Md | B41: c0 | C41: c1 | D41: c2 | L41: Md | M41: c0 | N41: c1 | O41: c2 | U41: FUNCIÓN GASTO DE GOBIERNO | X41: Déficit Público | AH41: FUNCIÓN GASTO DE GOBIERNO | AK41: Déficit Público | AP41: =(V47-U50/Z34+#REF!*Z66/Z70)/X47 ->  | AQ41: =(AI47-AH50/AO52+AL52*AK69/AK72)/AK47 ->  | AV41: Q | AW41: q0 | AX41: q1 | AY41: q2 | AZ41: Tcr | BA41: P* | BB41: SCC | BI41: Q | BJ41: q0 | BK41: q1 | BL41: q2 | BM41: Tcr | BN41: P* | BO41: SCC | BU41: Q | BV41: q0 | BW41: q1 | BX41: q2 | BY41: Tcr | BZ41: P* | CA41: SCC | CH41: Q | CI41: q0 | CJ41: q1 | CK41: q2 | CL41: Tcr | CM41: P* | CN41: SCC | CW41: X | CX41: Eo | CY41: E1 | CZ41: Yrm | DA41: E2 | DB41: TC | DD41: Saldo (X-M) | DE41: Saldo Pub. | DR41: X | DS41: Eo | DT41: E1 | DU41: Yrm | DV41: E2 | DW41: TC | DY41: Saldo (X-M) | DZ41: Saldo Pub. | EF41: FUNCION EXPORTACIONES | FB41: FUNCION IMPORTACIONES
A42: =B42+C42*A48-D42*B48 -> 1200.0 | B42: =IS_LM_CERRADA_G_PR!C26 -> 600.0 | C42: =IS_LM_CERRADA_G_PR!D26 -> 0.25 | D42: =IS_LM_CERRADA_G_PR!E26*-1 -> 63.0 | L42: =M42+N42*L48-O42*M48 -> 1200.0 | M42: =B42 -> 600.0 | N42: =C42 -> 0.25 | O42: =D42 -> 63.0 | U42: G | V42: g0 | X42: T-G | AH42: G | AI42: g0 | AK42: T-G | AP42: Diferencia | AQ42: =AQ41-AP41 ->  | AV42: =AW42+(AX42*AV48)-(AY42*AZ42) ->  | AW42: =#REF! ->  | AX42: =#REF! ->  | AY42: =#REF!*-1 ->  | AZ42: =#REF! ->  | BA42: =#REF! ->  | BB42: =SUM(BB36:BC36) ->  | BI42: =BJ42+(BK42*BI48)-(BL42*BM42) ->  | BJ42: =BF56 ->  | BK42: =AX42 ->  | BL42: =AY42 ->  | BM42: =AW56 ->  | BN42: =BD56 ->  | BO42: =BO36+BO39 ->  | BU42: =BV42+BW42*BU48-BX42*BY42/BZ42 ->  | BV42: =#REF! ->  | BW42: =#REF! ->  | BX42: =#REF!*-1 ->  | BY42: =BW48 ->  | BZ42: =#REF! ->  | CA42: =CA33+CA39 ->  | CH42: =CI42+(CJ42*CH48)-(CK42*CL42) ->  | CI42: =CE56 ->  | CJ42: =BW42 ->  | CK42: =BX42 ->  | CL42: =CL75 ->  | CM42: =CC56 ->  | CN42: =CN33+CN39 ->  | CW42: =CX42+(CY42*CZ42)+(DA42*DB42) -> 1,046.00 | CX42: =+IS_LM_BP_Fijo!C26 -> 40 | CY42: =+IS_LM_BP_Fijo!D26 -> 0.2 | CZ42: =+IS_LM_BP_Fijo!E26 -> 5000 | DA42: =+IS_LM_BP_Fijo!F26 -> 0.5 | DB42: =+IS_LM_BP_Fijo!G26 -> 12 | DD42: =+CW42-CW45 -> 0.00 | DE42: =+DA30-CX39 -> 0 | DR42: =DS42+(DT42*DU42)+(DV42*DW42) -> 1,046.00 | DS42: =CX42 -> 40 | DT42: =CY42 -> 0.2 | DU42: =CZ42 -> 5000 | DV42: =DA42 -> 0.5 | DW42: =+CZ81 -> 12 | DY42: =+DR42-DR45 -> 0.00 | DZ42: =+DV30-DS39 -> 0 | EF42: X | EG42: Eo | EH42: E1 | EI42: Yrm | EJ42: E2 | EK42: TC | FB42: Q | FC42: q0 | FD42: q1 | FE42: y | FF42: q2 | FG42: tc
A43: OFERTA DE DINERO | L43: OFERTA DE DINERO | U43: =V43 -> 500.0 | V43: =IS_LM_Cerrada_G_PF!C26 -> 500.0 | X43: =X34-V43 -> 0 | AH43: =AI43 -> 500.0 | AI43: =W61 -> 500.0 | AK43: =AK33-AI43 -> 0 | AQ43: =1.2*AK69 -> 4,560.3 | AV43: FUNCIÓN DEMANDA (OFERTA) DE DINERO | BI43: FUNCIÓN DEMANDA (OFERTA) DE DINERO | BU43: FUNCIÓN DEMANDA (OFERTA) DE DINERO | CH43: FUNCIÓN DEMANDA (OFERTA) DE DINERO | CW43: FUNCION IMPORTACIONES | DR43: FUNCION IMPORTACIONES | EF43: =EG43+(EH43*EI43)+(EJ43*EK43) -> 3,001.04 | EG43: =+IS_LM_BP_FLEXIBLE!C27 -> 70 | EH43: =+IS_LM_BP_FLEXIBLE!D27 -> 0.3 | EI43: =+IS_LM_BP_FLEXIBLE!E27 -> 15000 | EJ43: =+IS_LM_BP_FLEXIBLE!F27 -> 1 | EK43: =+EH61 -> -1568.96 | FB43: =FC43+(FD43*FE43)-(FF43*FG43) -> 3,682.18 | FC43: =+EG46 -> 50 | FD43: =+EH46 -> 0.19 | FE43: =FE28 -> 2601.362278 | FF43: =+EJ46 -> 2 | FG43: =FG40 -> -1568.960127
A44: Md | B44: Ms | L44: Md | M44: Ms | AQ44: =1*AK69 -> 3,800.3 | AV44: Md | AW44: Ms | AX44: m0 | AY44: m1 | AZ44: m2 | BA44: m3 | BB44: Tcr | BI44: Md | BJ44: Ms | BK44: m0 | BL44: m1 | BM44: m2 | BN44: m3 | BO44: Tcr | BU44: Md | BV44: Ms | BW44: m0 | BX44: m1 | BY44: m2 | BZ44: m3 | CA44: Tcr | CH44: Md | CI44: Ms | CJ44: m0 | CK44: m1 | CL44: m2 | CM44: m3 | CN44: Tcr | CW44: Q | CX44: q0 | CY44: q1 | CZ44: y | DA44: q2 | DB44: tc | DR44: Q | DS44: q0 | DT44: q1 | DU44: y | DV44: q2 | DW44: tc | EF44: FUNCION IMPORTACIONES | FB44: FUNCION OFERTA DE DINERO
A45: =B45 -> 1200.0 | B45: =IS_LM_CERRADA_G_PR!C30 -> 1200.0 | L45: =M45 -> 1200.0 | M45: =A53 -> 1200.00 | U45: FUNCIÓN DEMANDA (OFERTA) DE DINERO | AH45: FUNCIÓN DEMANDA (OFERTA) DE DINERO | AQ45: =0.8*AK69 -> 3,040.2 | AV45: =AX45+AY45*AV48+AZ45*AW48 ->  | AW45: =#REF! ->  | AX45: =#REF! ->  | AY45: =#REF! ->  | AZ45: =#REF!*-1 ->  | BA45: =#REF! ->  | BB45: =#REF! ->  | BI45: =BK45+BL45*BI48+BM45*BJ48 ->  | BJ45: =AV56 ->  | BK45: =AX45 ->  | BL45: =AY45 ->  | BM45: =AZ45 ->  | BN45: =BA45 ->  | BO45: =AW56 ->  | BU45: =BW45+BX45*BU48+BY45*BV48 ->  | BV45: =#REF! ->  | BW45: =#REF! ->  | BX45: =#REF! ->  | BY45: =#REF!*-1 ->  | BZ45: =#REF! ->  | CA45: =BW48 ->  | CH45: =CJ45+CK45*CH48+CL45*CI48 ->  | CI45: =BU56 ->  | CJ45: =BW45 ->  | CK45: =BX45 ->  | CL45: =BY45 ->  | CM45: =BZ45 ->  | CN45: =CL75 ->  | CW45: =CX45+(CY45*CZ45)-(DA45*DB45) -> 1,046.00 | CX45: =+IS_LM_BP_Fijo!C30 -> 10 | CY45: =+IS_LM_BP_Fijo!D30 -> 0.4 | CZ45: =CZ30 -> 2650 | DA45: =+IS_LM_BP_Fijo!F30*-1 -> 2 | DB45: =DB42 -> 12 | DR45: =DS45+(DT45*DU45)-(DV45*DW45) -> 1,046.00 | DS45: =CX45 -> 10 | DT45: =CY45 -> 0.4 | DU45: =DU30 -> 2650 | DV45: =DA45 -> 2 | DW45: =DW42 -> 12 | EF45: Q | EG45: q0 | EH45: q1 | EI45: y | EJ45: q2 | EK45: tc | FB45: ms | FC45: cin | FD45: ri
U46: Md | V46: m0 | W46: m1 | X46: m2 | AH46: Md | AI46: c0 | AJ46: c1 | AK46: c2 | AQ46: =IF(AQ42>0,AK69,AQ43) ->  | CW46: FUNCION OFERTA DE DINERO | DR46: FUNCION OFERTA DE DINERO | EF46: =EG46+(EH46*EI46)-(EJ46*EK46) -> 3,682.18 | EG46: =+IS_LM_BP_FLEXIBLE!C31 -> 50 | EH46: =+IS_LM_BP_FLEXIBLE!D31 -> 0.19 | EI46: =EI31 -> 2601.36 | EJ46: =+IS_LM_BP_FLEXIBLE!F31*-1 -> 2 | EK46: =EK43 -> -1568.96 | FB46: =FC46+FD46 -> 522.00 | FC46: =+EF86 -> 422 | FD46: =+EG86 -> 100
A47: Y | B47: rn | C47: multiplica | D47: Pend. IS | E47: Pend. LM | F47: 1-b1 | G47: Absorción | H47: Ddin auto | L47: Y | M47: rn | N47: multiplica | O47: Pend. IS | P47: Pend. LM | Q47: W | R47: Absorción | S47: Ddin auto | U47: =V47+W47*U56+X47*V56 -> 1200.0 | V47: =IS_LM_Cerrada_G_PF!C30 -> 600.0 | W47: =IS_LM_Cerrada_G_PF!D30 -> 0.3 | X47: =IS_LM_Cerrada_G_PF!E30 -> (63) | AH47: =AI47+AJ47*AH56+AK47*AI56 -> 1200.0 | AI47: =V47 -> 600.0 | AJ47: =W47 -> 0.3 | AK47: =X47 -> -63.0 | AQ47: =IF(AQ42=0,AQ44,AQ46) ->  | AV47: Y | AW47: rn | AX47: BP | AY47: SG | AZ47: SBC | BA47: Pend. IS | BB47: Pend. LM | BI47: Y | BJ47: rn | BK47: BP | BL47: SG | BM47: SBC | BN47: Pend. IS | BO47: Pend. LM | BU47: Y | BV47: rn | BW47: TC | BX47: SG | BY47: SBC | BZ47: Pend. IS | CA47: Pend. LM | CH47: Y | CI47: rn | CJ47: TC | CK47: SG | CL47: SBC | CM47: Pend. IS | CN47: Pend. LM | CW47: ms | CX47: cin | CY47: ri | DR47: ms | DS47: cin | DT47: ri | EF47: FUNCION OFERTA DE DINERO | FB47: FUNCION DEMANDA DE DINERO
A48: =C48*(G48-(C36*H48)) -> 5000.3 | B48: =C48*((F48*H48)+(C42/D42*G48)) -> 10.3 | C48: =1/((1-(C30))+(C36*C42/D42)) -> 2.51 | D48: =F48/C36*-1 -> -0.004000000 | E48: =C42/D42 -> 0.0039682540 | F48: =1-(C30) -> 0.20 | G48: =B30+(C30*D30*-1)+B36+B39 -> 1516.000 | H48: =(B42-B45)/D42 -> -9.524 | L48: =N48*(R48-(N36*S48)) -> 5000.3 | M48: =N48*((Q48*S48)+(N42/O42*R48)) -> 10.3 | N48: =1/((1-(N30))+(N36*N42/O42)) -> 2.51 | O48: =Q48/N36*-1 -> -0.004000000 | P48: =N42/O42 -> 0.0039682540 | Q48: =1-(N30) -> 0.20 | R48: =M30+(N30*O30*-1)+M36+M39 -> 1516.000 | S48: =(M42-M45)/O42 -> -9.524 | AV48: =(1/(AW51+((AX33*AY45)/AZ45)))*(AV51-(AX33*AX51)) ->  | AW48: =(1/(AW51+((AY45*AX33)/AZ45)))*((AW51*AX51)+((AY45/AZ45)*AV51)) ->  | AX48: =BA36+((-AW39+AW42-(AX39*AZ39)-((AY39+AY42)*BA39))/AZ36)+((AX42/AZ36)*AV48) ->  | AY48: =AY30-AV36 ->  | AZ48: =AV39-AV42 ->  | BA48: =(AW51^-1)*AX33 ->  | BB48: =AY45/AZ45 ->  | BI48: =(1/(BJ51+((BK33*BL45)/BM45)))*(BI51-(BK33*BK51)) ->  | BJ48: =(1/(BJ51+((BL45*BK33)/BM45)))*((BJ51*BK51)+((BL45/BM45)*BI51)) ->  | BK48: =BN36+((-BJ39+BJ42-(BK39*BM39)-((BL39+BL42)*BN39))/BM36)+((BK42/BM36)*BI48) ->  | BL48: =BL30-BI36 ->  | BM48: =BI39-BI42 ->  | BN48: =(BJ51^-1)*BK33 ->  | BO48: =BL45/BM45 ->  | BU48: =BY79 ->  | BV48: =BY80 ->  | BW48: =BY81 ->  | BX48: =BX30-BU36 ->  | BY48: =BU39-BU42 ->  | BZ48: =(BV51^-1)*BW33 ->  | CA48: =BX45/BY45 ->  | CH48: =CL73 ->  | CI48: =CL74 ->  | CJ48: =CL75 ->  | CK48: =CK30-CH36 ->  | CL48: =CH39-CH42 ->  | CM48: =(CI51^-1)*CJ33 ->  | CN48: =CK45/CL45 ->  | CW48: =CX48+CY48 -> 540.00 | CX48: =+IS_LM_BP_Fijo!C34 -> 400 | CY48: =CY62 -> 140 | DR48: =DS48+DT48 -> 540.00 | DS48: =+CW81 -> 400 | DT48: =DT62 -> 140 | EF48: ms | EG48: cin | EH48: ri | FB48: md | FC48: mo | FD48: mi | FE48: y | FF48: m2 | FG48: r
L49: DIFERENCIA ABSOLUTA Y PORCENTUAL | U49: Ms | AH49: Ms | CW49: FUNCION DEMANDA DE DINERO | DR49: FUNCION DEMANDA DE DINERO | EF49: =EG49+EH49 -> 522.00 | EG49: =+IS_LM_BP_FLEXIBLE!C35 -> 422 | EH49: =+IS_LM_BP_FLEXIBLE!D35 -> 100 | FB49: =FC49+(FD49*FE49)+((FF49*-1)*(FG49)) -> 522.00 | FC49: =+EG52 -> 10 | FD49: =+EH52 -> 0.2 | FE49: =FE43 -> 2601.362278 | FF49: =+EJ52 -> 2 | FG49: =FE34 -> 4.136227843
A50: POLÍTICA ECONÓMICA | L50: Y | M50: rn | N50: multiplica | O50: Pend. IS | P50: Pend. LM | Q50: Déficit Pub. | U50: =IS_LM_Cerrada_G_PF!C34 -> 1200.00 | AH50: =U61 -> 1200.00 | AV50: A | AW50: B | AX50: D | BI50: A | BJ50: B | BK50: D | BU50: A | BV50: B | BW50: D | CH50: A | CI50: B | CJ50: D | CW50: md | CX50: mo | CY50: mi | CZ50: y | DA50: m2 | DB50: r | DR50: md | DS50: mo | DT50: mi | DU50: y | DV50: m2 | DW50: r | EF50: FUNCION DEMANDA DE DINERO | EM50: =14+(0.2*2337.51)+(1.8*10.28) -> 500.006 | FB50: FUNCION BALANZA DE PAGOS
A51: MONETARIA | B51: FISCAL | E51: EXOGENO | L51: =L48-A48 -> 0.0 | M51: =M48-B48 -> 0.0 | N51: =N48-C48 -> 0.0 | O51: =O48-D48 -> 0.000 | P51: =P48-E48 -> 0.000 | Q51: =L48*B53-D53-C53 -> 2,499,659 | AV51: =AW30+(AX30*AZ30)-(AX30*AY30)+AW36+AW33+AW39-AW42+(AX39*AZ39)+((AY39+AY42)*AZ42) ->  | AW51: =1-AX30+AX42 ->  | AX51: =(AX45-AW45)/AZ45 ->  | BI51: =BJ30+(BK30*BM30)-(BK30*BL30)+BJ36+BJ33+BJ39-BJ42+(BK39*BM39)+((BL39+BL42)*BM42) ->  | BJ51: =1-BK30+BK42 ->  | BK51: =(BK45-BJ45)/BM45 ->  | BU51: =BV30+(BW30*BY30)-(BW30*BX30)+BV36+BV33+BV39-BV42+(BW39*BY39)+((BX39+BX42)*BY42) ->  | BV51: =1-BW30+BW42 ->  | BW51: =(BW45-BV45)/BY45 ->  | CH51: =CI30+(CJ30*CL30)-(CJ30*CK30)+CI36+CI33+CI39-CI42+(CJ39*CL39)+((CK39+CK42)*CL42) ->  | CI51: =1-CJ30+CJ42 ->  | CJ51: =(CJ45-CI45)/CL45 ->  | CW51: =CX51+(CY51*CZ51)+DA51*(DB51) -> 544.00 | CX51: =+IS_LM_BP_Fijo!C38 -> 12 | CY51: =+IS_LM_BP_Fijo!D38 -> 0.2 | CZ51: =CZ45 -> 2650 | DA51: =+IS_LM_BP_Fijo!F38*-1 -> 1 | DB51: =CZ36 -> 2 | DR51: =DS51+(DT51*DU51)+DV51*(DW51) -> 544.00 | DS51: =CX51 -> 12 | DT51: =CY51 -> 0.2 | DU51: =DU45 -> 2650 | DV51: =DA51 -> 1 | DW51: =DU36 -> 2 | EF51: md | EG51: mo | EH51: mi | EI51: y | EJ51: m2 | EK51: r | EM51: =EG52+(EH52*EI52)+(EJ52*-1*EK52) -> 522 | FB51: X-Q | FC51: Eo | FD51: E1 | FE51: Yrm | FF51: E2 | FG51: TC | FH51: q0 | FI51: q1 | FJ51: y | FK51: q2 | FL51: tc
A52: Ms | B52: t | D52: g0 | E52: b0 | F52: i0 | L52: =L51/A48 -> 0.0% | M52: nd | N52: =N51/C48 -> 0.0% | O52: =O51/D48 -> 0.0% | P52: =P51/E48 -> 0.0% | Q52: =Q51/L48 -> 49990.0% | U52: p | AF52: =(AH53-U53)/U53 -> 0 | AH52: P | EF52: =EG52+(EH52*EI52)+((EJ52*-1)*EK52) -> 522.00 | EG52: =+IS_LM_BP_FLEXIBLE!C39 -> 10 | EH52: =+IS_LM_BP_FLEXIBLE!D39 -> 0.2 | EI52: =EI31 -> 2601.36 | EJ52: =+IS_LM_BP_FLEXIBLE!F39*-1 -> 2 | EK52: =EI37 -> 4.14 | FB52: =FC52+(FD52*FE52)+(FF52*FG52)-(FH52+(FI52*FJ52)+(FK52*FL52)) -> 5,594.70 | FC52: =+EG55 -> 70 | FD52: =+EH55 -> 0.3 | FE52: =+EI55 -> 15000 | FF52: =+EJ55 -> 1 | FG52: =FG43 -> -1568.960127 | FH52: =+EL55 -> 50 | FI52: =+EM55 -> 0.19 | FJ52: =+FE28 -> 2601.362278 | FK52: =+EO55 -> 2 | FL52: =+FG43 -> -1568.960127
A53: =B45*(1+A54) -> 1200.00 | B53: =D30*(1+B54) -> 500.00 | D53: =B39*(1+D54) -> 500.00 | E53: =B30*(1+E54) -> 200.00 | F53: =B36*(1+F54) -> 1216.00 | U53: =IS_LM_Cerrada_G_PF!B38 -> 1.00 | AH53: =U53*(IF(AQ33=0,AQ35,AQ37)) -> 1.000 | AV53: POLÍTICA ECONÓMICA | BU53: POLÍTICA ECONÓMICA | CW53: FUNCION BALANZA DE PAGOS | DR53: FUNCION BALANZA DE PAGOS | EF53: FUNCION BALANZA DE PAGOS
A54: =IS_LM_CERRADA_G_PR!B40 -> 0% | B54: =IS_LM_CERRADA_G_PR!C40 -> 0.00 | D54: =IS_LM_CERRADA_G_PR!D40 -> 0% | E54: =IS_LM_CERRADA_G_PR!E40 -> 0% | F54: =IS_LM_CERRADA_G_PR!F40 -> 0% | AV54: MONETARIA | AX54: FISCAL | BA54: EXOGENO | BU54: MONETARIA | BW54: FISCAL | BZ54: EXOGENO | CW54: X-Q | CX54: Eo | CY54: E1 | CZ54: Yrm | DA54: E2 | DB54: TC | DC54: q0 | DD54: q1 | DE54: y | DF54: q2 | DG54: tc | DR54: X-Q | DS54: Eo | DT54: E1 | DU54: Yrm | DV54: E2 | DW54: TC | DX54: q0 | DY54: q1 | DZ54: y | EA54: q2 | EB54: tc | EF54: X-Q | EG54: Eo | EH54: E1 | EI54: Yrm | EJ54: E2 | EK54: TC | EL54: q0 | EM54: q1 | EN54: y | EO54: q2 | EP54: tc | FB54: IEN | FC54: ro | FD54: r | FE54: reXt
U55: Y | V55: rn | W55: multiplica | X55: Pend. IS | Y55: Pend. LM | Z55: 1-b1 | AA55: Absorción | AB55: Ddin auto | AH55: Y | AI55: rn | AJ55: multiplica | AK55: Pend. IS | AL55: Pend. LM | AM55: W | AN55: Absorción | AO55: Ddin auto | AV55: Ms | AW55: Tcr | AX55: t | AY55: Tr | AZ55: g0 | BA55: b0 | BB55: i0 | BC55: Y* | BD55: P* | BE55: x0 | BF55: q0 | BG55: P | BU55: Ms | BV55: Tcr | BW55: t | BX55: Tr | BY55: g0 | BZ55: b0 | CA55: i0 | CB55: Y* | CC55: P* | CD55: x0 | CE55: q0 | CF55: P | CW55: =CX55+(CY55*CZ55)+(DA55*DB55)-(DC55+(DD55*DE55)+(DF55*DG55)) -> -48.00 | CX55: =CX42 -> 40 | CY55: =CY42 -> 0.2 | CZ55: =CZ42 -> 5000 | DA55: =DA42 -> 0.5 | DB55: =DB42 -> 12 | DC55: =CX45 -> 10 | DD55: =CY45 -> 0.4 | DE55: =+CW62 -> 2650 | DF55: =DA45 -> 2 | DG55: =DB45 -> 12 | DR55: =DS55+(DT55*DU55)+(DV55*DW55)-(DX55+(DY55*DZ55)+(EA55*EB55)) -> -48.00 | DS55: =DS42 -> 40 | DT55: =DT42 -> 0.2 | DU55: =DU42 -> 5000 | DV55: =DV42 -> 0.5 | DW55: =DW45 -> 12 | DX55: =DS45 -> 10 | DY55: =DT45 -> 0.4 | DZ55: =DU51 -> 2650 | EA55: =DV45 -> 2 | EB55: =DW45 -> 12 | EF55: =EG55+(EH55*EI55)+(EJ55*EK55)-(EL55+(EM55*EN55)+(EO55*EP55)) -> 5,594.70 | EG55: =EG43 -> 70 | EH55: =EH43 -> 0.3 | EI55: =EI43 -> 15000 | EJ55: =EJ43 -> 1 | EK55: =EK46 -> -1568.96 | EL55: =EG46 -> 50 | EM55: =EH46 -> 0.19 | EN55: =+EI31 -> 2601.36 | EO55: =EJ46 -> 2 | EP55: =EK46 -> -1568.960127 | FB55: =FC55*(FD55-FE55) -> 681.14 | FC55: =+EG58 -> 5000 | FD55: =+FE34 -> 4.136227843 | FE55: =+EJ86 -> 4
U56: =W56*(AA56-(W40*-1*((V47-(U50/U53)))/X47*-1)) -> 5000.3 | V56: =W56*((Z56*(($V$47-($U$50/$U$53))/$X$47*-1))+(W47/X47*-1*AA56)) -> 10.3 | W56: =1/((1-(W34))+(W40*-1*W47/X47*-1)) -> 2.51 | X56: =Z56/W40 -> -0.004000000 | Y56: =W47/X47*-1 -> 0.003968254 | Z56: =(1-W34) -> 0.20 | AA56: =V34-W34*X34+V40+V43 -> 1516.000 | AB56: =(V47-U50)/X47*-1 -> -9.524 | AH56: =AJ56*(AN56-(AJ40*-1*((AI47-(AH50/AH53)))/AK47*-1)) -> 5000.3 | AI56: =AJ56*((AM56*(($AI$47-($AH$50/$AH$53))/$AK$47*-1))+(AJ47/AK47*-1*AN56)) -> 10.3 | AJ56: =1/((1-(AJ33))+(AJ40*-1*AJ47/AK47*-1)) -> 2.51 | AK56: =AM56/AJ40 -> -0.004000000 | AL56: =AJ47/AK47*-1 -> 0.003968254 | AM56: =(1-AJ33) -> 0.20 | AN56: =AI33-AJ33*AK33+AI40+AI43 -> 1516.000 | AO56: =(AI47-AH50)/AK47*-1 -> -9.524 | AV56: =AW45*(1+AV57) ->  | AW56: =BA39*(1+AW57) ->  | AX56: =AY30*(1+AX57) ->  | AY56: =AZ30*(1+AY57) ->  | AZ56: =AW36*(1+AZ57) ->  | BA56: =AW30*(1+BA57) ->  | BB56: =AW33*(1+BB57) ->  | BC56: =AZ39*(1+BC57) ->  | BD56: =BA42*(1+BD57) ->  | BE56: =AW39*(1+BE57) ->  | BF56: =AW42*(1+BF57) ->  | BG56: =BA30*(1+BG57) ->  | BU56: =BV45*(1+BU57) ->  | BV56: =BZ39*(1+BV57) ->  | BW56: =BX30*(1+BW57) ->  | BX56: =BY30*(1+BX57) ->  | BY56: =BV36*(1+BY57) ->  | BZ56: =BV30*(1+BZ57) ->  | CA56: =BV33*(1+CA57) ->  | CB56: =BY39*(1+CB57) ->  | CC56: =BZ42*(1+CC57) ->  | CD56: =BV39*(1+CD57) ->  | CE56: =BV42*(1+CE57) ->  | CF56: =BZ30*(1+CF57) ->  | DR56: =+DR55-CW55 -> 0.00
L57: VARIABLES | M57: VARIABLES | N57: ORIGINAL | O57: CHOQUE | P57: VAR ABS | Q57: VAR REL | U57: =W56*(AA56-(W40*-1*((V47-(U50/1)))/X47*-1)) -> 5,000.32 | V57: =W56*((Z56*(($V$47-($U$50/1))/$X$47*-1))+(W47/X47*-1*AA56)) -> 10.32 | AH57: =AJ56*(AN56-(AJ40*-1*((AI47-(AH50/1)))/AK47*-1)) -> 5,000.32 | AI57: =AJ56*((AM56*(($AI$47-($AH$50/1))/$AK$47*-1))+(AJ47/AK47*-1*AN56)) -> 10.32 | AV57: =#REF! ->  | AW57: =#REF! ->  | AX57: =#REF! ->  | AY57: =#REF! ->  | AZ57: =#REF! ->  | BA57: =#REF! ->  | BB57: =#REF! ->  | BC57: =#REF! ->  | BD57: =#REF! ->  | BE57: =#REF! ->  | BF57: =#REF! ->  | BG57: =#REF! ->  | BU57: =#REF! ->  | BV57: =#REF! ->  | BW57: =#REF! ->  | BX57: =#REF! ->  | BY57: =#REF! ->  | BZ57: =#REF! ->  | CA57: =#REF! ->  | CB57: =#REF! ->  | CC57: =#REF! ->  | CD57: =#REF! ->  | CE57: =#REF! ->  | CF57: =#REF! ->  | CW57: IEN | CX57: ro | CY57: r | CZ57: reXt | DA57: tce | DR57: IEN | DS57: ro | DT57: r | DU57: reXt | DV57: tce | EF57: IEN | EG57: ro | EH57: r | EI57: reXt | FB57: Y | FC57: R | FD57: TC | FE57: multiplicador | FF57: pendiente IS | FG57: pendiente LM | FH57: pendiente BP
L58: Y | M58: Y | N58: =A48 -> 5,000.3 | O58: =L48 -> 5,000.3 | P58: =O58-N58 -> 0 | Q58: =O58/N58-1 -> 0 | U58: POLÍTICA ECONÓMICA | AH58: DIFERENCIA ABSOLUTA Y PORCENTUAL | CW58: =CX58*(CY58-CZ58-DA58) -> 0.00 | CX58: =+IS_LM_BP_Fijo!C42 -> 5 | CY58: =DB51 -> 2 | CZ58: =+IS_LM_BP_Fijo!E42 -> 2 | DA58: 0 | DR58: =DS58*(DT58-DU58-DV58) -> 0.00 | DS58: =CX58 -> 5 | DT58: =DW51 -> 2 | DU58: =+DA81 -> 2 | DV58: 0 | EF58: =EG58*(EH58-EI58) -> 681.1392 | EG58: =+IS_LM_BP_FLEXIBLE!C43 -> 5000 | EH58: =+EI37 -> 4.14 | EI58: =+IS_LM_BP_FLEXIBLE!E43 -> 4 | FB58: =+FC74+(FD74*FH72) -> 2,601.4 | FC58: =+FC72+FD72+(FE72*FH72) -> 4.1 | FD58: =+FH72 -> -1,569.0 | FF58: =FD34/(1-FD28+FD43)*-1 -> (48.72) | FG58: =FD49/FF49 -> 0.1 | FH58: =FD43/FC55 -> 3.8e-05
L59: r | M59: r | N59: =B48 -> 10.3 | O59: =M48 -> 10.3 | P59: =O59-N59 -> 0 | Q59: =O59/N59-1 -> 0 | U59: MONETARIA | V59: FISCAL | X59: precios | Y59: EXOGENO | AH59: Y | AI59: rn | AJ59: multiplica | AK59: Pend. IS | AL59: Pend. LM | AM59: Déficit Pub. | AN59: Balanza Comercial | AV59: Y | AW59: rn | AX59: Multiplicador | AY59: Pend. IS | AZ59: Pend. LM | BA59: Saldo Pub. | BB59: Balanza Comercial | BU59: Y | BV59: rn | BW59: Tcr | BX59: Multiplicador | BY59: Pend. IS | BZ59: Pend. LM | CA59: Saldo Pub. | CB59: Balanza Comercial | CH59: A | CI59: =CI30+(CJ30*CL30)-(CJ30*CK30)+CI33+CI36+CI39+(CJ42*CL39)-CI42 -> 
L60: C | M60: C | N60: =A30 -> 3,800.3 | O60: =L30 -> 3,800.3 | P60: 0 | Q60: 0 | U60: Ms | V60: T | W60: g0 | X60: p | Y60: b0 | Z60: i0 | AH60: =AH56-U56 -> 0.0 | AI60: =AI56-V56 -> 0.0 | AJ60: =AJ56-W56 -> 0.0 | AK60: =AK56-X56 -> 0.000 | AL60: =AL56-Y56 -> 0.000 | AM60: =AH56*V61-W61-#REF! ->  | AN60: =#REF!-#REF! ->  | AV60: =BI48-AV48 ->  | AW60: =BJ48-AW48 ->  | AX60: =BJ51-AW51 ->  | AY60: =BN48-BA48 ->  | AZ60: =BO48-BB48 ->  | BA60: =BL48-AY48 ->  | BB60: =BM48-AZ48 ->  | BU60: =CH48-BU48 ->  | BV60: =CI48-BV48 ->  | BW60: =CJ48-BW48 ->  | BX60: =CI51-BV51 ->  | BY60: =CM48-BZ48 ->  | BZ60: =CN48-CA48 ->  | CA60: =CK48-BX48 ->  | CB60: =CL48-BY48 ->  | CH60: B | CI60: =1-CJ30+CJ42 ->  | EF60: Y | EG60: R | EH60: TC | EI60: multiplicador | EJ60: pendiente IS | EK60: pendiente LM | EL60: pendiente BP
L61: S | M61: S | N61: =A33 -> 700.1 | O61: =L33 -> 700.1 | P61: 0 | Q61: 0 | U61: =U50*(1+U62) -> 1200.00 | V61: =X34*(1+V62) -> 500.00 | W61: =V43*(1+W62) -> 500.00 | Y61: =V34*(1+Y62) -> 200.00 | Z61: =V40*(1+Z62) -> 1216.00 | AH61: =AH60/U56 -> 0.0% | AI61: nd | AJ61: =AJ60/W56 -> 0.0% | AK61: =AK60/X56 -> 0.0% | AL61: =AL60/Y56 -> 0.0% | AM61: =AM60/AH56 ->  | AN61: =AN60/AH56 ->  | AV61: =(BI48/AV48)-1 ->  | AW61: =(BJ48/AW48)-1 ->  | AX61: =(BJ51/AW51)-1 ->  | AY61: =(BN48/BA48)-1 ->  | AZ61: =(BO48/BB48)-1 ->  | BA61: =(BL48/AY48)-1 ->  | BB61: =(BM48/AZ48)-1 ->  | BU61: =(CH48/BU48)-1 ->  | BV61: =(CI48/BV48)-1 ->  | BW61: =(CJ48/BW48)-1 ->  | BX61: =(CI51/BV51)-1 ->  | BY61: =(CM48/BZ48)-1 ->  | BZ61: =(CN48/CA48)-1 ->  | CA61: =(CK48/BX48)-1 ->  | CB61: =(CL48/BY48)-1 ->  | CH61: C | CI61: =CK39+CK42 ->  | CW61: Y | CX61: r | CY61: RI | CZ61: multiplicador | DA61: pendiente IS | DB61: pendiente LM | DC61: pendiente BP | DR61: Y | DS61: r | DT61: RI | DU61: multiplicador | DV61: pendiente IS | DW61: pendiente LM | DX61: pendiente BP | EF61: =+EG77+(EH77*EL75) -> 2,601.4 | EG61: =+EG75+EH75+(EI75*EL75) -> 4.1 | EH61: =+EL75 -> -1,569.0 | EI61: =1/(1-EH34+EH46+(EH52*EH37/(EJ52*-1))) -> -1.1 | EJ61: =EH37/(1-EH31+EH46)*-1 -> (48.7179) | EK61: =EH52/EJ52 -> 0.1000 | EL61: =EH46/EG58 -> 0.0000
L62: I | M62: I | N62: =A36 -> 700.1 | O62: =L36 -> 700.1 | P62: 0 | Q62: 0 | U62: =IS_LM_Cerrada_G_PF!B48 -> 0% | V62: =IS_LM_Cerrada_G_PF!C48 -> 0.00 | W62: =IS_LM_Cerrada_G_PF!D48 -> 0% | Y62: =IS_LM_Cerrada_G_PF!E48 -> 0% | Z62: =IS_LM_Cerrada_G_PF!F48 -> 0% | CH62: D | CI62: =(CJ45-CI45)/CL45 ->  | CW62: =(CX70/CW70)-((CY36/CW70)*CX62) -> 2650 | CX62: =((DA70)+(CX70*CY45/CW70))/(CX58+(CY36*CY45/CW70)) -> 2 | CY62: =(CY70+(CX70*CZ70/CW70))-((DA51+(CY36*CZ70/CW70))*CX62) -> 140 | DA62: =(1-CY30+CY45)/CY36 -> 0.02 | DB62: =CY51/DA51 -> 0.2 | DC62: =CY45/CX58 -> 0.08 | DR62: =(DS70/DR70)-((DT36/DR70)*DS62) -> 2650 | DS62: =((DV70)+(DS70*DT45/DR70))/(DS58+(DT36*DT45/DR70)) -> 2 | DT62: =(DT70+(DS70*DU70/DR70))-((DV51+(DT36*DU70/DR70))*DS62) -> 140 | DV62: =(1-DT30+DT45)/DT36 -> 0.02 | DW62: =DT51/DV51 -> 0.2 | DX62: =DT45/DS58 -> 0.08 | FB62: comprobacion
L63: G | M63: G | N63: =A39 -> 500.0 | O63: =L39 -> 500.0 | P63: 0 | Q63: 0 | CH63: E | CI63: =CK45/CL45 ->  | FC63: =+(FF49*FC58)-(FG69*FB58) -> -512
L64: T | M64: T | N64: =D30 -> 500.0 | O64: =O30 -> 500.0 | P64: 0 | Q64: =O64/N64-1 -> 0 | CH64: F | CI64: =-CI39-(CJ39*CL39)+CI42+(CL33*CM33) ->  | EO64: r | EQ64: Y | ER64: TC | FC64: =+FD34*FC58+FD69*FB58-FE69*FD58 -> 5800
L65: DP | M65: DP | N65: =N64-N63 -> 0 | O65: =O64-O63 -> 0 | P65: =O65-N65 -> 0 | Q65: =IF(P65=0,0,O65/N65-1) -> 0 | AI65: VARIABLES | AJ65: ORIGINAL | AK65: CHOQUE | AL65: VAR ABS | AM65: VAR REL | BU65: A | BV65: =BV30+(BW30*BY30)-(BW30*BX30)+BV33+BV36+BV39+(BW42*BY39)-BV42 ->  | EF65: comprobacion | FC65: =+(FC55*FC58)-(FD43*FB58)+(FE69*FD58) -> 15480
L66: Ms | M66: Ms | N66: =B45 -> 1,200.0 | O66: =M45 -> 1,200.0 | P66: 0 | Q66: =O66/N66-1 -> 0 | AI66: Y | AJ66: =U56 -> 5,000.3 | AK66: =AH56 -> 5,000.3 | AL66: =AK66-AJ66 -> 0 | AM66: =AK66/AJ66-1 -> 0 | BU66: B | BV66: =1-BW30+BW42 ->  | EG66: =+(EJ52*EG61)-(EK72*EF61) -> -512 | EN66: D/m2 | EO66: =EJ72/EJ52 -> -256 | EP66: A-(D*i1/m2) | EQ66: =EO67 -> 10664 | ER66: =EO78/EO82 -> -1568.960127
L67: Ms | M67: Md | N67: =A42 -> 1,200.0 | O67: =L42 -> 1,200.0 | P67: 0 | Q67: 0 | AI67: r | AJ67: =V56 -> 10.3 | AK67: =AI56 -> 10.3 | AL67: =AK67-AJ67 -> 0 | AM67: =AK67/AJ67-1 -> 0% | BU67: C | BV67: =BX39+BX42 ->  | CH67: =CI60 ->  | CI67: =CJ33 ->  | CJ67: =-CI61 ->  | CL67: =CI59 ->  | CM67: YOP | EG67: =+EH37*EG61+EH72*EF61-EI72*EH61 -> 5800 | EN67: A-(D*i1/m2) | EO67: =EG72-(EJ72*EH37/EJ52) -> 10664 | EP67: B+(E*i1/m2) | EQ67: =EO68 -> 2.29
M68: Multiplicador | N68: =C48 -> 2.5 | O68: =N48 -> 2.5 | P68: 0 | Q68: 0 | AI68: P | AJ68: =U53 -> 1.0 | AK68: =AH53 -> 1.0 | AL68: 0 | AM68: 0% | EG68: =+(EG58*EG61)-(EH46*EF61)+(EI72*EH61) -> 15480 | EN68: B+(E*i1/m2) | EO68: =EH72+(EK72*EH37/EJ52) -> 2.29 | EQ68: =EQ66/EQ67 -> 4656.768559 | ER68: =ER66 -> -1568.960127 | FC68: A | FD68: B | FE68: C | FF68: D | FG68: E | FH68: F | FI68: =-FC40-(FD40*FE40)+FC43+(FC55*FE55) -> 15480
M69: Pendiente IS | N69: =D48 -> -0.00400 | O69: =O48 -> -0.00400 | P69: 0 | Q69: 0 | AI69: C | AJ69: =U34 -> 3,800.3 | AK69: =AH33 -> 3,800.3 | AL69: 0 | AM69: 0% | BU69: D | BV69: =(BW45-BV45)/BY45 ->  | CH69: =CI63 ->  | CI69: -1.00 | CJ69: 0 | CL69: =-CI62 ->  | CW69: B | CX69: A | CY69: D | CZ69: E | DA69: F | DR69: B | DS69: A | DT69: D | DU69: E | DV69: F | EN69: E/m2 | EO69: =EK72/EJ52 -> 0.1 | EP69: c/(B+(E*i1/m2)) | EQ69: =EO71 -> 1.310043668 | FC69: =+FC28-(FD28*FF28)+FC34+FC37+FC40-FC43+(FD40*FE40) -> 5800 | FD69: =1-FD28+FD43 -> 0.39 | FE69: =+FF40+FF43 -> 3 | FF69: =+FC49-FC46-FD46 -> (512) | FG69: =+FD49 -> 0.2 | FH69: =(+FC40+(FD40*FE40)-FC43-(FC55*FE55)) -> -15480 | FI69: =-FC40-(FD40*FE40)+FC43+(FC55*FE55) -> 15480
P70: 0 | AI70: S | AJ70: =U37 -> 700.1 | AK70: =AH37 -> 700.1 | AL70: 0 | AM70: 0% | BU70: E | BV70: =BX45/BY45 ->  | CH70: =CJ42 ->  | CI70: =-CL33 ->  | CJ70: =-CI61 ->  | CL70: =-CI64 ->  | CW70: =(1-CY30+CY45) -> 0.6 | CX70: =CX30-(CY30*DA30)+CX36+CX39+CX42-CX45+(CY42*CZ42)+((DA42+DA45)*DB42) -> 1650 | CY70: =CX51-CX48 -> -388 | CZ70: =CY51 -> 0.2 | DA70: =CX58*CZ58-CX42-CY42*CZ42-DA42*DB42+CX45-DA45*DB45 -> -1050 | DR70: =(1-DT30+DT45) -> 0.6 | DS70: =DS30-(DT30*DV30)+DS36+DS39+DS42-DS45+(DT42*DU42)+((DV42+DV45)*DW42) -> 1650 | DT70: =DS51-DS48 -> -388 | DU70: =DT51 -> 0.2 | DV70: =DS58*DU58-DS42-DT42*DU42-DV42*DW42+DS45-DV45*DW45 -> -1050 | EO70: =((EO67/EO68)*EO69) -> 465.6768559 | EP70: parentesis | EQ70: =EO78/EO82 -> -1568.960127 | FC70: 1 | FD70: 2 | FE70: 3 | FF70: 4 | FG70: 5 | FH70: 6
M71: Pendiente LM | N71: =E48 -> 0.00397 | O71: =P48 -> 0.00397 | P71: 0 | Q71: 0 | AI71: I | AJ71: =U40 -> 700.1 | AK71: =AH40 -> 700.1 | AL71: 0 | AM71: 0% | BU71: F | BV71: =-BV39-(BW39*BY39)+BV42+(BY33*BZ33) ->  | EG71: A | EH71: B | EI71: C | EJ71: D | EK71: E | EL71: F | EM71: =-EG43-(EH43*EI43)+EG46+(EG58*EI58) -> 15480 | EN71: c/(B+(E*i1/m2)) | EO71: =EI72/EO68 -> 1.310043668
N72: Esta seccion muestra los efectos de la Política Económica | AI72: G | AJ72: =U43 -> 500.0 | AK72: =AH43 -> 500.0 | AL72: 0 | AM72: 0% | EG72: =+EG31-(EH31*EJ31)+EG37+EG40+EG43-EG46+(EH43*EI43) -> 5800 | EH72: =1-EH31+EH46 -> 0.39 | EI72: =+EJ43+EJ46 -> 3 | EJ72: =+EG52-EG49-EH49 -> -512 | EK72: =+EH52 -> 0.2 | EL72: =(+EG43+(EH43*EI43)-EG46-(EG58*EI58)) -> -15480 | EM72: =-EG43-(EH43*EI43)+EG46+(EG58*EI58) -> 15480 | EN72: E/m2 | EO72: =EO69 -> 0.1 | EQ72: =EQ68+(EQ69*EQ70) -> 2601.362278 | FC72: =+FF69/FF49 -> -256 | FD72: =+((FC69-(FC72*FD34))/(FD69+(FG69/FF49)*FD34))*(FG69/FF49) -> 465.68 | FE72: =+(FE69/(FD69+((FG69/FF49)*FD34)))*(FG69/FF49) -> 0.1310043668 | FF72: =-FH69-(FC72*FC55)+((FC69-(FC72*FD34))/(FD69+(FG69/FF49)*FD34))*FF73 -> -1032019.493 | FG72: =+FE69-(FE69/(FD69+(FG69/FF49)*FD34))*FF73 -> 657.7729258 | FH72: =+FF72/FG72 -> -1568.96
AI73: T | AJ73: =X34 -> 500.0 | AK73: =AK33 -> 500.0 | AL73: 0 | AM73: 0% | CH73: =MINVERSE(CH67:CJ70) ->  | CL73: =MMULT(CH73:CJ75,CL67:CL70) ->  | CW73: IS | CX73: =CW62*CW70+CY36*CX62 -> 1650 | CY73: =CX70 -> 1650 | CZ73: =CX73-CY73 -> 0 | DR73: IS | DS73: =DR62*DR70+DT36*DS62 -> 1650 | DT73: =DS70 -> 1650 | DU73: =DS73-DT73 -> 0 | EG73: 1 | EH73: 2 | EI73: 3 | EJ73: 4 | EK73: 5 | EL73: 6 | EO73: =EO71*EO72 -> 0.1310043668 | FF73: =+FD43-(FG69/FF49)*FC55 -> -499.81
AI74: DP | AJ74: =X43 -> 0 | AK74: =AK43 -> 0 | AL74: 0 | AM74: =IF(AL74=0,0,AK74/AK66) -> 0% | BU74: =BV66 ->  | BV74: =BW33 ->  | BW74: =-BV67 ->  | BY74: =BV65 ->  | BZ74: YOP | CW74: LM | CX74: =-CY51*CW62+DA51*CX62+CY62 -> -388 | CY74: =CY70 -> -388 | CZ74: =CX74-CY74 -> 0 | DR74: LM | DS74: =-DT51*DR62+DV51*DS62+DT62 -> -388 | DT74: =DT70 -> -388 | DU74: =DS74-DT74 -> 0 | EG74: D/m2 | EN74: -F | EO74: =EL72*-1 -> 15480 | FC74: =+(FC69-(FC72*FD34))/(FD69+(FG69/FF49)*FD34) -> 4656.77 | FD74: =+FE69/(FD69+(FG69/FF49)*FD34) -> 1.310043668
AI75: Ms | AJ75: =U50 -> 1,200.0 | AK75: =AH50 -> 1,200.0 | AL75: 0 | AM75: 0% | BU75: =BV70 ->  | BV75: -1.00 | BW75: 0 | BY75: =-BV69 ->  | CW75: BP | CX75: =-CY45*CW62+CX58*CX62 -> -1050 | CY75: =DA70 -> -1050 | CZ75: =CX75-CY75 -> 0 | DR75: BP | DS75: =-DT45*DR62+DS58*DS62 -> -1050 | DT75: =DV70 -> -1050 | DU75: =DS75-DT75 -> 0 | EG75: =+EJ72/(EJ52) -> -256 | EH75: =+((EG72-(EG75*EH37))/(EH72+(EK72/EJ52)*EH37))*(EK72/EJ52) -> 465.68 | EI75: =+(EI72/(EH72+((EK72/EJ52)*EH37)))*(EK72/EJ52) -> 0.1310043668 | EJ75: =-EL72-(EG75*EG58)+((EG72-(EG75*EH37))/(EH72+(EK72/EJ52)*EH37))*EJ76 -> -1032019.493 | EK75: =+EI72-(EI72/(EH72+(EK72/EJ52)*EH37))*EJ76 -> 657.7729258 | EL75: =+EJ75/EK75 -> -1568.96 | EN75: -(D*p0/m2) | EO75: =(EJ72*EG58/EJ52)*-1 -> 1280000
AI76: Md | AJ76: =U47 -> 1,200.0 | AK76: =AH47 -> 1,200.0 | AL76: 0 | AM76: 0% | BU76: =BW42 ->  | BV76: =-BY33 ->  | BW76: =-BV67 ->  | BY76: =-BV71 ->  | EJ76: =+EH46-(EK72/EJ52)*EG58 -> -499.81 | EN76: (A-(D*i1/m2))/(B+(E*i1/m2)) | EO76: =EO67/EO68 -> 4656.768559 | FG76: =+FC55*FD55-FD43*FE43+FE69*FD58 -> 15480
AI77: Multiplicador | AJ77: =W56 -> 2.5 | AK77: =AJ56 -> 2.5 | AL77: 0 | AM77: 0% | EG77: =+(EG72-(EG75*EH37))/(EH72+(EK72/EJ52)*EH37) -> 4656.77 | EH77: =+EI72/(EH72+(EK72/EJ52)*EH37) -> 1.310043668 | EN77: q1-(E*p0/m2) | EO77: =EH46-(EK72*EG58/EJ52) -> -499.81
AI78: Pendiente IS | AJ78: =X56 -> -0.00400 | AK78: =AK56 -> -0.00400 | AL78: 0 | AM78: 0% | CW78: POLÍTICA ECONÓMICA | EO78: =EO74+EO75+(EO76*EO77) -> -1032019.493
AI79: Pendiente LM | AJ79: =Y56 -> 0.00397 | AK79: =AL56 -> 0.00397 | AL79: 0 | AM79: 0% | BU79: =MINVERSE(BU74:BW76) ->  | BY79: =MMULT(BU79:BW81,BY74:BY76) ->  | BZ79: Y | CW79: MONETARIA | CX79: FISCAL | CZ79: Cambiaria | DA79: EXOGENA | EK79: =+EG58*EH58-EH46*EI46+EI72*EH61 -> 15480 | EN79: C | EO79: =EI72 -> 3
AJ80: Esta seccion muestra los efectos de la Política Económica | BZ80: r | CW80: CIN | CX80: t | CY80: g0 | CZ80: tc | DA80: rext | DR80: VARIABLES | DS80: ORIGINAL | DT80: CHOQUE | DU80: VAR ABS | DV80: VAR REL | EN80: -C/(B+(E*i1/m2)) | EO80: =EO79/EO68*-1 -> -1.310043668 | FB80: VARIABLES | FC80: ORIGINAL | FD80: CHOQUE | FE80: VAR ABS | FF80: VAR REL
BZ81: TCR | CW81: =+CX48*(1+CW82) -> 400 | CX81: =+DA30*(1+CX82) -> 200 | CY81: =+CX39*(1+CY82) -> 200 | CZ81: =+DB42*(1+CZ82) -> 12 | DA81: =+CZ58*(1+DA82) -> 2 | DR81: Y | DS81: =CW27 -> 2,650.0 | DT81: =DR27 -> 2,650.0 | DU81: =DT81-DS81 -> 0 | DV81: =DT81/DS81-1 -> 0% | EN81: q1-(E*p0/m2) | EO81: =EO77 -> -499.81 | FB81: Y | FC81: =EI31 -> 2,601.4 | FD81: =FE28 -> 2,601.4 | FE81: =FD81-FC81 -> 0 | FF81: =FD81/FC81-1 -> 0%
CW82: =+IS_LM_BP_Fijo!B48 -> 0% | CX82: =+IS_LM_BP_Fijo!C48 -> 0% | CY82: =+IS_LM_BP_Fijo!D48 -> 0% | CZ82: =+IS_LM_BP_Fijo!E48 -> 0% | DA82: =+IS_LM_BP_Fijo!F48 -> 0% | DR82: r | DS82: =CZ36 -> 2.0 | DT82: =DU36 -> 2.0 | DU82: =DT82-DS82 -> 0 | DV82: nd | EO82: =EO79+(EO80*EO81) -> 657.7729258 | FB82: r | FC82: =EI37 -> 4.1 | FD82: =FE34 -> 4.1 | FE82: =FD82-FC82 -> 0
CW83: NUEVOS VALORES DE EQUILIBRIO | DE83: =CY36/(1-CY30+CY45) -> 50 | DR83: TC | DS83: =DB42 -> 12.0 | DT83: =DW42 -> 12.0 | DU83: =DT83-DS83 -> 0 | DV83: =DT83/DS83-1 -> 0% | EF83: POLÍTICA ECONÓMICA | FB83: TC | FC83: =EK43 -> -1,569.0 | FD83: =FG40 -> -1,569.0 | FE83: 0 | FF83: =FD83/FC83-1 -> 0%
CW84: Y | CX84: r | CY84: ri | CZ84: tc | DA84: Saldo (X-M) | DB84: Saldo Pub. | DR84: C | DS84: =CW30 -> 2,160.0 | DT84: =DR30 -> 2,160.0 | DU84: 0 | DV84: =DT84/DS84-1 -> 0% | EF84: MONETARIA | EH84: FISCAL | EJ84: EXOGENA | EO84: =EO66+EO70+(EO73*(EO78/EO82)) -> 4.136227843 | FB84: C | FC84: =EF31 -> 1,961.1 | FD84: =FB28 -> 1,961.1 | FE84: 0 | FF84: 0%
CW85: =+DR62 -> 2,650 | CX85: =+DS62 -> 2.0 | CY85: =+DT62 -> 140.00 | CZ85: =+DW42 -> 12.00 | DA85: =+DY42 -> 0 | DB85: =+DZ42 -> 0 | DR85: S | DS85: =CW33 -> 290.0 | DT85: =DR33 -> 290.0 | DU85: 0 | DV85: 0% | EF85: CIN | EG85: RI | EH85: t | EI85: g0 | EJ85: rext | FB85: S | FC85: =EF34 -> 240.3 | FD85: =FB31 -> 240.3 | FE85: 0 | FF85: 0%
CW86: DIFERENCIA ABSOLUTA Y PORCENTUAL | DR86: I | DS86: =CW36 -> 290.0 | DT86: =DR36 -> 290.0 | DU86: 0 | DV86: 0% | EF86: =+EG49*(1+EF87) -> 422 | EG86: =+EH49*(1+EG87) -> 100 | EH86: =+EJ31*(1+EH87) -> 400 | EI86: =+EG40*(1+EI87) -> 400 | EJ86: =+EI58*(1+EJ87) -> 4 | FB86: I | FC86: =EF37 -> 921.4 | FD86: =FB34 -> 921.4 | FE86: 0 | FF86: 0%
CW87: Y | CX87: r | CY87: ri | CZ87: tc | DA87: Saldo (X-M) | DB87: Saldo Pub. | DR87: G | DS87: =CW39 -> 200.0 | DT87: =DR39 -> 200.0 | DU87: 0 | DV87: 0% | EF87: =+IS_LM_BP_FLEXIBLE!B49 -> 0% | EG87: =+IS_LM_BP_FLEXIBLE!C49 -> 0% | EH87: =+IS_LM_BP_FLEXIBLE!D49 -> 0% | EI87: =+IS_LM_BP_FLEXIBLE!E49 -> 0% | EJ87: =+IS_LM_BP_FLEXIBLE!F49 -> 0% | FB87: G | FC87: =EF40 -> 400.0 | FD87: =FB37 -> 400.0 | FE87: 0 | FF87: 0%
CW88: =+DR62-CW62 -> 0.0 | CX88: =+CX85-CX62 -> 0.0 | CY88: =+DT62-CY62 -> 0.0 | CZ88: =+DW45-DB42 -> 0.0 | DA88: =+DA85-DD42 -> 0.0 | DB88: =+DZ42-DE42 -> 0.0 | DR88: T | DS88: =DA30 -> 200.0 | DT88: =DV30 -> 200.0 | DU88: 0 | DV88: 0% | EF88: NUEVOS VALORES DE EQUILIBRIO | FB88: T | FC88: =EJ34 -> 400.0 | FD88: =FF31 -> 400.0 | FE88: 0 | FF88: 0%
CW89: =+CW88/CW27 -> 0.0% | CX89: =+CX88/CX62 -> 0.0% | CY89: =+CY88/CY62 -> 0.0% | CZ89: =+CZ88/DB45 -> 0.0% | DA89: =+DA88/DD42 ->  | DB89: =+DB88/DE42 ->  | DR89: DP | DS89: =DE42 -> 0 | DT89: =DZ42 -> 0 | DU89: 0 | DV89: =DT89/DT81 -> 0% | EF89: Y | EG89: r | EH89: tc | EI89: Saldo (X-M) | EJ89: Saldo Pub. | FB89: DP | FC89: =EK40 -> 0 | FD89: =FG37 -> 0 | FE89: 0 | FF89: =FD89/FD81 -> 0%
DR90: X | DS90: =CW42 -> 1,046.0 | DT90: =DR42 -> 1,046.0 | DU90: 0 | DV90: 0% | EF90: =+FB58 -> 2,601 | EG90: =+FC58 -> 4 | EH90: =+FD58 -> (1,569) | EI90: =+FF37 -> (681) | EJ90: =+FG37 -> 0 | FB90: X | FC90: =EF43 -> 3,001.0 | FD90: =FB40 -> 3,001.0 | FE90: 0 | FF90: =FD90/FC90-1 -> 0%
DR91: Q | DS91: =CW45 -> 1,046.0 | DT91: =DR45 -> 1,046.0 | DU91: 0 | DV91: 0% | EF91: DIFERENCIA ABSOLUTA Y PORCENTUAL | FB91: Q | FC91: =EF46 -> 3,682.2 | FD91: =FB43 -> 3,682.2 | FE91: 0 | FF91: =FD91/FC91-1 -> 0%
DR92: Dcom | DS92: =DD42 -> 0 | DT92: =DY42 -> 0 | DU92: 0 | DV92: =DT92/DT81 -> 0% | EF92: Y | EG92: r | EH92: tc | EI92: Saldo (X-M) | EJ92: Saldo Pub. | FB92: Dcom | FC92: =EJ40 -> -681.1 | FD92: =FF37 -> -681.1 | FE92: 0 | FF92: =IF(FE92=0,0,FD92/FD81) -> 0%
DR93: IEN | DS93: =CW58 -> 0 | DT93: =DR58 -> 0 | DU93: =DT93-DS93 -> 0 | DV93: =IF(DU93=0,0,DT93/DT81) -> 0% | EF93: =+EF90-EF61 -> 0.0 | EG93: =+EG90-EG61 -> 0.0 | EH93: =+EH90-EH61 -> 0.0 | EI93: =+EI90-EJ40 -> 0.0 | EJ93: =+EJ90-EK40 -> 0.0 | FB93: IEN | FC93: =EF58 -> 681.1 | FD93: =FB55 -> 681.1 | FE93: 0 | FF93: =IF(FE93=0,0,FD93/FD81) -> 0%
DR94: Ms(CIN) | DS94: =CX48 -> 400.0 | DT94: =DS48 -> 400.0 | DU94: =DT94-DS94 -> 0 | DV94: 0% | EF94: =+EF93/EF61 -> 0.0 | EG94: =+EG93/EG61 -> 0.0 | EH94: =+EH93/EH61 -> 0.0 | EI94: =+EI93/EJ40 -> 0.0% | EJ94: =+EJ93/EK40 ->  | FB94: Ms(CIN) | FC94: =EG49 -> 422.0 | FD94: =FC46 -> 422.0 | FE94: =FD94-FC94 -> 0 | FF94: =FD94/FC94-1 -> 0%
DR95: Ms(RI) | DS95: =CY48 -> 140.0 | DT95: =DT48 -> 140.0 | DU95: =DT95-DS95 -> 0 | DV95: 0% | FB95: Ms(RI) | FC95: =EH49 -> 100.0 | FD95: =FD46 -> 100.0 | FE95: =FD95-FC95 -> 0 | FF95: 0%
DR96: Ms | DS96: =CW48 -> 540.0 | DT96: =DR48 -> 540.0 | DU96: 0 | DV96: 0% | FB96: Ms | FC96: =EF49 -> 522.0 | FD96: =FB46 -> 522.0 | FE96: =FD96-FC96 -> 0 | FF96: 0%
DR97: Md | DS97: =CW51 -> 544.0 | DT97: =DR51 -> 544.0 | DU97: 0 | DV97: 0% | FB97: Md | FC97: =EF52 -> 522.0 | FD97: =FB49 -> 522.0 | FE97: 0 | FF97: 0%
DR98: Multiplicador | DS98: =DU81/DU87 ->  | DT98: =DS98 ->  | FB98: Multiplicador | FC98: =FE81/FE87 ->  | FD98: =FC98 -> 
DR99: Pendiente IS | DS99: =DA62 -> 0.02000 | DT99: =DV62 -> 0.0 | DU99: 0 | DV99: 0% | FB99: Pendiente IS | FC99: =EJ61 -> -48.71795 | FD99: =FF58 -> -48.7 | FE99: 0 | FF99: 0%
AV100: CURVAS IS INDEPENDIENTE | DR100: Pendiente LM | DS100: =DB62 -> 0.20000 | DT100: =DW62 -> 0.2 | DU100: 0 | DV100: 0% | FB100: Pendiente LM | FC100: =EK61 -> 0.10000 | FD100: =FG58 -> 0.1 | FE100: 0 | FF100: 0%
AV101: ECONOMÍA ABIERTA, PRECIOS RÍGIDOS, TIPO DE CAMBIO FIJO | DR101: Pendiente BP | DS101: =DC62 -> 0.08000 | DT101: =DX62 -> 0.1 | DU101: 0 | DV101: 0% | FB101: Pendiente BP | FC101: =EL61 -> 0.00004 | FD101: =FH58 -> 0.0 | FE101: 0 | FF101: 0%
AV102: ponderador 1 | AW102: ponderador 2 | AX102: r1 | AY102: IS(Y)1 | AZ102: r2 | BA102: IS(Y)2 | BB102: X line | BD102: Y line | BF102: X line | BH102: Y line | DS102: Esta seccion muestra los efectos de la Política Económica | FC102: Esta seccion muestra los efectos de la Política Económica
AV103: 0.50 | AW103: 0 | AX103: =AV103*$AY$130 -> 0.03 | AY103: =((1/(1-$AX$127+$AX$142))*($AW$127-$AX$127*$AW$133+$AW$130+$AW$136+($AW$139-$AW$142)+$AX$139*$AY$139+(($AZ$139-$AZ$142)*$BA$139)))+(($AX$130/(1-$AX$127+$AX$142))*AX103) -> 15,816.80 | AZ103: =AV103*$BL$130 -> 0.03 | BA103: =((1/(1-$BK$127+$BK$142))*($BJ$127-$BK$127*$BJ$133+$BJ$130+$BJ$136+($BJ$139-$BJ$142)+$BK$139*$BL$139+(($BM$139-$BM$142)*$BN$139)))+(($BK$130/(1-$BK$127+$BK$142))*AZ103) -> 15,816.80 | BB103: =$AY$127*AW103 -> 0 | BC103: =$AY$130 -> 0.06 | BD103: =$AY$127 -> 13,416.80 | BE103: =$AY$130*AW103 -> 0 | BF103: =$BL$127*AW103 -> 0 | BG103: =$BL$130 -> 0.06 | BH103: =$BL$127 -> 13,416.80 | BI103: =$BL$130*AW103 -> 0
AV104: 0.55 | AW104: 0.05 | AX104: 0.03 | AY104: 15,576.80 | AZ104: 0.03 | BA104: 15,576.80 | BB104: =$AY$127*AW104 -> 670.84 | BC104: =$AY$130 -> 0.06 | BD104: =$AY$127 -> 13,416.80 | BE104: =$AY$130*AW104 -> 0.00 | BF104: =$BL$127*AW104 -> 670.84 | BG104: =$BL$130 -> 0.06 | BH104: =$BL$127 -> 13,416.80 | BI104: =$BL$130*AW104 -> 0.00
AV105: 0.60 | AW105: 0.10 | AX105: 0.04 | AY105: 15,336.80 | AZ105: 0.04 | BA105: 15,336.80 | BB105: 1,341.68 | BC105: 0.06 | BD105: 13,416.80 | BE105: 0.01 | BF105: 1,341.68 | BG105: 0.06 | BH105: 13,416.80 | BI105: 0.01
AV106: 0.65 | AW106: 0.15 | AX106: 0.04 | AY106: 15,096.80 | AZ106: 0.04 | BA106: 15,096.80 | BB106: 2,012.52 | BC106: 0.06 | BD106: 13,416.80 | BE106: 0.01 | BF106: 2,012.52 | BG106: 0.06 | BH106: 13,416.80 | BI106: 0.01
AV107: 0.70 | AW107: 0.20 | AX107: 0.04 | AY107: 14,856.80 | AZ107: 0.04 | BA107: 14,856.80 | BB107: 2,683.36 | BC107: 0.06 | BD107: 13,416.80 | BE107: 0.01 | BF107: 2,683.36 | BG107: 0.06 | BH107: 13,416.80 | BI107: 0.01
AV108: 0.75 | AW108: 0.25 | AX108: 0.05 | AY108: 14,616.80 | AZ108: 0.05 | BA108: 14,616.80 | BB108: 3,354.20 | BC108: 0.06 | BD108: 13,416.80 | BE108: 0.02 | BF108: 3,354.20 | BG108: 0.06 | BH108: 13,416.80 | BI108: 0.02
AV109: 0.80 | AW109: 0.30 | AX109: 0.05 | AY109: 14,376.80 | AZ109: 0.05 | BA109: 14,376.80 | BB109: 4,025.04 | BC109: 0.06 | BD109: 13,416.80 | BE109: 0.02 | BF109: 4,025.04 | BG109: 0.06 | BH109: 13,416.80 | BI109: 0.02
AV110: 0.85 | AW110: 0.35 | AX110: 0.05 | AY110: 14,136.80 | AZ110: 0.05 | BA110: 14,136.80 | BB110: 4,695.88 | BC110: 0.06 | BD110: 13,416.80 | BE110: 0.02 | BF110: 4,695.88 | BG110: 0.06 | BH110: 13,416.80 | BI110: 0.02
AV111: 0.90 | AW111: 0.40 | AX111: 0.05 | AY111: 13,896.80 | AZ111: 0.05 | BA111: 13,896.80 | BB111: 5,366.72 | BC111: 0.06 | BD111: 13,416.80 | BE111: 0.02 | BF111: 5,366.72 | BG111: 0.06 | BH111: 13,416.80 | BI111: 0.02
AV112: 0.95 | AW112: 0.45 | AX112: 0.06 | AY112: 13,656.80 | AZ112: 0.06 | BA112: 13,656.80 | BB112: 6,037.56 | BC112: 0.06 | BD112: 13,416.80 | BE112: 0.03 | BF112: 6,037.56 | BG112: 0.06 | BH112: 13,416.80 | BI112: 0.03
AV113: 1.00 | AW113: 0.50 | AX113: =AV113*$AY$130 -> 0.06 | AY113: =((1/(1-$AX$127+$AX$142))*($AW$127-$AX$127*$AW$133+$AW$130+$AW$136+($AW$139-$AW$142)+$AX$139*$AY$139+(($AZ$139-$AZ$142)*$BA$139)))+(($AX$130/(1-$AX$127+$AX$142))*AX113) -> 13,416.80 | AZ113: =AV113*$BL$130 -> 0.06 | BA113: =((1/(1-$BK$127+$BK$142))*($BJ$127-$BK$127*$BJ$133+$BJ$130+$BJ$136+($BJ$139-$BJ$142)+$BK$139*$BL$139+(($BM$139-$BM$142)*$BN$139)))+(($BK$130/(1-$BK$127+$BK$142))*AZ113) -> 13,416.80 | BB113: 6,708.40 | BC113: 0.06 | BD113: 13,416.80 | BE113: 0.03 | BF113: 6,708.40 | BG113: 0.06 | BH113: 13,416.80 | BI113: 0.03
AV114: 1.05 | AW114: 0.55 | AX114: =AV114*$AY$130 -> 0.06 | AY114: =((1/(1-$AX$127+$AX$142))*($AW$127-$AX$127*$AW$133+$AW$130+$AW$136+($AW$139-$AW$142)+$AX$139*$AY$139+(($AZ$139-$AZ$142)*$BA$139)))+(($AX$130/(1-$AX$127+$AX$142))*AX114) -> 13,176.80 | AZ114: =AV114*$BL$130 -> 0.06 | BA114: =((1/(1-$BK$127+$BK$142))*($BJ$127-$BK$127*$BJ$133+$BJ$130+$BJ$136+($BJ$139-$BJ$142)+$BK$139*$BL$139+(($BM$139-$BM$142)*$BN$139)))+(($BK$130/(1-$BK$127+$BK$142))*AZ114) -> 13,176.80 | BB114: 7,379.24 | BC114: 0.06 | BD114: 13,416.80 | BE114: 0.03 | BF114: 7,379.24 | BG114: 0.06 | BH114: 13,416.80 | BI114: 0.03
AV115: 1.10 | AW115: 0.60 | AX115: 0.07 | AY115: 12,936.80 | AZ115: 0.07 | BA115: 12,936.80 | BB115: 8,050.08 | BC115: 0.06 | BD115: 13,416.80 | BE115: 0.04 | BF115: 8,050.08 | BG115: 0.06 | BH115: 13,416.80 | BI115: 0.04
AV116: 1.15 | AW116: 0.65 | AX116: 0.07 | AY116: 12,696.80 | AZ116: 0.07 | BA116: 12,696.80 | BB116: 8,720.92 | BC116: 0.06 | BD116: 13,416.80 | BE116: 0.04 | BF116: 8,720.92 | BG116: 0.06 | BH116: 13,416.80 | BI116: 0.04
AV117: 1.20 | AW117: 0.70 | AX117: 0.07 | AY117: 12,456.80 | AZ117: 0.07 | BA117: 12,456.80 | BB117: 9,391.76 | BC117: 0.06 | BD117: 13,416.80 | BE117: 0.04 | BF117: 9,391.76 | BG117: 0.06 | BH117: 13,416.80 | BI117: 0.04
AV118: 1.25 | AW118: 0.75 | AX118: 0.08 | AY118: 12,216.80 | AZ118: 0.08 | BA118: 12,216.80 | BB118: 10,062.60 | BC118: 0.06 | BD118: 13,416.80 | BE118: 0.05 | BF118: 10,062.60 | BG118: 0.06 | BH118: 13,416.80 | BI118: 0.05
AV119: 1.30 | AW119: 0.80 | AX119: 0.08 | AY119: 11,976.80 | AZ119: 0.08 | BA119: 11,976.80 | BB119: 10,733.44 | BC119: 0.06 | BD119: 13,416.80 | BE119: 0.05 | BF119: 10,733.44 | BG119: 0.06 | BH119: 13,416.80 | BI119: 0.05
AV120: 1.35 | AW120: 0.85 | AX120: 0.08 | AY120: 11,736.80 | AZ120: 0.08 | BA120: 11,736.80 | BB120: 11,404.28 | BC120: 0.06 | BD120: 13,416.80 | BE120: 0.05 | BF120: 11,404.28 | BG120: 0.06 | BH120: 13,416.80 | BI120: 0.05
AV121: 1.40 | AW121: 0.90 | AX121: 0.08 | AY121: 11,496.80 | AZ121: 0.08 | BA121: 11,496.80 | BB121: 12,075.12 | BC121: 0.06 | BD121: 13,416.80 | BE121: 0.05 | BF121: 12,075.12 | BG121: 0.06 | BH121: 13,416.80 | BI121: 0.05
AV122: 1.45 | AW122: 0.95 | AX122: 0.09 | AY122: 11,256.80 | AZ122: 0.09 | BA122: 11,256.80 | BB122: 12,745.96 | BC122: 0.06 | BD122: 13,416.80 | BE122: 0.06 | BF122: 12,745.96 | BG122: 0.06 | BH122: 13,416.80 | BI122: 0.06
AV123: 1.50 | AW123: 1.00 | AX123: 0.09 | AY123: 11,016.80 | AZ123: 0.09 | BA123: 11,016.80 | BB123: 13,416.80 | BC123: 0.06 | BD123: 13,416.80 | BE123: 0.06 | BF123: 13,416.80 | BG123: 0.06 | BH123: 13,416.80 | BI123: 0.06
AV125: FUNCIÓN CONSUMO | BI125: FUNCIÓN CONSUMO
AV126: C | AW126: b0 | AX126: b1 | AY126: Y | BI126: C | BJ126: b0 | BK126: b1 | BL126: Y
AV127: =AW127+(AX127*AY127)-(AX127*AW133) -> 10233.4 | AW127: ='curva IS'!C6 -> 300.0 | AX127: ='curva IS'!D6 -> 0.80 | AY127: =AY113 -> 13416.80 | BI127: =BJ127+(BK127*BL127)-(BK127*BJ133) -> 10233.4 | BJ127: ='curva IS'!C36 -> 300.0 | BK127: ='curva IS'!D36 -> 0.80 | BL127: =BA113 -> 13416.80
AV128: FUNCIÓN INVERSIÓN | BI128: FUNCIÓN INVERSIÓN
AV129: I | AW129: i0 | AX129: i1 | AY129: rn | BI129: I | BJ129: i0 | BK129: i1 | BL129: rn
AV130: =AW130+(AX130*AY130) -> 2600.0 | AW130: ='curva IS'!C10 -> 5000.0 | AX130: ='curva IS'!D10 -> -40000.0 | AY130: ='curva IS'!E10 -> 0.06 | BI130: =BJ130+(BK130*BL130) -> 2600.0 | BJ130: ='curva IS'!C40 -> 5000.0 | BK130: ='curva IS'!D40 -> -40000.0 | BL130: ='curva IS'!E40 -> 0.06
AV131: Impuestos | BI131: Impuestos
AV132: T | AW132: To | BI132: T | BJ132: To
AV133: =AW133 -> 1000.0 | AW133: ='curva IS'!C14 -> 1000.0 | BI133: =BJ133 -> 1000.0 | BJ133: ='curva IS'!C44 -> 1000.0
AV134: FUNCIÓN GASTO DE GOBIERNO | BI134: FUNCIÓN GASTO DE GOBIERNO
AV135: G | AW135: g0 | BI135: G | BJ135: g0
AV136: =AW136 -> 1000.0 | AW136: ='curva IS'!C18 -> 1000.0 | BI136: =BJ136+BK136*#REF! ->  | BJ136: ='curva IS'!C48 -> 1000.0
AV137: FUNCIÓN EXPORTACIONES | BI137: FUNCIÓN EXPORTACIONES
AV138: X | AW138: x0 | AX138: x1 | AY138: YRM | AZ138: x2 | BA138: Tcr | BI138: X | BJ138: x0 | BK138: x1 | BL138: YRM | BM138: x2 | BN138: Tcr
AV139: =AW139+(AX139*AY139)+(AZ139*BA139) -> 3,904 | AW139: ='curva IS'!C22 -> 500.0 | AX139: ='curva IS'!D22 -> 0.0 | AY139: ='curva IS'!E22 -> 200000.0 | AZ139: ='curva IS'!F22 -> 0.3 | BA139: ='curva IS'!G22 -> 12.0 | BI139: =BJ139+(BK139*BL139)+(BM139*BN139) -> 3,904 | BJ139: ='curva IS'!C52 -> 500.0 | BK139: ='curva IS'!D52 -> 0.0 | BL139: ='curva IS'!E52 -> 200000.0 | BM139: ='curva IS'!F52 -> 0.3 | BN139: ='curva IS'!G52 -> 12.0
AV140: FUNCIÓN IMPORTACIONES | BI140: FUNCIÓN IMPORTACIONES
AV141: Q | AW141: q0 | AX141: q1 | AY141: Y | AZ141: q2 | BA141: Tcr | BI141: Q | BJ141: q0 | BK141: q1 | BL141: Y | BM141: q2 | BN141: Tcr
AV142: =AW142+(AX142*AY142)+(AZ142*BA142) -> 4,320 | AW142: ='curva IS'!C26 -> 300.0 | AX142: ='curva IS'!D26 -> 0.3 | AY142: =AY127 -> 13416.80 | AZ142: ='curva IS'!F26 -> -0.4 | BA142: ='curva IS'!G26 -> 12.0 | BI142: =BJ142+(BK142*BL142)+(BM142*BN142) -> 4,320 | BJ142: ='curva IS'!C56 -> 300.0 | BK142: ='curva IS'!D56 -> 0.3 | BL142: ='curva IS'!E56 -> 13416.8 | BM142: ='curva IS'!F56 -> -0.4 | BN142: ='curva IS'!G56 -> 12.0
AV162: CURVAS LM INDEPENDIENTE
AV163: ECONOMÍA ABIERTA, PRECIOS RÍGIDOS, TIPO DE CAMBIO FIJO
AV164: ponderador 1 | AW164: ponderador 2 | AX164: Y | AY164: r | AZ164: Y2 | BA164: r2 | BB164: X line | BD164: Y line | BF164: X line2 | BH164: Y line2
AV165: 0.50 | AW165: 0 | AX165: =AV165*$AY$194 -> 1,325.00 | AY165: =(($AW$194-$AW$191*$AX$191-$AW$191*$AY$191)/$AZ$194*-1)+(($AX$194/$AZ$194*-1)*AX165) -> 0.01 | AZ165: =$BL$194*AV165 -> 1,325.00 | BA165: =(($BJ$194-$BJ$191*$BK$191-$BJ$191*$BL$191)/$BM$194*-1)+($BK$194/$BM$194*-1*AZ165) -> 0.01 | BB165: =$BA$194*AW165 -> 0 | BC165: =$AY$194 -> 2,650.00 | BD165: =AW165*$AY$194 -> 0 | BE165: =$BA$194 -> 0.08 | BF165: =$BN$194*AW165 -> 0 | BG165: =$BL$194 -> 2,650.00 | BH165: =AW165*$BL$194 -> 0 | BI165: =$BN$194 -> 0.08
AV166: 0.55 | AW166: 0.05 | AX166: 1,457.50 | AY166: 0.02 | AZ166: 1,457.50 | BA166: =(($BJ$194-$BJ$191*$BK$191-$BJ$191*$BL$191)/$BM$194*-1)+($BK$194/$BM$194*-1*AZ166) -> 0.02 | BB166: =$BA$194*AW166 -> 0.00 | BC166: =$AY$194 -> 2,650.00 | BD166: =AW166*$AY$194 -> 132.50 | BE166: =$BA$194 -> 0.08 | BF166: =$BN$194*AW166 -> 0.00 | BG166: =$BL$194 -> 2,650.00 | BH166: =AW166*$BL$194 -> 132.50 | BI166: =$BN$194 -> 0.08
AV167: 0.60 | AW167: 0.10 | AX167: 1,590.00 | AY167: 0.02 | AZ167: 1,590.00 | BA167: 0.02 | BB167: 0.01 | BC167: 2,650.00 | BD167: 265.00 | BE167: 0.08 | BF167: 0.01 | BG167: 2,650.00 | BH167: 265.00 | BI167: 0.08
AV168: 0.65 | AW168: 0.15 | AX168: 1,722.50 | AY168: 0.03 | AZ168: 1,722.50 | BA168: 0.03 | BB168: 0.01 | BC168: 2,650.00 | BD168: 397.50 | BE168: 0.08 | BF168: 0.01 | BG168: 2,650.00 | BH168: 397.50 | BI168: 0.08
AV169: 0.70 | AW169: 0.20 | AX169: 1,855.00 | AY169: 0.04 | AZ169: 1,855.00 | BA169: 0.04 | BB169: 0.02 | BC169: 2,650.00 | BD169: 530.00 | BE169: 0.08 | BF169: 0.02 | BG169: 2,650.00 | BH169: 530.00 | BI169: 0.08
AV170: 0.75 | AW170: 0.25 | AX170: 1,987.50 | AY170: 0.04 | AZ170: 1,987.50 | BA170: 0.04 | BB170: 0.02 | BC170: 2,650.00 | BD170: 662.50 | BE170: 0.08 | BF170: 0.02 | BG170: 2,650.00 | BH170: 662.50 | BI170: 0.08
AV171: 0.80 | AW171: 0.30 | AX171: 2,120.00 | AY171: 0.05 | AZ171: 2,120.00 | BA171: 0.05 | BB171: 0.02 | BC171: 2,650.00 | BD171: 795.00 | BE171: 0.08 | BF171: 0.02 | BG171: 2,650.00 | BH171: 795.00 | BI171: 0.08
AV172: 0.85 | AW172: 0.35 | AX172: 2,252.50 | AY172: 0.06 | AZ172: 2,252.50 | BA172: 0.06 | BB172: 0.03 | BC172: 2,650.00 | BD172: 927.50 | BE172: 0.08 | BF172: 0.03 | BG172: 2,650.00 | BH172: 927.50 | BI172: 0.08
AV173: 0.90 | AW173: 0.40 | AX173: 2,385.00 | AY173: 0.06 | AZ173: 2,385.00 | BA173: 0.06 | BB173: 0.03 | BC173: 2,650.00 | BD173: 1,060.00 | BE173: 0.08 | BF173: 0.03 | BG173: 2,650.00 | BH173: 1,060.00 | BI173: 0.08
AV174: 0.95 | AW174: 0.45 | AX174: 2,517.50 | AY174: 0.07 | AZ174: 2,517.50 | BA174: 0.07 | BB174: 0.03 | BC174: 2,650.00 | BD174: 1,192.50 | BE174: 0.08 | BF174: 0.03 | BG174: 2,650.00 | BH174: 1,192.50 | BI174: 0.08
AV175: 1.00 | AW175: 0.50 | AX175: =AV175*$AY$194 -> 2,650.00 | AY175: =(($AW$194-$AW$191*$AX$191-$AW$191*$AY$191)/$AZ$194*-1)+(($AX$194/$AZ$194*-1)*AX175) -> 0.08 | AZ175: =$BL$194*AV175 -> 2,650.00 | BA175: =(($BJ$194-$BJ$191*$BK$191-$BJ$191*$BL$191)/$BM$194*-1)+($BK$194/$BM$194*-1*AZ175) -> 0.08 | BB175: 0.04 | BC175: 2,650.00 | BD175: 1,325.00 | BE175: 0.08 | BF175: 0.04 | BG175: 2,650.00 | BH175: 1,325.00 | BI175: 0.08
AV176: 1.05 | AW176: 0.55 | AX176: =AV176*$AY$194 -> 2,782.50 | AY176: =(($AW$194-$AW$191*$AX$191-$AW$191*$AY$191)/$AZ$194*-1)+(($AX$194/$AZ$194*-1)*AX176) -> 0.08 | AZ176: =$BL$194*AV176 -> 2,782.50 | BA176: 0.08 | BB176: 0.04 | BC176: 2,650.00 | BD176: 1,457.50 | BE176: 0.08 | BF176: 0.04 | BG176: 2,650.00 | BH176: 1,457.50 | BI176: 0.08
AV177: 1.10 | AW177: 0.60 | AX177: 2,915.00 | AY177: 0.09 | AZ177: 2,915.00 | BA177: 0.09 | BB177: 0.05 | BC177: 2,650.00 | BD177: 1,590.00 | BE177: 0.08 | BF177: 0.05 | BG177: 2,650.00 | BH177: 1,590.00 | BI177: 0.08
AV178: 1.15 | AW178: 0.65 | AX178: 3,047.50 | AY178: 0.10 | AZ178: 3,047.50 | BA178: 0.10 | BB178: 0.05 | BC178: 2,650.00 | BD178: 1,722.50 | BE178: 0.08 | BF178: 0.05 | BG178: 2,650.00 | BH178: 1,722.50 | BI178: 0.08
AV179: 1.20 | AW179: 0.70 | AX179: 3,180.00 | AY179: 0.10 | AZ179: 3,180.00 | BA179: 0.10 | BB179: 0.05 | BC179: 2,650.00 | BD179: 1,855.00 | BE179: 0.08 | BF179: 0.05 | BG179: 2,650.00 | BH179: 1,855.00 | BI179: 0.08
AV180: 1.25 | AW180: 0.75 | AX180: 3,312.50 | AY180: 0.11 | AZ180: 3,312.50 | BA180: 0.11 | BB180: 0.06 | BC180: 2,650.00 | BD180: 1,987.50 | BE180: 0.08 | BF180: 0.06 | BG180: 2,650.00 | BH180: 1,987.50 | BI180: 0.08
AV181: 1.30 | AW181: 0.80 | AX181: 3,445.00 | AY181: 0.12 | AZ181: 3,445.00 | BA181: 0.12 | BB181: 0.06 | BC181: 2,650.00 | BD181: 2,120.00 | BE181: 0.08 | BF181: 0.06 | BG181: 2,650.00 | BH181: 2,120.00 | BI181: 0.08
AV182: 1.35 | AW182: 0.85 | AX182: 3,577.50 | AY182: 0.12 | AZ182: 3,577.50 | BA182: 0.12 | BB182: 0.07 | BC182: 2,650.00 | BD182: 2,252.50 | BE182: 0.08 | BF182: 0.07 | BG182: 2,650.00 | BH182: 2,252.50 | BI182: 0.08
AV183: 1.40 | AW183: 0.90 | AX183: 3,710.00 | AY183: 0.13 | AZ183: 3,710.00 | BA183: 0.13 | BB183: 0.07 | BC183: 2,650.00 | BD183: 2,385.00 | BE183: 0.08 | BF183: 0.07 | BG183: 2,650.00 | BH183: 2,385.00 | BI183: 0.08
AV184: 1.45 | AW184: 0.95 | AX184: 3,842.50 | AY184: 0.14 | AZ184: 3,842.50 | BA184: 0.14 | BB184: 0.07 | BC184: 2,650.00 | BD184: 2,517.50 | BE184: 0.08 | BF184: 0.07 | BG184: 2,650.00 | BH184: 2,517.50 | BI184: 0.08
AV185: 1.50 | AW185: 1.00 | AX185: 3,975.00 | AY185: 0.14 | AZ185: 3,975.00 | BA185: 0.14 | BB185: 0.08 | BC185: 2,650.00 | BD185: 2,650.00 | BE185: 0.08 | BF185: 0.08 | BG185: 2,650.00 | BH185: 2,650.00 | BI185: 0.08
AV189: FUNCIÓN DEMANDA (OFERTA) DE DINERO | BI189: FUNCIÓN DEMANDA (OFERTA) DE DINERO
AV190: MS | AW190: Mult | AX190: CIN | AY190: RI | BI190: MS | BJ190: Mult | BK190: Ms | BL190: RI
AV191: =AW191*(AX191+AY191) -> 4050.0 | AW191: ='curva LM'!C7 -> 3.0 | AX191: ='curva LM'!D7 -> 1050.0 | AY191: ='curva LM'!E7 -> 300.0 | BI191: =BJ191*(BK191+BL191) -> 4050.0 | BJ191: ='curva LM'!C17 -> 3.0 | BK191: ='curva LM'!D17 -> 1050.0 | BL191: ='curva LM'!E17 -> 300.0
AV192: DEMANDA DE DINERO | BI192: DEMANDA DE DINERO
AV193: Md | AW193: m0 | AX193: m1 | AY193: Y | AZ193: m2 | BA193: rn | BI193: Md | BJ193: m0 | BK193: m1 | BL193: Y | BM193: m2 | BN193: rn
AV194: =AW194+AX194*AY194+AZ194*BA194 -> 4050.0 | AW194: ='curva LM'!$C$11 -> 3500.0 | AX194: ='curva LM'!$D$11 -> 0.5 | AY194: ='curva LM'!$E$11 -> 2650.0 | AZ194: ='curva LM'!F11 -> -10000.0 | BA194: =((AW194-AW191*AX191-AW191*AY191)/AZ194*-1)+(AX194/AZ194*-1*AY194) -> 7.75% | BI194: =BJ194+BK194*BL194+BM194*BN194 -> 4050.0 | BJ194: ='curva LM'!C21 -> 3500.0 | BK194: ='curva LM'!D21 -> 0.5 | BL194: ='curva LM'!E21 -> 2650.0 | BM194: ='curva LM'!F21 -> -10000.0 | BN194: =(($BJ$194-$BJ$191*$BK$191-$BJ$191*$BL$191)/$BM$194*-1)+($BK$194/$BM$194*-1*AZ175) -> 7.75%
AV207: CURVAS BP INDEPENDIENTE
AV208: ECONOMÍA ABIERTA, PRECIOS RÍGIDOS, TIPO DE CAMBIO FIJO
AV209: ponderador 1 | AW209: ponderador 2 | AX209: r1 | AY209: BP1 | AZ209: r2 | BA209: BP2 | BB209: X line | BD209: Y line | BF209: X line | BH209: Y line
AV210: 0.50 | AW210: 0 | AX210: =$AY$241+(($AW$235*-1-$AX$235*$AY$235+$AW$238+($AZ$235*-1+$AZ$238)*$BA$235)/$AW$241)+($AX$238/$AW$241*AY210) -> (0.01) | AY210: =$AY$238*AV210 -> 1,325.00 | AZ210: =$BL$241+(($BJ$235*-1-$BK$235*$BL$235+$BJ$238+($BM$235*-1+$BM$238)*$BN$235)/$BJ$241)+($BK$238/$BJ$241*BA210) -> (0.01) | BA210: =$BL$238*AV210 -> 1,325.00 | BB210: =$AY$238 -> 2,650.00 | BC210: =AW210*$AX$241 -> 0 | BD210: =$AY$238*AW210 -> 0 | BE210: =$AX$241 -> 0.02 | BF210: =$BL$238 -> 2,650.00 | BG210: =AW210*$BK$241 -> 0 | BH210: =$BL$238*AW210 -> 0 | BI210: =$BK$241 -> 0.02
AV211: 0.55 | AW211: 0.05 | AX211: =$AY$241+(($AW$235*-1-$AX$235*$AY$235+$AW$238+($AZ$235*-1+$AZ$238)*$BA$235)/$AW$241)+($AX$238/$AW$241*AY211) -> (0.01) | AY211: 1,457.50 | AZ211: (0.01) | BA211: =$BL$238*AV211 -> 1,457.50 | BB211: =$AY$238 -> 2,650.00 | BC211: =AW211*$AX$241 -> 0.00 | BD211: =$AY$238*AW211 -> 132.50 | BE211: =$AX$241 -> 0.02 | BF211: =$BL$238 -> 2,650.00 | BG211: =AW211*$BK$241 -> 0.00 | BH211: =$BL$238*AW211 -> 132.50 | BI211: =$BK$241 -> 0.02
AV212: 0.60 | AW212: 0.10 | AX212: (0.01) | AY212: 1,590.00 | AZ212: (0.01) | BA212: 1,590.00 | BB212: 2,650.00 | BC212: 0.00 | BD212: 265.00 | BE212: 0.02 | BF212: 2,650.00 | BG212: 0.00 | BH212: 265.00 | BI212: 0.02
AV213: 0.65 | AW213: 0.15 | AX213: (0.00) | AY213: 1,722.50 | AZ213: (0.00) | BA213: 1,722.50 | BB213: 2,650.00 | BC213: 0.00 | BD213: 397.50 | BE213: 0.02 | BF213: 2,650.00 | BG213: 0.00 | BH213: 397.50 | BI213: 0.02
AV214: 0.70 | AW214: 0.20 | AX214: (0.00) | AY214: 1,855.00 | AZ214: (0.00) | BA214: 1,855.00 | BB214: 2,650.00 | BC214: 0.00 | BD214: 530.00 | BE214: 0.02 | BF214: 2,650.00 | BG214: 0.00 | BH214: 530.00 | BI214: 0.02
AV215: 0.75 | AW215: 0.25 | AX215: 0.00 | AY215: 1,987.50 | AZ215: 0.00 | BA215: 1,987.50 | BB215: 2,650.00 | BC215: 0.00 | BD215: 662.50 | BE215: 0.02 | BF215: 2,650.00 | BG215: 0.00 | BH215: 662.50 | BI215: 0.02
AV216: 0.80 | AW216: 0.30 | AX216: 0.00 | AY216: 2,120.00 | AZ216: 0.00 | BA216: 2,120.00 | BB216: 2,650.00 | BC216: 0.00 | BD216: 795.00 | BE216: 0.02 | BF216: 2,650.00 | BG216: 0.00 | BH216: 795.00 | BI216: 0.02
AV217: 0.85 | AW217: 0.35 | AX217: 0.01 | AY217: 2,252.50 | AZ217: 0.01 | BA217: 2,252.50 | BB217: 2,650.00 | BC217: 0.01 | BD217: 927.50 | BE217: 0.02 | BF217: 2,650.00 | BG217: 0.01 | BH217: 927.50 | BI217: 0.02
AV218: 0.90 | AW218: 0.40 | AX218: 0.01 | AY218: 2,385.00 | AZ218: 0.01 | BA218: 2,385.00 | BB218: 2,650.00 | BC218: 0.01 | BD218: 1,060.00 | BE218: 0.02 | BF218: 2,650.00 | BG218: 0.01 | BH218: 1,060.00 | BI218: 0.02
AV219: 0.95 | AW219: 0.45 | AX219: 0.01 | AY219: 2,517.50 | AZ219: 0.01 | BA219: 2,517.50 | BB219: 2,650.00 | BC219: 0.01 | BD219: 1,192.50 | BE219: 0.02 | BF219: 2,650.00 | BG219: 0.01 | BH219: 1,192.50 | BI219: 0.02
AV220: 1.00 | AW220: 0.50 | AX220: 0.02 | AY220: =$AY$238*AV220 -> 2,650.00 | AZ220: =$BL$241+(($BJ$235*-1-$BK$235*$BL$235+$BJ$238+($BM$235*-1+$BM$238)*$BN$235)/$BJ$241)+($BK$238/$BJ$241*BA220) -> 0.02 | BA220: 2,650.00 | BB220: 2,650.00 | BC220: 0.01 | BD220: 1,325.00 | BE220: 0.02 | BF220: 2,650.00 | BG220: 0.01 | BH220: 1,325.00 | BI220: 0.02
AV221: 1.05 | AW221: 0.55 | AX221: 0.02 | AY221: =$AY$238*AV221 -> 2,782.50 | AZ221: =$BL$241+(($BJ$235*-1-$BK$235*$BL$235+$BJ$238+($BM$235*-1+$BM$238)*$BN$235)/$BJ$241)+($BK$238/$BJ$241*BA221) -> 0.02 | BA221: 2,782.50 | BB221: 2,650.00 | BC221: 0.01 | BD221: 1,457.50 | BE221: 0.02 | BF221: 2,650.00 | BG221: 0.01 | BH221: 1,457.50 | BI221: 0.02
AV222: 1.10 | AW222: 0.60 | AX222: 0.02 | AY222: 2,915.00 | AZ222: 0.02 | BA222: 2,915.00 | BB222: 2,650.00 | BC222: 0.01 | BD222: 1,590.00 | BE222: 0.02 | BF222: 2,650.00 | BG222: 0.01 | BH222: 1,590.00 | BI222: 0.02
AV223: 1.15 | AW223: 0.65 | AX223: 0.02 | AY223: 3,047.50 | AZ223: 0.02 | BA223: 3,047.50 | BB223: 2,650.00 | BC223: 0.01 | BD223: 1,722.50 | BE223: 0.02 | BF223: 2,650.00 | BG223: 0.01 | BH223: 1,722.50 | BI223: 0.02
AV224: 1.20 | AW224: 0.70 | AX224: 0.03 | AY224: 3,180.00 | AZ224: 0.03 | BA224: 3,180.00 | BB224: 2,650.00 | BC224: 0.01 | BD224: 1,855.00 | BE224: 0.02 | BF224: 2,650.00 | BG224: 0.01 | BH224: 1,855.00 | BI224: 0.02
AV225: 1.25 | AW225: 0.75 | AX225: 0.03 | AY225: 3,312.50 | AZ225: 0.03 | BA225: 3,312.50 | BB225: 2,650.00 | BC225: 0.01 | BD225: 1,987.50 | BE225: 0.02 | BF225: 2,650.00 | BG225: 0.01 | BH225: 1,987.50 | BI225: 0.02
AV226: 1.30 | AW226: 0.80 | AX226: 0.03 | AY226: 3,445.00 | AZ226: 0.03 | BA226: 3,445.00 | BB226: 2,650.00 | BC226: 0.01 | BD226: 2,120.00 | BE226: 0.02 | BF226: 2,650.00 | BG226: 0.01 | BH226: 2,120.00 | BI226: 0.02
AV227: 1.35 | AW227: 0.85 | AX227: 0.03 | AY227: 3,577.50 | AZ227: 0.03 | BA227: 3,577.50 | BB227: 2,650.00 | BC227: 0.01 | BD227: 2,252.50 | BE227: 0.02 | BF227: 2,650.00 | BG227: 0.01 | BH227: 2,252.50 | BI227: 0.02
AV228: 1.40 | AW228: 0.90 | AX228: 0.04 | AY228: 3,710.00 | AZ228: 0.04 | BA228: 3,710.00 | BB228: 2,650.00 | BC228: 0.01 | BD228: 2,385.00 | BE228: 0.02 | BF228: 2,650.00 | BG228: 0.01 | BH228: 2,385.00 | BI228: 0.02
AV229: 1.45 | AW229: 0.95 | AX229: 0.04 | AY229: 3,842.50 | AZ229: 0.04 | BA229: 3,842.50 | BB229: 2,650.00 | BC229: 0.01 | BD229: 2,517.50 | BE229: 0.02 | BF229: 2,650.00 | BG229: 0.01 | BH229: 2,517.50 | BI229: 0.02
AV230: 1.50 | AW230: 1.00 | AX230: 0.04 | AY230: 3,975.00 | AZ230: 0.04 | BA230: 3,975.00 | BB230: 2,650.00 | BC230: 0.02 | BD230: 2,650.00 | BE230: 0.02 | BF230: 2,650.00 | BG230: 0.02 | BH230: 2,650.00 | BI230: 0.02
AV234: X | AW234: x0 | AX234: x1 | AY234: YRM | AZ234: x2 | BA234: Tcr | BI234: X | BJ234: x0 | BK234: x1 | BL234: YRM | BM234: x2 | BN234: Tcr
AV235: =AW235+(AX235*AY235)+(AZ235*BA235) -> 1,355 | AW235: ='curva BP'!C6 -> 150.0 | AX235: ='curva BP'!D6 -> 0.015 | AY235: ='curva BP'!E6 -> 80000.0 | AZ235: ='curva BP'!F6 -> 0.4 | BA235: ='curva BP'!G6 -> 12.0 | BI235: =BJ235+(BK235*BL235)+(BM235*BN235) -> 1,355 | BJ235: ='curva BP'!C19 -> 150.0 | BK235: ='curva BP'!D19 -> 0.0 | BL235: ='curva BP'!E19 -> 80000.0 | BM235: ='curva BP'!F19 -> 0.4 | BN235: ='curva BP'!G19 -> 12.0
AV236: FUNCIÓN IMPORTACIONES | BI236: FUNCIÓN IMPORTACIONES
AV237: Q | AW237: q0 | AX237: q1 | AY237: Y | AZ237: q2 | BA237: Tcr | BI237: Q | BJ237: q0 | BK237: q1 | BL237: Y | BM237: q2 | BN237: Tcr
AV238: =AW238+(AX238*AY238)+(AZ238*BA238) -> 1,255 | AW238: ='curva BP'!C10 -> 200.0 | AX238: ='curva BP'!D10 -> 0.40 | AY238: ='curva BP'!E10 -> 2650.0 | AZ238: ='curva BP'!F10 -> -0.4 | BA238: =BA235 -> 12.0 | BI238: =BJ238+(BK238*BL238)+(BM238*BN238) -> 1,255 | BJ238: ='curva BP'!C23 -> 200.0 | BK238: ='curva BP'!D23 -> 0.4 | BL238: ='curva BP'!E23 -> 2650.0 | BM238: ='curva BP'!F23 -> -0.4 | BN238: ='curva BP'!G23 -> 12.0
... 3 more rows

Sheet IS_LM_Cerrada_G_PF (hidden)
A1: SISTEMA IS-LM
A2: Economía cerrada con gobierno y precios flexibles
B3: DEMANDA AGREGADA NOMINAL
B4: Y | C4: C | D4: I | E4: G | H4: VARIABLES | I4: ORIGINAL | J4: CHOQUE | K4: VAR ABS | L4: VAR REL
B5: ='Oculto IS-LM'!U27 -> 5,000 | C5: ='Oculto IS-LM'!V27 -> 3,800 | D5: ='Oculto IS-LM'!W27 -> 700 | E5: ='Oculto IS-LM'!X27 -> 500 | H5: Y | I5: ='Oculto IS-LM'!AJ66 -> 5,000.3 | J5: ='Oculto IS-LM'!AK66 -> 5,000.3 | K5: =J5-I5 -> 0 | L5: ='Oculto IS-LM'!AM66 -> 0%
H6: r | I6: ='Oculto IS-LM'!AJ67 -> 10.3 | J6: ='Oculto IS-LM'!AK67 -> 10.3 | K6: ='Oculto IS-LM'!AL67 -> 0 | L6: ='Oculto IS-LM'!AM67 -> 0%
B7: DEMANDA AGREGADA REAL | H7: P | I7: ='Oculto IS-LM'!AJ68 -> 1.0 | J7: ='Oculto IS-LM'!AK68 -> 1.0 | K7: ='Oculto IS-LM'!AL68 -> 0 | L7: ='Oculto IS-LM'!AM68 -> 0%
B8: Y | C8: C | D8: I | E8: G | H8: C | I8: ='Oculto IS-LM'!AJ69 -> 3,800.3 | J8: ='Oculto IS-LM'!AK69 -> 3,800.3 | K8: ='Oculto IS-LM'!AL69 -> 0 | L8: ='Oculto IS-LM'!AM69 -> 0%
B9: ='Oculto IS-LM'!U30 -> 5,000 | C9: ='Oculto IS-LM'!V30 -> 3,800 | D9: ='Oculto IS-LM'!W30 -> 700 | E9: ='Oculto IS-LM'!X30 -> 500 | H9: S | I9: ='Oculto IS-LM'!AJ70 -> 700.1 | J9: ='Oculto IS-LM'!AK70 -> 700.1 | K9: ='Oculto IS-LM'!AL70 -> 0 | L9: ='Oculto IS-LM'!AM70 -> 0%
C10: ='Oculto IS-LM'!V31 -> 76% | D10: ='Oculto IS-LM'!W31 -> 14% | E10: ='Oculto IS-LM'!X31 -> 10% | H10: I | I10: ='Oculto IS-LM'!AJ71 -> 700.1 | J10: ='Oculto IS-LM'!AK71 -> 700.1 | K10: ='Oculto IS-LM'!AL71 -> 0 | L10: ='Oculto IS-LM'!AM71 -> 0%
H11: G | I11: ='Oculto IS-LM'!AJ72 -> 500.0 | J11: ='Oculto IS-LM'!AK72 -> 500.0 | K11: ='Oculto IS-LM'!AL72 -> 0 | L11: ='Oculto IS-LM'!AM72 -> 0%
B12: FUNCIÓN CONSUMO | H12: T | I12: ='Oculto IS-LM'!AJ73 -> 500.0 | J12: ='Oculto IS-LM'!AK73 -> 500.0 | K12: ='Oculto IS-LM'!AL73 -> 0 | L12: ='Oculto IS-LM'!AM73 -> 0%
B13: C | C13: b0 | D13: b1 | E13: T0 | H13: DP | I13: ='Oculto IS-LM'!AJ74 -> 0 | J13: ='Oculto IS-LM'!AK74 -> 0 | K13: ='Oculto IS-LM'!AL74 -> 0 | L13: ='Oculto IS-LM'!AM74 -> 0%
B14: ='Oculto IS-LM'!U34 -> 3,800 | C14: 200 | D14: 0.80 | E14: 500 | H14: Ms | I14: ='Oculto IS-LM'!AJ75 -> 1,200.0 | J14: ='Oculto IS-LM'!AK75 -> 1,200.0 | K14: ='Oculto IS-LM'!AL75 -> 0 | L14: ='Oculto IS-LM'!AM75 -> 0%
H15: Md | I15: ='Oculto IS-LM'!AJ76 -> 1,200.0 | J15: ='Oculto IS-LM'!AK76 -> 1,200.0 | K15: ='Oculto IS-LM'!AL76 -> 0 | L15: ='Oculto IS-LM'!AM76 -> 0%
B16: FUNCIÓN AHORRO | H16: Pendiente IS | I16: ='Oculto IS-LM'!AJ78 -> -0.00400 | J16: ='Oculto IS-LM'!AK78 -> -0.0 | K16: ='Oculto IS-LM'!AL78 -> 0 | L16: ='Oculto IS-LM'!AM78 -> 0%
B17: S | C17: -b0 | D17: 1-b1 | E17: T0 | H17: Pendiente LM | I17: ='Oculto IS-LM'!AJ79 -> 0.00397 | J17: ='Oculto IS-LM'!AK79 -> 0.0 | K17: ='Oculto IS-LM'!AL79 -> 0 | L17: ='Oculto IS-LM'!AM79 -> 0%
B18: ='Oculto IS-LM'!U37 -> 700 | C18: ='Oculto IS-LM'!V37 -> -200 | D18: ='Oculto IS-LM'!W37 -> 0.20 | E18: ='Oculto IS-LM'!X37 -> 500 | I18: Esta seccion muestra los efectos de la Política Económica
B20: FUNCIÓN INVERSIÓN
B21: I | C21: i0 | D21: i1
B22: ='Oculto IS-LM'!U40 -> 700 | C22: 1,216 | D22: (50)
B24: GASTO DE GOBIERNO | E24: Déficit Público
B25: G | C25: Go | E25: T-G
B26: ='Oculto IS-LM'!U43 -> 500 | C26: 500 | E26: =E14-B26 -> 0
B28: FUNCIÓN DEMANDA DE DINERO
B29: Md | C29: m0 | D29: m1 | E29: m2
B30: ='Oculto IS-LM'!U47 -> 1,200 | C30: 600 | D30: 0.25 | E30: (63)
B32: OFERTA DE DINERO
B33: Ms | C33: Ms
B34: ='Oculto IS-LM'!U50 -> 1,200 | C34: 1,200
B36: PRECIO E INFLACIÓN
B37: P
B38: 1.00
B40: VALORES DE EQUILIBRIO INICIAL
B41: Y | C41: rn | D41: Pend. IS | E41: Pend. LM
B42: ='Oculto IS-LM'!U56 -> 5,000 | C42: ='Oculto IS-LM'!V56 -> 10.3 | D42: ='Oculto IS-LM'!X56 -> -0.00400000 | E42: ='Oculto IS-LM'!Y56 -> 0.003968254
B44: CHOQUES DE POLÍTICA ECONÓMICA
B45: MONETARIA | C45: FISCAL | E45: EXOGENA
B46: Ms | C46: T1 | D46: G1 | E46: b0 | F46: i0
B47: ='Oculto IS-LM'!U61 -> 1,200 | C47: ='Oculto IS-LM'!V61 -> 500 | D47: ='Oculto IS-LM'!W61 -> 500 | E47: ='Oculto IS-LM'!Y61 -> 200 | F47: ='Oculto IS-LM'!Z61 -> 1,216
B48: 0% | C48: 0% | D48: 0% | E48: 0% | F48: 0%
B50: NUEVOS VALORES REALES DE EQUILIBRIO
B51: Y | C51: rn | D51: Pend. IS | E51: Pend. LM
B52: ='Oculto IS-LM'!AH56 -> 5,000 | C52: ='Oculto IS-LM'!AI56 -> 10.3 | D52: ='Oculto IS-LM'!AK56 -> -0.00400000 | E52: ='Oculto IS-LM'!AL56 -> 0.003968254
B55: Títulos
B56: Resultados
B57: Insertar datos
B58: Valores de equilibrio
B59: Política económica
D118: -20799000

Sheet IS_LM_BP_Fijo (hidden)
A1: SISTEMA IS-LM-BP
A2: Economía abierta con gobierno, precios rígidos y tipo de cambio fijo
B4: INGRESO NACIONAL | J4: VARIABLES | K4: ORIGINAL | L4: CHOQUE | M4: VAR ABS | N4: VAR REL
B5: Y | C5: C | D5: I | E5: G | F5: X | G5: M | J5: Y | K5: ='Oculto IS-LM'!DS81 -> 2,650.0 | L5: ='Oculto IS-LM'!DT81 -> 2,650.0 | M5: ='Oculto IS-LM'!DU81 -> 0 | N5: ='Oculto IS-LM'!DV81 -> 0%
B6: =+'Oculto IS-LM'!CW27 -> 2,650.00 | C6: =+'Oculto IS-LM'!CX27 -> 2,160.00 | D6: =+'Oculto IS-LM'!CY27 -> 290.00 | E6: =+'Oculto IS-LM'!CZ27 -> 200.00 | F6: =+'Oculto IS-LM'!DA27 -> 1,046.00 | G6: =+'Oculto IS-LM'!DB27 -> 1,046.00 | J6: r | K6: ='Oculto IS-LM'!DS82 -> 2.0 | L6: ='Oculto IS-LM'!DT82 -> 2.0 | M6: ='Oculto IS-LM'!DU82 -> 0
J7: TC | K7: ='Oculto IS-LM'!DS83 -> 12.0 | L7: ='Oculto IS-LM'!DT83 -> 12.0 | M7: ='Oculto IS-LM'!DU83 -> 0 | N7: ='Oculto IS-LM'!DV83 -> 0%
B8: FUNCION CONSUMO | J8: C | K8: ='Oculto IS-LM'!DS84 -> 2,160.0 | L8: ='Oculto IS-LM'!DT84 -> 2,160.0 | M8: ='Oculto IS-LM'!DU84 -> 0 | N8: ='Oculto IS-LM'!DV84 -> 0%
B9: C | C9: b0 | D9: b1 | E9: y | F9: t0 | J9: S | K9: ='Oculto IS-LM'!DS85 -> 290.0 | L9: ='Oculto IS-LM'!DT85 -> 290.0 | M9: ='Oculto IS-LM'!DU85 -> 0 | N9: ='Oculto IS-LM'!DV85 -> 0%
B10: =+'Oculto IS-LM'!CW30 -> 2,160.00 | C10: 200 | D10: 0.8 | E10: =+'Oculto IS-LM'!CZ30 -> 2650.00 | F10: 200 | J10: I | K10: ='Oculto IS-LM'!DS86 -> 290.0 | L10: ='Oculto IS-LM'!DT86 -> 290.0 | M10: ='Oculto IS-LM'!DU86 -> 0 | N10: ='Oculto IS-LM'!DV86 -> 0%
J11: G | K11: ='Oculto IS-LM'!DS87 -> 200.0 | L11: ='Oculto IS-LM'!DT87 -> 200.0 | M11: ='Oculto IS-LM'!DU87 -> 0 | N11: ='Oculto IS-LM'!DV87 -> 0%
B12: FUNCION AHORRO | J12: T | K12: ='Oculto IS-LM'!DS88 -> 200.0 | L12: ='Oculto IS-LM'!DT88 -> 200.0 | M12: ='Oculto IS-LM'!DU88 -> 0 | N12: ='Oculto IS-LM'!DV88 -> 0%
B13: S | C13: -b0 | D13: b1 | E13: y | F13: T0 | J13: DP | K13: ='Oculto IS-LM'!DS89 -> 0 | L13: ='Oculto IS-LM'!DT89 -> 0 | M13: ='Oculto IS-LM'!DU89 -> 0 | N13: ='Oculto IS-LM'!DV89 -> 0.0%
B14: ='Oculto IS-LM'!CW33 -> 290.00 | C14: ='Oculto IS-LM'!CX33 -> -200 | D14: ='Oculto IS-LM'!CY33 -> 0.2 | E14: ='Oculto IS-LM'!CZ33 -> 2650.00 | F14: ='Oculto IS-LM'!DA33 -> 200 | J14: X | K14: ='Oculto IS-LM'!DS90 -> 1,046.0 | L14: ='Oculto IS-LM'!DT90 -> 1,046.0 | M14: ='Oculto IS-LM'!DU90 -> 0 | N14: ='Oculto IS-LM'!DV90 -> 0.0%
J15: Q | K15: ='Oculto IS-LM'!DS91 -> 1,046.0 | L15: ='Oculto IS-LM'!DT91 -> 1,046.0 | M15: ='Oculto IS-LM'!DU91 -> 0 | N15: ='Oculto IS-LM'!DV91 -> 0.0%
B16: FUNCION INVERSION | J16: Dcom | K16: ='Oculto IS-LM'!DS92 -> 0 | L16: ='Oculto IS-LM'!DT92 -> 0 | M16: ='Oculto IS-LM'!DU92 -> 0 | N16: ='Oculto IS-LM'!DV92 -> 0.0%
B17: I | C17: i0 | D17: i1 | E17: r | J17: IEN | K17: ='Oculto IS-LM'!DS93 -> 0 | L17: ='Oculto IS-LM'!DT93 -> 0 | M17: ='Oculto IS-LM'!DU93 -> 0 | N17: ='Oculto IS-LM'!DV93 -> 0.0%
B18: =+'Oculto IS-LM'!CW36 -> 290.00 | C18: 350 | D18: -30 | E18: =+'Oculto IS-LM'!CZ36 -> 2.00 | J18: Ms(CIN) | K18: ='Oculto IS-LM'!DS94 -> 400.0 | L18: ='Oculto IS-LM'!DT94 -> 400.0 | M18: ='Oculto IS-LM'!DU94 -> 0 | N18: ='Oculto IS-LM'!DV94 -> 0.0%
J19: Ms(RI) | K19: ='Oculto IS-LM'!DS95 -> 140.0 | L19: ='Oculto IS-LM'!DT95 -> 140.0 | M19: ='Oculto IS-LM'!DU95 -> 0 | N19: ='Oculto IS-LM'!DV95 -> 0.0%
B20: GASTO DE GOBIERNO | J20: Ms | K20: ='Oculto IS-LM'!DS96 -> 540.0 | L20: ='Oculto IS-LM'!DT96 -> 540.0 | M20: ='Oculto IS-LM'!DU96 -> 0 | N20: ='Oculto IS-LM'!DV96 -> 0%
B21: G | C21: G0 | E21: Saldo (X-M) | F21: Saldo Pub. | J21: Md | K21: ='Oculto IS-LM'!DS97 -> 544.0 | L21: ='Oculto IS-LM'!DT97 -> 544.0 | M21: ='Oculto IS-LM'!DU97 -> 0 | N21: ='Oculto IS-LM'!DV97 -> 0%
B22: =+'Oculto IS-LM'!CW39 -> 200.00 | C22: 200 | E22: =+'Oculto IS-LM'!DD42 -> 0.0 | F22: =+'Oculto IS-LM'!DE42 -> 0.0 | J22: Pendiente IS | K22: ='Oculto IS-LM'!DS99 -> 0.0200 | L22: ='Oculto IS-LM'!DT99 -> 0.0200 | M22: ='Oculto IS-LM'!DU99 -> 0 | N22: ='Oculto IS-LM'!DV99 -> 0%
J23: Pendiente LM | K23: ='Oculto IS-LM'!DS100 -> 0.2000 | L23: ='Oculto IS-LM'!DT100 -> 0.2000 | M23: ='Oculto IS-LM'!DU100 -> 0 | N23: ='Oculto IS-LM'!DV100 -> 0%
B24: FUNCION EXPORTACIONES | J24: Pendiente BP | K24: ='Oculto IS-LM'!DS101 -> 0.0800 | L24: ='Oculto IS-LM'!DT101 -> 0.0800 | M24: ='Oculto IS-LM'!DU101 -> 0 | N24: ='Oculto IS-LM'!DV101 -> 0%
B25: X | C25: x0 | D25: x1 | E25: YRM | F25: x2 | G25: TC | K25: Esta seccion muestra los efectos de política económica
B26: =+'Oculto IS-LM'!CW42 -> 1,046.00 | C26: 40 | D26: 0.2 | E26: 5000 | F26: 0.5 | G26: 12
B28: FUNCION IMPORTACIONES
B29: Q | C29: q0 | D29: q1 | E29: Y | F29: q2 | G29: TC
B30: =+'Oculto IS-LM'!CW45 -> 1,046.00 | C30: 10 | D30: 0.4 | E30: ='Oculto IS-LM'!CZ45 -> 2650.00 | F30: -2 | G30: ='Oculto IS-LM'!DB45 -> 12
B32: OFERTA DE DINERO
B33: Ms | C33: CIN | D33: RI
B34: =+'Oculto IS-LM'!CW48 -> 540.00 | C34: 400 | D34: =+'Oculto IS-LM'!CY48 -> 140.00
B36: FUNCION DEMANDA DE DINERO
B37: Md | C37: m0 | D37: m1 | E37: Y | F37: m2 | G37: r
B38: =+'Oculto IS-LM'!CW51 -> 544.00 | C38: 12 | D38: 0.2 | E38: =+'Oculto IS-LM'!CZ51 -> 2650.00 | F38: -1 | G38: =+'Oculto IS-LM'!DB51 -> 2.00
B40: FUNCION INVERSIÓN EXTERIOR NETA
B41: IEN | C41: r0 | D41: r | E41: rRM
B42: =+'Oculto IS-LM'!CW58 -> 0.00 | C42: 5 | D42: ='Oculto IS-LM'!CY58 -> 2.00 | E42: 2
B44: POLÍTICA ECONÓMICA
B45: MONETARIA | C45: FISCAL | E45: CAMBIARIA | F45: EXOGENA
B46: CIN | C46: T0 | D46: G0 | E46: TC | F46: r RM
B47: =+'Oculto IS-LM'!CW81 -> 400 | C47: =+'Oculto IS-LM'!CX81 -> 200 | D47: =+'Oculto IS-LM'!CY81 -> 200 | E47: =+'Oculto IS-LM'!CZ81 -> 12 | F47: =+'Oculto IS-LM'!DA81 -> 2
B48: 0% | C48: 0% | D48: 0% | E48: 0% | F48: 0%
B50: Títulos
B51: Resultados
B52: Insertar datos
B53: Equilibrio
B54: Política económica

Sheet IS_LM_BP_FLEXIBLE (hidden)
B1: SISTEMA IS-LM-BP
B2: Economía abierta con gobierno, precios rígidos y tipo de cambio flexible
B4: INGRESO NACIONAL | I4: VARIABLES | K4: ORIGINAL | L4: CHOQUE | M4: VAR ABS | N4: VAR REL
B5: Y | C5: C | D5: I | E5: G | F5: X | G5: Q | I5: Y | K5: ='Oculto IS-LM'!FC81 -> 2,601.4 | L5: ='Oculto IS-LM'!FD81 -> 2,601.4 | M5: ='Oculto IS-LM'!FE81 -> 0 | N5: ='Oculto IS-LM'!FF81 -> 0%
B6: =+'Oculto IS-LM'!EF25 -> 2,601.36 | C6: =+'Oculto IS-LM'!EG25 -> 1,961.09 | D6: =+'Oculto IS-LM'!EH25 -> 921.41 | E6: =+'Oculto IS-LM'!EI25 -> 400.00 | F6: =+'Oculto IS-LM'!EJ25 -> 3,001.04 | G6: =+'Oculto IS-LM'!EK25 -> 3,682.18 | I6: r | K6: ='Oculto IS-LM'!FC82 -> 4.1 | L6: ='Oculto IS-LM'!FD82 -> 4.1 | M6: ='Oculto IS-LM'!FE82 -> 0
B7: ='Oculto IS-LM'!EF28 -> 100% | C7: =+'Oculto IS-LM'!EG28 -> 75% | D7: =+'Oculto IS-LM'!EH28 -> 35% | E7: =+'Oculto IS-LM'!EI28 -> 15% | F7: =+'Oculto IS-LM'!EJ28 -> 115% | G7: =+'Oculto IS-LM'!EK28 -> 142% | I7: TC | K7: ='Oculto IS-LM'!FC83 -> -1,569.0 | L7: ='Oculto IS-LM'!FD83 -> -1,569.0 | M7: ='Oculto IS-LM'!FE83 -> 0 | N7: ='Oculto IS-LM'!FF83 -> 0%
I8: C | K8: ='Oculto IS-LM'!FC84 -> 1,961.1 | L8: ='Oculto IS-LM'!FD84 -> 1,961.1 | M8: ='Oculto IS-LM'!FE84 -> 0 | N8: ='Oculto IS-LM'!FF84 -> 0%
B9: FUNCION CONSUMO | I9: S | K9: ='Oculto IS-LM'!FC85 -> 240.3 | L9: ='Oculto IS-LM'!FD85 -> 240.3 | M9: ='Oculto IS-LM'!FE85 -> 0 | N9: ='Oculto IS-LM'!FF85 -> 0%
B10: C | C10: b0 | D10: b1 | E10: Y | F10: T0 | I10: I | K10: ='Oculto IS-LM'!FC86 -> 921.4 | L10: ='Oculto IS-LM'!FD86 -> 921.4 | M10: ='Oculto IS-LM'!FE86 -> 0 | N10: ='Oculto IS-LM'!FF86 -> 0%
B11: =+'Oculto IS-LM'!EF31 -> 1,961.09 | C11: 200.00 | D11: 0.80 | E11: =+'Oculto IS-LM'!EI31 -> 2,601.36 | F11: 400.00 | I11: G | K11: ='Oculto IS-LM'!FC87 -> 400.0 | L11: ='Oculto IS-LM'!FD87 -> 400.0 | M11: ='Oculto IS-LM'!FE87 -> 0 | N11: ='Oculto IS-LM'!FF87 -> 0%
I12: T | K12: ='Oculto IS-LM'!FC88 -> 400.0 | L12: ='Oculto IS-LM'!FD88 -> 400.0 | M12: ='Oculto IS-LM'!FE88 -> 0 | N12: ='Oculto IS-LM'!FF88 -> 0%
B13: FUNCION AHORRO | I13: DP | K13: ='Oculto IS-LM'!FC89 -> 0 | L13: ='Oculto IS-LM'!FD89 -> 0 | M13: ='Oculto IS-LM'!FE89 -> 0 | N13: ='Oculto IS-LM'!FF89 -> 0.0%
B14: S | C14: -b0 | D14: 1-b1 | E14: Y | F14: T0 | I14: X | K14: ='Oculto IS-LM'!FC90 -> 3,001.0 | L14: ='Oculto IS-LM'!FD90 -> 3,001.0 | M14: ='Oculto IS-LM'!FE90 -> 0 | N14: ='Oculto IS-LM'!FF90 -> 0.0%
B15: ='Oculto IS-LM'!EF34 -> 240.27 | C15: ='Oculto IS-LM'!EG34 -> -200.00 | D15: ='Oculto IS-LM'!EH34 -> 0.20 | E15: ='Oculto IS-LM'!EI34 -> 2,601.36 | F15: ='Oculto IS-LM'!EJ34 -> 400.00 | I15: Q | K15: ='Oculto IS-LM'!FC91 -> 3,682.2 | L15: ='Oculto IS-LM'!FD91 -> 3,682.2 | M15: ='Oculto IS-LM'!FE91 -> 0 | N15: ='Oculto IS-LM'!FF91 -> 0.0%
I16: Dcom | K16: ='Oculto IS-LM'!FC92 -> -681.1 | L16: ='Oculto IS-LM'!FD92 -> -681.1 | M16: ='Oculto IS-LM'!FE92 -> 0 | N16: ='Oculto IS-LM'!FF92 -> 0.0%
B17: FUNCION INVERSION | J17: IEN | K17: ='Oculto IS-LM'!FC93 -> 681.1 | L17: ='Oculto IS-LM'!FD93 -> 681.1 | M17: ='Oculto IS-LM'!FE93 -> 0 | N17: ='Oculto IS-LM'!FF93 -> 0.0%
B18: I | C18: i0 | D18: i1 | E18: r | I18: Ms(CIN) | K18: ='Oculto IS-LM'!FC94 -> 422.0 | L18: ='Oculto IS-LM'!FD94 -> 422.0 | M18: ='Oculto IS-LM'!FE94 -> 0 | N18: ='Oculto IS-LM'!FF94 -> 0.0%
B19: =+'Oculto IS-LM'!EF37 -> 921.41 | C19: 1,000.00 | D19: -19.00 | E19: =+'Oculto IS-LM'!EI37 -> 4.14 | I19: Ms(RI) | K19: ='Oculto IS-LM'!FC95 -> 100.0 | L19: ='Oculto IS-LM'!FD95 -> 100.0 | M19: ='Oculto IS-LM'!FE95 -> 0 | N19: ='Oculto IS-LM'!FF95 -> 0.0%
I20: Ms | K20: ='Oculto IS-LM'!FC96 -> 522.0 | L20: ='Oculto IS-LM'!FD96 -> 522.0 | M20: ='Oculto IS-LM'!FE96 -> 0 | N20: ='Oculto IS-LM'!FF96 -> 0%
B21: GASTO DE GOBIERNO | I21: Md | K21: ='Oculto IS-LM'!FC97 -> 522.0 | L21: ='Oculto IS-LM'!FD97 -> 522.0 | M21: ='Oculto IS-LM'!FE97 -> 0 | N21: ='Oculto IS-LM'!FF97 -> 0%
B22: G | C22: G0 | F22: Saldo (X-M) | G22: Saldo Pub. | I22: Pendiente IS | K22: ='Oculto IS-LM'!FC99 -> -48.71795 | L22: ='Oculto IS-LM'!FD99 -> -48.71795 | M22: ='Oculto IS-LM'!FE99 -> 0 | N22: ='Oculto IS-LM'!FF99 -> 0%
B23: =+'Oculto IS-LM'!EF40 -> 400.00 | C23: 400.00 | F23: =+'Oculto IS-LM'!EJ40 -> -681.14 | G23: =+'Oculto IS-LM'!EK40 -> 0.00 | I23: Pendiente LM | K23: ='Oculto IS-LM'!FC100 -> 0.10000 | L23: ='Oculto IS-LM'!FD100 -> 0.10000 | M23: ='Oculto IS-LM'!FE100 -> 0 | N23: ='Oculto IS-LM'!FF100 -> 0%
I24: Pendiente BP | K24: ='Oculto IS-LM'!FC101 -> 0.00004 | L24: ='Oculto IS-LM'!FD101 -> 0.00004 | M24: ='Oculto IS-LM'!FE101 -> 0 | N24: ='Oculto IS-LM'!FF101 -> 0%
B25: FUNCION EXPORTACIONES | K25: Esta seccion muestra los efectos de la Política Económica
B26: X | C26: x0 | D26: x1 | E26: YRM | F26: x0 | G26: TC
B27: =+'Oculto IS-LM'!EF43 -> 3,001.04 | C27: 70.00 | D27: 0.300 | E27: 15,000.00 | F27: 1.00 | G27: =+'Oculto IS-LM'!EK43 -> -1,568.96
B29: FUNCION IMPORTACIONES
B30: Q | C30: q0 | D30: q1 | E30: Y | F30: q2 | G30: TC
B31: =+'Oculto IS-LM'!EF46 -> 3,682.18 | C31: 50.00 | D31: 0.190 | E31: =E11 -> 2,601.36 | F31: -2.00 | G31: =G27 -> -1,568.96
B33: OFERTA DE DINERO
B34: Ms | C34: CIN | D34: RI
B35: =+'Oculto IS-LM'!EF49 -> 522.00 | C35: 422.00 | D35: 100.00
B37: FUNCION DEMANDA DE DINERO
B38: Md | C38: m0 | D38: m1 | E38: Y | F38: m2 | G38: r
B39: =+'Oculto IS-LM'!EF52 -> 522.00 | C39: 10.00 | D39: 0.20 | E39: =E31 -> 2,601.36 | F39: -2.00 | G39: =E19 -> 4.14
B41: FUNCION INVERSIÓN EXTERIOR NETA
B42: IEN | C42: ro | D42: r | E42: rRM
B43: =+'Oculto IS-LM'!EF58 -> 681.14 | C43: 5,000.00 | D43: =+'Oculto IS-LM'!EH58 -> 4.14 | E43: 4.00
B45: POLÍTICA ECONÓMICA
B46: MONETARIA | D46: FISCAL | F46: EXOGENA
B47: CIN | C47: RI | D47: T0 | E47: G0 | F47: rRM
B48: =+'Oculto IS-LM'!EF86 -> 422 | C48: =+'Oculto IS-LM'!EG86 -> 100 | D48: =+'Oculto IS-LM'!EH86 -> 400 | E48: =+'Oculto IS-LM'!EI86 -> 400 | F48: =+'Oculto IS-LM'!EJ86 -> 4
B49: 0% | C49: 0% | D49: 0% | E49: 0% | F49: 0%
B51: Títulos
B52: Resultados
B53: Insertar datos
B54: Equilibrio
B55: Política económica

Sheet curva IS (hidden)
A1: CURVA IS-LM-BP
A2: Economía abierta con gobierno, precios rígidos y tipo de cambio
B3: CASO 1
B4: FUNCION CONSUMO
B5: C | C5: b0 | D5: b1 | E5: y
B6: ='Oculto IS-LM'!AV127 -> 10,233 | C6: 300 | D6: 0.80 | E6: ='Oculto IS-LM'!AY127 -> 13,417
B8: FUNCION INVERSION
B9: I | C9: i0 | D9: i1 | E9: r
B10: ='Oculto IS-LM'!AV130 -> 2,600 | C10: 5,000 | D10: -40,000 | E10: 6.00%
B12: IMPUESTOS
B13: T | C13: T0
B14: ='Oculto IS-LM'!AV133 -> 1,000 | C14: 1,000
B16: GASTO DE GOBIERNO | E16: DÉFICIT PÚBLICO
B17: G | C17: G0 | E17: Absoluto | F17: % en Y
B18: ='Oculto IS-LM'!AV136 -> 1,000 | C18: 1,000 | E18: =C14-C18 -> 0.0 | F18: =E18/E6 -> 0.0%
B20: FUNCION EXPORTACIONES
B21: X | C21: x0 | D21: x1 | E21: YRM | F21: x2 | G21: TC
B22: ='Oculto IS-LM'!AV139 -> 3,904 | C22: 500 | D22: 0.017 | E22: 200,000 | F22: 0.30 | G22: 12
B24: FUNCION IMPORTACIONES
B25: Q | C25: q0 | D25: q1 | E25: Y | F25: q2 | G25: TC
B26: ='Oculto IS-LM'!AV142 -> 4,320 | C26: 300 | D26: 0.30 | E26: =E6 -> 13,417 | F26: -0.40 | G26: =G22 -> 12
B28: Saldo de la balanza comercial
B29: =B22-B26 -> -417
B33: CASO 2
B34: FUNCION CONSUMO 2 | I34: DEMANDA AGREGADA 1
B35: C | C35: b0 | D35: b1 | E35: y | I35: Y | J35: C | K35: I | L35: G | M35: X | N35: Q
B36: ='Oculto IS-LM'!BI127 -> 10,233 | C36: =C6 -> 300 | D36: =D6 -> 0.80 | E36: ='Oculto IS-LM'!BL127 -> 13,417 | I36: =J36+K36+L36+M36+N36 -> 13,417 | J36: =B6 -> 10,233 | K36: =B10 -> 2,600 | L36: =B18 -> 1,000 | M36: =B22 -> 3,904 | N36: =B26*-1 -> -4,320
I37: =J37+K37+L37+M37+N37 -> 100% | J37: =J36/$I$36 -> 76% | K37: =K36/$I$36 -> 19% | L37: 7% | M37: 29% | N37: -32%
B38: FUNCION INVERSION 2
B39: I | C39: i0 | D39: i1 | E39: r | I39: DEMANDA AGREGADA 2
B40: ='Oculto IS-LM'!BI130 -> 2,600 | C40: =C10 -> 5,000 | D40: =D10 -> -40,000 | E40: =E10 -> 6.00% | I40: Y | J40: C | K40: I | L40: G | M40: X | N40: Q
I41: =J41+K41+L41+M41+N41 -> 13,417 | J41: =B36 -> 10,233 | K41: =B40 -> 2,600 | L41: =B48 -> 1,000 | M41: =B52 -> 3,904 | N41: =-B56 -> -4,320
B42: IMPUESTOS 2 | I42: =J42+K42+L42+M42+N42 -> 100% | J42: =J41/$I$41 -> 76% | K42: =K41/$I$41 -> 19% | L42: 7% | M42: 29% | N42: -32%
B43: T | C43: T1
B44: ='Oculto IS-LM'!BI133 -> 1,000 | C44: =C14 -> 1,000 | I44: VARIACIÓN DE LA DEMANDA AGREGADA
I45: Y | J45: C | K45: I | L45: G | M45: X | N45: Q
B46: GASTO DE GOBIERNO 2 | E46: DÉFICIT PÚBLICO | I46: =I41-I36 -> 0 | J46: =J41-J36 -> 0 | K46: 0 | L46: 0 | M46: 0 | N46: 0
B47: G | C47: G1 | E47: Absoluto | F47: % en Y | I47: =(I41-I36)/I36 -> 0% | J47: =(J41-J36)/J36 -> 0% | K47: 0% | L47: 0% | M47: 0% | N47: 0%
B48: ='Oculto IS-LM'!AV136 -> 1,000 | C48: =C18 -> 1,000 | E48: =C44-C48 -> 0.0 | F48: =E48/E36 -> 0.0%
B50: FUNCION EXPORTACIONES 2 | J50: Gasto autónomo | L50: Multiplicador | M50: Pendiente
B51: X | C51: x0 | D51: x1 | E51: YRM | F51: x2 | G51: TC | I51: Caso 1 | J51: =C6-D6*C14+C10+C18+C22-C26+D22*E22+(F22-F26)*G22 -> 9,108 | L51: =1/(1-D6+D26) -> 2.0 | M51: =D10*-1/(1-E6+E26) -> 40,000
B52: ='Oculto IS-LM'!BI139 -> 3,904 | C52: =C22 -> 500 | D52: =D22 -> 0.017 | E52: =E22 -> 200,000 | F52: =F22 -> 0.30 | G52: =G22 -> 12 | I52: Caso 2 | J52: =C36-D36*C44+C40+C48+C52-C56+D52*E52+(F52-F56)*G52 -> 9,108 | L52: =1/(1-D36+D56) -> 2.0 | M52: =D40*-1/(1-E36+E56) -> 40,000
I53: Variación | J53: =J52-J51 -> 0 | L53: =L52-L51 -> 0 | M53: =M52-M51 -> 0
B54: FUNCION IMPORTACIONES 2
B55: Q | C55: q0 | D55: q1 | E55: Y | F55: q2 | G55: TC
B56: ='Oculto IS-LM'!BI142 -> 4,320 | C56: =C26 -> 300 | D56: =D26 -> 0.30 | E56: =E36 -> 13,417 | F56: =F26 -> -0.40 | G56: =G26 -> 12
B58: Saldo de la balanza comercial
B59: =B52-B56 -> -417
B61: Títulos
B62: Resultados
B63: Insertar datos

Sheet curva LM (hidden)
A1: CURVA LM
A2: Economía abierta con gobierno, precios rígidos y tipo de cambio
B4: CASO 1
B5: FUNCION OFERTA DE DINERO
B6: Ms | C6: m | D6: CIN | E6: RI
B7: ='Oculto IS-LM'!AV191 -> 4,050.00 | C7: 3 | D7: 1050 | E7: 300.00
B9: FUNCION DEMANDA DE DINERO
B10: Md | C10: m0 | D10: m1 | E10: Y | F10: m2 | G10: r
B11: ='Oculto IS-LM'!AV194 -> 4,050.00 | C11: 3500 | D11: 0.50 | E11: 2650.00 | F11: -10000.00 | G11: ='Oculto IS-LM'!BA194 -> 7.75%
B14: CASO 2
B15: FUNCION OFERTA DE DINERO
B16: Ms | C16: m | D16: CIN | E16: RI
B17: ='Oculto IS-LM'!BI191 -> 4,050.00 | C17: =C7 -> 3 | D17: =D7 -> 1050 | E17: =E7 -> 300.00
B19: FUNCION DEMANDA DE DINERO
B20: Md | C20: m0 | D20: m1 | E20: Y | F20: m2 | G20: r
B21: ='Oculto IS-LM'!BI194 -> 4,050.00 | C21: =C11 -> 3500 | D21: =D11 -> 0.50 | E21: =E11 -> 2650.00 | F21: =F11 -> -10000.00 | G21: ='Oculto IS-LM'!BN194 -> 7.75%
B23: VARIACIÓN DEL MERCADO DE DINERO
C24: Md | D24: Ms | E24: Pendiente
B25: Caso 1 | C25: =B11 -> 4,050.00 | D25: =B7 -> 4,050.00 | E25: =D11/F11*-1 -> 0.000050
B26: Caso 2 | C26: =B21 -> 4,050.00 | D26: =B17 -> 4,050.00 | E26: =D21/F21*-1 -> 0.000050
B27: Variación abs. | C27: =C26-C25 -> 0.00 | D27: =D26-D25 -> 0.00 | E27: =E26-E25 -> 0
B28: Variación relat. | C28: =C27/C25 -> 0.0% | D28: =D27/D25 -> 0.0%
B32: Títulos
B33: Resultados
B34: Insertar datos
